BodyName,ServiceAreaCategorisation,ServiceDivisionCategorisation,ExpensesType,Date,TransactionNumber,Amount,CapitalorRevenue,SupplierName,MerchantCategory
Peterborough City Council,Legal Services,Legal Services,Services,02/08/2019,30206140,-830.32,Revenue,Thomson Reuters UK Limited,Subscriptions
Peterborough City Council,Peterborough Serco Strategic Partnership,PSSP Retained Services,Services,02/08/2019,30234984,3373.25,Revenue,Whistl UK Ltd,Postage
Peterborough City Council,Corporate Property,Office Accomodation,Services,02/08/2019,30235116,2150.00,Revenue,Eddisons Commercial Ltd t/a Barker Storey Matthews,Consultants Fees
Peterborough City Council,Peterborough Serco Strategic Partnership,PSSP Retained Services,Services,02/08/2019,30235827,849.58,Revenue,Whistl UK Ltd,Postage
Peterborough City Council,Peterborough Serco Strategic Partnership,PSSP Retained Services,Services,02/08/2019,30235828,1690.84,Revenue,Whistl UK Ltd,Postage
Peterborough City Council,Corporate,Corporate,Non Revenue,02/08/2019,30236127,57235.00,Capital,Sibcas Ltd,Building And Site Works
Peterborough City Council,Adults,Independent Sector Placements,Services,02/08/2019,30236871,1177.88,Revenue,ABBEY COURT PRIORY,Residential Care
Peterborough City Council,Adults,Independent Sector Placements,Services,02/08/2019,30237008,4443.24,Revenue,Craegmoor Belmont Road Priory,Residential Care
Peterborough City Council,Adults,Independent Sector Placements,Services,02/08/2019,30237097,3018.92,Revenue,Craegmoor Conquest Lodge Priory,Residential Care
Peterborough City Council,Adults,Independent Sector Placements,Services,02/08/2019,30237099,920.44,Revenue,Craegmoor Conquest Lodge Priory,Residential Care
Peterborough City Council,Adults,Independent Sector Placements,Services,02/08/2019,30237100,3121.20,Revenue,Craegmoor Conquest Lodge Priory,Residential Care
Peterborough City Council,Adults,Independent Sector Placements,Services,02/08/2019,30237101,5417.44,Revenue,Craegmoor Conquest Lodge Priory,Residential Care
Peterborough City Council,Adults,Independent Sector Placements,Services,02/08/2019,30237102,4444.60,Revenue,Craegmoor Conquest Lodge Priory,Residential Care
Peterborough City Council,Commissioning and Commercial Operations,Clare Lodge,Agency Staff,02/08/2019,30237212,599.29,Revenue,Blue Arrow Ltd,External Temporary Staff
Peterborough City Council,Adults,Independent Sector Placements,Services,02/08/2019,30237810,1658.92,Revenue,Athena (Ashlynn Grange),Residential Care
Peterborough City Council,Peterborough Serco Strategic Partnership,PSSP Retained Services,Services,02/08/2019,30238191,3377.10,Revenue,Whistl UK Ltd,Postage
Peterborough City Council,Peterborough Serco Strategic Partnership,PSSP Retained Services,Services,02/08/2019,30238195,1806.60,Revenue,Whistl UK Ltd,Postage
Peterborough City Council,Education,School Standards & Effectiveness,Services,02/08/2019,30238366,3454.50,Revenue,Ryder Hayes School,Grant Payment
Peterborough City Council,Education,Early Years & Quality Improvement,Services,02/08/2019,30238527,1490.88,Revenue,Redacted Personal Data,Grant Payment
Peterborough City Council,Corporate Property,Office Accomodation,Cleaning & Domestic Supplies,02/08/2019,30238604,528.01,Revenue,PHS Group Plc,Cleaning
Peterborough City Council,Adults,Block Contracts,Third Party Payments,02/08/2019,30238777,1821.88,Revenue,Park Vista Care Home,Third Party Payments - Contract
Peterborough City Council,"Waste, Cleansing and Open Spaces",Waste Management,Direct Transport Costs,02/08/2019,30238867,604.46,Revenue,Allstar Business Solutions Ltd.,Petrol
Peterborough City Council,"Waste, Cleansing and Open Spaces",Waste Management,Direct Transport Costs,02/08/2019,30238868,542.58,Revenue,Allstar Business Solutions Ltd.,Petrol
Peterborough City Council,Corporate Items,Corporate Services,Employee Costs,02/08/2019,30238889,69651.02,Revenue,LGSS Cambridgeshire Pension Fund,Pensions
Peterborough City Council,Education,Early Years & Quality Improvement,Services,02/08/2019,30238915,511.28,Revenue,Redacted Personal Data,Grant Payment
Peterborough City Council,Adults,Block Contracts,Third Party Payments,02/08/2019,30238955,-1821.88,Revenue,Park Vista Care Home,Third Party Payments - Contract
Peterborough City Council,Commissioning and Commercial Operations,Access to Resources & Specialist Commissioning,Schools,02/08/2019,30238993,3210.00,Revenue,National Fostering Agency Ltd,Boarding Out Fees
Peterborough City Council,Commissioning and Commercial Operations,Access to Resources & Specialist Commissioning,Schools,02/08/2019,30238996,1926.00,Revenue,National Fostering Agency Ltd,Boarding Out Fees
Peterborough City Council,Commissioning and Commercial Operations,Access to Resources & Specialist Commissioning,Schools,02/08/2019,30238998,3210.00,Revenue,National Fostering Agency Ltd,Boarding Out Fees
Peterborough City Council,Commissioning and Commercial Operations,Access to Resources & Specialist Commissioning,Schools,02/08/2019,30238999,3317.00,Revenue,National Fostering Agency Ltd,Boarding Out Fees
Peterborough City Council,Commissioning and Commercial Operations,Access to Resources & Specialist Commissioning,Schools,02/08/2019,30239000,3350.79,Revenue,National Fostering Agency Ltd,Boarding Out Fees
Peterborough City Council,Commissioning and Commercial Operations,Access to Resources & Specialist Commissioning,Schools,02/08/2019,30239001,1476.41,Revenue,National Fostering Agency Ltd,Boarding Out Fees
Peterborough City Council,HR,HR WFD & Training,Services,02/08/2019,30239017,1054.30,Revenue,Family Action Enterprises Ltd,Training
Peterborough City Council,Communities,Housing,Services,02/08/2019,30239037,1946.10,Revenue,Property Line,Financial Assistance
Peterborough City Council,Communities,Housing,Services,02/08/2019,30239038,1053.08,Revenue,Sequence UK,Financial Assistance
Peterborough City Council,Corporate,Corporate,Non Revenue,02/08/2019,30239060,4930.09,Capital,Garfield Builders Ltd,Grant Payment
Peterborough City Council,Corporate,Corporate,Non Revenue,02/08/2019,30239109,950.00,Capital,Spotless {Cleaning Services},Grant Payment
Peterborough City Council,Corporate,Corporate,Non Revenue,02/08/2019,30239110,5830.00,Capital,M J Greaves,Grant Payment
Peterborough City Council,Corporate,Corporate,Non Revenue,02/08/2019,30239112,4547.00,Capital,Casbon Building Services,Grant Payment
Peterborough City Council,Corporate,Corporate,Non Revenue,02/08/2019,30239113,5119.00,Capital,Gaswise Services Ltd,Grant Payment
Peterborough City Council,Corporate,Corporate,Non Revenue,02/08/2019,30239114,1650.00,Capital,Spotless {Cleaning Services},Grant Payment
Peterborough City Council,Corporate,Corporate,Non Revenue,02/08/2019,30239115,576.00,Capital,Rawheat Heating & Plumbing Eng.,Grant Payment
Peterborough City Council,Corporate,Corporate,Non Revenue,02/08/2019,30239116,4128.00,Capital,Casbon Building Services,Grant Payment
Peterborough City Council,Communities,Housing,Services,02/08/2019,30239188,668.00,Revenue,Redacted Personal Data,Financial Assistance
Peterborough City Council,Adults,Finance,Services,02/08/2019,30239206,12480.00,Revenue,4OC Ltd,Consultants Fees
Peterborough City Council,Legal Services,Legal Services,Services,02/08/2019,30239207,30072.10,Revenue,Thomson Reuters UK Limited,Subscriptions
Peterborough City Council,Commissioning and Commercial Operations,Access to Resources & Specialist Commissioning,Services,02/08/2019,30239214,3625.14,Revenue,Nexus Fostering Ltd,Boarding Out Fees
Peterborough City Council,Commissioning and Commercial Operations,Access to Resources & Specialist Commissioning,Services,02/08/2019,30239215,2338.90,Revenue,Nexus Fostering Ltd,Boarding Out Fees
Peterborough City Council,Adults,Independent Sector Placements,Services,02/08/2019,30239220,1534.88,Revenue,Barchester Healthcare (Werrington Lodge),Residential Care
Peterborough City Council,Adults,Independent Sector Placements,Services,02/08/2019,30239221,1893.12,Revenue,Barchester Healthcare (Werrington Lodge),Residential Care
Peterborough City Council,Adults,Independent Sector Placements,Services,02/08/2019,30239222,1974.52,Revenue,Barchester Healthcare (Werrington Lodge),Residential Care
Peterborough City Council,Adults,Independent Sector Placements,Services,02/08/2019,30239223,1606.76,Revenue,Barchester Healthcare (Werrington Lodge),Residential Care
Peterborough City Council,Adults,Independent Sector Placements,Services,02/08/2019,30239224,1922.72,Revenue,Barchester Healthcare (Werrington Lodge),Residential Care
Peterborough City Council,Adults,Independent Sector Placements,Services,02/08/2019,30239225,1564.48,Revenue,Barchester Healthcare (Werrington Lodge),Residential Care
Peterborough City Council,Adults,Independent Sector Placements,Services,02/08/2019,30239265,2457.76,Revenue,Barchester Healthcare (Werrington Lodge),Residential Care
Peterborough City Council,Adults,Independent Sector Placements,Services,02/08/2019,30239266,1142.84,Revenue,Barchester Healthcare (Werrington Lodge),Residential Care
Peterborough City Council,Adults,Independent Sector Placements,Services,02/08/2019,30239267,2539.16,Revenue,Barchester Healthcare (Werrington Lodge),Residential Care
Peterborough City Council,Adults,Independent Sector Placements,Services,02/08/2019,30239271,1224.24,Revenue,Barchester Healthcare (Werrington Lodge),Residential Care
Peterborough City Council,Communities,Housing,Services,02/08/2019,30239283,1350.00,Revenue,Woodcock Holmes,Financial Assistance
Peterborough City Council,Financial Services,Insurance,Insurances,02/08/2019,30239293,60621.90,Revenue,Zurich Insurance Company,Insurance Premiums
Peterborough City Council,Financial Services,Insurance,Insurances,02/08/2019,30239296,23579.41,Revenue,Zurich Insurance Company,Insurance Premiums
Peterborough City Council,Financial Services,Insurance,Insurances,02/08/2019,30239298,617846.44,Revenue,Zurich Insurance Company,Insurance Premiums
Peterborough City Council,Corporate,Corporate,Non Revenue,02/08/2019,30239302,1911.00,Capital,Agility Eco Services Limited,Grant Payment
Peterborough City Council,Communities,Housing,Services,02/08/2019,30239306,966.00,Revenue,A&M Bacon Limited,Legal Costs
Peterborough City Council,Corporate,Corporate,Non Revenue,02/08/2019,30239311,12000.00,Capital,Servelec Education Limited,Consultants Fees
Peterborough City Council,Adults,Independent Sector Placements,Services,02/08/2019,30239321,1408.88,Revenue,Barchester Healthcare (Werrington Lodge),Residential Care
Peterborough City Council,Adults,Independent Sector Placements,Services,02/08/2019,30239322,1490.28,Revenue,Barchester Healthcare (Werrington Lodge),Residential Care
Peterborough City Council,Adults,Independent Sector Placements,Services,02/08/2019,30239324,-1508.41,Revenue,Barchester Healthcare (Werrington Lodge),Residential Care
Peterborough City Council,Adults,Block Contracts,Third Party Payments,02/08/2019,30239373,2318.36,Revenue,Park Vista Care Home,Third Party Payments - Contract
Peterborough City Council,Adults,Block Contracts,Third Party Payments,02/08/2019,30239374,2318.36,Revenue,Park Vista Care Home,Third Party Payments - Contract
Peterborough City Council,Adults,Block Contracts,Third Party Payments,02/08/2019,30239375,2318.36,Revenue,Park Vista Care Home,Third Party Payments - Contract
Peterborough City Council,Adults,Block Contracts,Third Party Payments,02/08/2019,30239376,2318.36,Revenue,Park Vista Care Home,Third Party Payments - Contract
Peterborough City Council,Commissioning and Commercial Operations,Access to Resources & Specialist Commissioning,Services,02/08/2019,30239377,11745.00,Revenue,Sixteen Plus Limited,Boarding Out Fees
Peterborough City Council,Adults,OP/PD/SI,Third Party Payments,02/08/2019,30239380,7424.00,Revenue,The Stroke Association,Third Party Payments - Contract
Peterborough City Council,Legal Services,Legal Services,Services,02/08/2019,30239404,546.00,Revenue,Dr Katharine E. Halliday,Expert Witnesses
Peterborough City Council,Legal Services,Legal Services,Services,02/08/2019,30239406,3165.00,Revenue,Vittas Medical Services Ltd,Expert Witnesses
Peterborough City Council,Adults,Independent Sector Placements,Services,02/08/2019,8000147632,18018.00,Revenue,Atlas Care Services Ltd,Home Care
Peterborough City Council,Adults,Independent Sector Placements,Services,02/08/2019,8000147635,1079.44,Revenue,Atlas Care Services Ltd,Home Care
Peterborough City Council,Adults,Independent Sector Placements,Services,02/08/2019,8000147636,1499.05,Revenue,Atlas Care Services Ltd,Home Care
Peterborough City Council,Adults,Independent Sector Placements,Services,02/08/2019,8000147641,1026.70,Revenue,Atlas Care Services Ltd,Home Care
Peterborough City Council,Adults,Independent Sector Placements,Services,02/08/2019,8000147643,1773.35,Revenue,Atlas Care Services Ltd,Home Care
Peterborough City Council,Adults,Independent Sector Placements,Services,02/08/2019,8000147854,514.08,Revenue,Longhurst Group Limited,Home Care
Peterborough City Council,Adults,Independent Sector Placements,Services,02/08/2019,8000147855,771.12,Revenue,Longhurst Group Limited,Home Care
Peterborough City Council,Adults,Independent Sector Placements,Services,02/08/2019,8000147859,771.12,Revenue,Longhurst Group Limited,Home Care
Peterborough City Council,Adults,Independent Sector Placements,Services,02/08/2019,8000147862,612.00,Revenue,Longhurst Group Limited,Home Care
Peterborough City Council,Adults,Independent Sector Placements,Services,02/08/2019,8000147864,685.44,Revenue,Longhurst Group Limited,Home Care
Peterborough City Council,Adults,Independent Sector Placements,Services,02/08/2019,8000147866,783.36,Revenue,Longhurst Group Limited,Home Care
Peterborough City Council,Adults,Independent Sector Placements,Services,02/08/2019,8000147867,1285.20,Revenue,Longhurst Group Limited,Home Care
Peterborough City Council,Adults,Independent Sector Placements,Services,02/08/2019,8000147933,945.00,Revenue,Longhurst Group Limited,Home Care
Peterborough City Council,Adults,Independent Sector Placements,Services,02/08/2019,8000147936,858.75,Revenue,Longhurst Group Limited,Home Care
Peterborough City Council,Adults,Independent Sector Placements,Services,02/08/2019,8000147986,1789.84,Revenue,Atlas Care Services Ltd,Home Care
Peterborough City Council,Adults,Independent Sector Placements,Services,02/08/2019,8000147987,821.39,Revenue,Atlas Care Services Ltd,Home Care
Peterborough City Council,Adults,Independent Sector Placements,Services,02/08/2019,8000147988,731.30,Revenue,Atlas Care Services Ltd,Home Care
Peterborough City Council,Adults,Independent Sector Placements,Services,02/08/2019,8000147989,2914.55,Revenue,Atlas Care Services Ltd,Home Care
Peterborough City Council,Adults,Independent Sector Placements,Services,02/08/2019,8000147991,1972.16,Revenue,Atlas Care Services Ltd,Home Care
Peterborough City Council,Adults,Independent Sector Placements,Services,02/08/2019,8000147992,600.08,Revenue,Atlas Care Services Ltd,Home Care
Peterborough City Council,Adults,Independent Sector Placements,Services,02/08/2019,8000147993,567.05,Revenue,Atlas Care Services Ltd,Home Care
Peterborough City Council,Adults,Independent Sector Placements,Services,02/08/2019,8000147995,801.57,Revenue,Atlas Care Services Ltd,Home Care
Peterborough City Council,Adults,Independent Sector Placements,Services,02/08/2019,8000147997,817.92,Revenue,Atlas Care Services Ltd,Home Care
Peterborough City Council,Adults,Independent Sector Placements,Services,02/08/2019,8000148000,934.86,Revenue,Atlas Care Services Ltd,Home Care
Peterborough City Council,Adults,Independent Sector Placements,Services,02/08/2019,8000148009,515.53,Revenue,Atlas Care Services Ltd,Home Care
Peterborough City Council,Adults,Independent Sector Placements,Services,02/08/2019,8000148012,651.10,Revenue,Atlas Care Services Ltd,Home Care
Peterborough City Council,Adults,Independent Sector Placements,Services,02/08/2019,8000148017,835.85,Revenue,Atlas Care Services Ltd,Home Care
Peterborough City Council,Commissioning and Commercial Operations,Access to Resources & Specialist Commissioning,Services,05/08/2019,30235923,12796.53,Revenue,Ethelbert Childrens Services,Boarding Out Fees
Peterborough City Council,Commissioning and Commercial Operations,Access to Resources & Specialist Commissioning,Services,05/08/2019,30235924,12546.14,Revenue,Ethelbert Childrens Services,Boarding Out Fees
Peterborough City Council,Commissioning and Commercial Operations,Access to Resources & Specialist Commissioning,Services,05/08/2019,30235925,15966.46,Revenue,Ethelbert Childrens Services,Boarding Out Fees
Peterborough City Council,Adults,Independent Sector Placements,Services,05/08/2019,30236369,3640.00,Revenue,Caretech Community Services Limited,Home Care
Peterborough City Council,Marketing & Communications,Marketing & Communications,Services,05/08/2019,30236427,685.00,Revenue,Fisherprint Ltd,Printing
Peterborough City Council,Westcombe Engineering,Westcombe Engineering,"Tools, Equipment, Furniture & Materials",05/08/2019,30236449,837.40,Revenue,Peterborough Plating Ltd,Materials
Peterborough City Council,Adults,Mental Health,Third Party Payments,05/08/2019,30236469,103447.50,Revenue,Cambs & P�boro NHS Foundation Trust,Third Party Payments - Contract
Peterborough City Council,Public Health,PH Commissioning,Services,05/08/2019,30236470,274000.00,Revenue,Cambs & P�boro NHS Foundation Trust,Hired Services
Peterborough City Council,Public Health,PH Commissioning,Third Party Payments,05/08/2019,30236471,69333.00,Revenue,Cambs & P�boro NHS Foundation Trust,Third Party Payments - Contract
Peterborough City Council,Commissioning and Commercial Operations,Access to Resources & Specialist Commissioning,Services,05/08/2019,30236543,20806.50,Revenue,Swaay Child & adolescent Services Ltd,Boarding Out Fees
Peterborough City Council,Marketing & Communications,Marketing & Communications,Services,05/08/2019,30236597,1072.00,Revenue,Fisherprint Ltd,Printing
Peterborough City Council,Commissioning and Commercial Operations,Clare Lodge,Agency Staff,05/08/2019,30236627,1225.00,Revenue,Mana Resourcing Ltd,Supply Teachers
Peterborough City Council,Commissioning and Commercial Operations,Access to Resources & Specialist Commissioning,Services,05/08/2019,30236650,18074.19,Revenue,Exeter Royal Academy for Deaf Education,Boarding Out Fees
Peterborough City Council,Adults,Independent Sector Placements,Services,05/08/2019,30236662,1156.63,Revenue,Hales Group Ltd,Home Care
Peterborough City Council,Adults,Independent Sector Placements,Services,05/08/2019,30236664,640.84,Revenue,Hales Group Ltd,Home Care
Peterborough City Council,Adults,Independent Sector Placements,Services,05/08/2019,30236673,546.00,Revenue,Sahara Community Care Services Limited,Home Care
Peterborough City Council,Adults,Independent Sector Placements,Services,05/08/2019,30236675,532.00,Revenue,Sahara Community Care Services Limited,Home Care
Peterborough City Council,Adults,Independent Sector Placements,Services,05/08/2019,30236677,2744.00,Revenue,Sahara Community Care Services Limited,Home Care
Peterborough City Council,Adults,Independent Sector Placements,Services,05/08/2019,30236678,1064.00,Revenue,Sahara Community Care Services Limited,Home Care
Peterborough City Council,Adults,Independent Sector Placements,Services,05/08/2019,30236680,2352.00,Revenue,Sahara Community Care Services Limited,Home Care
Peterborough City Council,Adults,Independent Sector Placements,Services,05/08/2019,30236681,1148.00,Revenue,Sahara Community Care Services Limited,Home Care
Peterborough City Council,Adults,Independent Sector Placements,Services,05/08/2019,30236683,1713.60,Revenue,Sahara Community Care Services Limited,Home Care
Peterborough City Council,Adults,Independent Sector Placements,Services,05/08/2019,30236685,789.99,Revenue,Sahara Community Care Services Limited,Home Care
Peterborough City Council,Adults,Independent Sector Placements,Services,05/08/2019,30236686,1453.75,Revenue,Sahara Community Care Services Limited,Home Care
Peterborough City Council,Adults,Independent Sector Placements,Services,05/08/2019,30236692,1206.13,Revenue,Sahara Community Care Services Limited,Home Care
Peterborough City Council,Adults,Independent Sector Placements,Services,05/08/2019,30236693,1124.04,Revenue,Sahara Community Care Services Limited,Home Care
Peterborough City Council,Adults,Independent Sector Placements,Services,05/08/2019,30236694,511.77,Revenue,Sahara Community Care Services Limited,Home Care
Peterborough City Council,Adults,Independent Sector Placements,Services,05/08/2019,30236695,791.78,Revenue,Sahara Community Care Services Limited,Home Care
Peterborough City Council,Adults,Independent Sector Placements,Services,05/08/2019,30236696,682.63,Revenue,Sahara Community Care Services Limited,Home Care
Peterborough City Council,Adults,Independent Sector Placements,Services,05/08/2019,30236698,558.44,Revenue,Sahara Community Care Services Limited,Home Care
Peterborough City Council,Adults,Independent Sector Placements,Services,05/08/2019,30236814,1730.60,Revenue,Goldcare Homes t/a The Tudors Care Home,Residential Care
Peterborough City Council,Adults,Independent Sector Placements,Services,05/08/2019,30236815,1489.28,Revenue,Goldcare Homes t/a The Tudors Care Home,Residential Care
Peterborough City Council,Adults,Independent Sector Placements,Services,05/08/2019,30236816,1398.12,Revenue,Goldcare Homes t/a The Tudors Care Home,Residential Care
Peterborough City Council,Adults,Independent Sector Placements,Services,05/08/2019,30236818,1551.88,Revenue,Goldcare Homes t/a The Tudors Care Home,Residential Care
Peterborough City Council,Adults,Independent Sector Placements,Services,05/08/2019,30236819,823.00,Revenue,Richmond Fellowship (The),Residential Care
Peterborough City Council,Adults,Independent Sector Placements,Services,05/08/2019,30236823,1530.60,Revenue,Goldcare Homes t/a The Tudors Care Home,Residential Care
Peterborough City Council,Adults,Independent Sector Placements,Services,05/08/2019,30236825,1252.48,Revenue,Goldcare Homes t/a The Tudors Care Home,Residential Care
Peterborough City Council,Adults,Independent Sector Placements,Services,05/08/2019,30236828,1573.96,Revenue,Goldcare Homes t/a The Tudors Care Home,Residential Care
Peterborough City Council,Adults,Independent Sector Placements,Services,05/08/2019,30236831,939.08,Revenue,BROADLEIGH NURSING HOME,Residential Care
Peterborough City Council,Adults,Independent Sector Placements,Services,05/08/2019,30236832,823.00,Revenue,Richmond Fellowship (The),Residential Care
Peterborough City Council,Adults,Independent Sector Placements,Services,05/08/2019,30236834,1878.16,Revenue,BROADLEIGH NURSING HOME,Residential Care
Peterborough City Council,Adults,Independent Sector Placements,Services,05/08/2019,30236841,920.00,Revenue,Richmond Fellowship (The),Residential Care
Peterborough City Council,Adults,Independent Sector Placements,Services,05/08/2019,30236856,811.00,Revenue,Richmond Fellowship (The),Residential Care
Peterborough City Council,Commissioning and Commercial Operations,Access to Resources & Specialist Commissioning,Services,05/08/2019,30236892,20150.00,Revenue,Hillcrest Children Serv(2)Ltd t/a Options BESD (1) Ltd,Boarding Out Fees
Peterborough City Council,Corporate,Corporate,Non Revenue,05/08/2019,30236903,116245.25,Capital,Bowmer & Kirkland Limited,Building And Site Works
Peterborough City Council,Corporate Property,Office Accomodation,Repair & Maintenance of Buildings,05/08/2019,30236906,138634.53,Revenue,Bowmer & Kirkland Limited,Premises Maintenance
Peterborough City Council,Adults,Independent Sector Placements,Services,05/08/2019,30236928,1683.01,Revenue,Sahara Community Care Services Limited,Home Care
Peterborough City Council,Adults,Independent Sector Placements,Services,05/08/2019,30236929,896.00,Revenue,Sahara Community Care Services Limited,Home Care
Peterborough City Council,Commissioning and Commercial Operations,Access to Resources & Specialist Commissioning,Services,05/08/2019,30236936,780.01,Revenue,Swiis Foster Care Ltd,Boarding Out Fees
Peterborough City Council,Communities,Regulatory Services,Services,05/08/2019,30236939,3950.00,Revenue,Mr Cameron Crowe,Legal Costs
Peterborough City Council,Corporate Property,Commercial Propety,Services,05/08/2019,30237011,5500.00,Revenue,Serco Ltd,Hired Services
Peterborough City Council,Director�s Office,Director�s Office,Services,05/08/2019,30237013,1465.00,Revenue,"Oldham, Mr Peter",Legal Costs
Peterborough City Council,Sustainable Growth Strategy,Natural & Historic Environment,Services,05/08/2019,30237015,2177.25,Revenue,The Wildlife Trust BCN,Conservation And Bio Diversity Projects
Peterborough City Council,Corporate,Corporate,Non Revenue,05/08/2019,30237016,505.00,Capital,8/5 Electrical Ltd,Building And Site Works
Peterborough City Council,"Waste, Cleansing and Open Spaces",Waste & Operational Svs Mgmt,Third Party Payments,05/08/2019,30237068,795031.53,Revenue,Peterborough Limited,Third Party Payments - Contract
Peterborough City Council,Adults,Home Services Delivery Model,Services,05/08/2019,30237070,1819.00,Revenue,Handyman Steve,Contractors
Peterborough City Council,Financial Services,Finance,Agency Staff,05/08/2019,30237071,2976.15,Revenue,Allen Lane,External Temporary Staff
Peterborough City Council,Director,Director,Services,05/08/2019,30237072,1075.33,Revenue,Lincolnshire Wolds Community Trust,Education Expenses
Peterborough City Council,Children�s & Safeguarding,External Education Placements,Services,05/08/2019,30237074,9183.33,Revenue,Red Balloon of the Air,Boarding Out Fees
Peterborough City Council,Adults,Block Contracts,Third Party Payments,05/08/2019,30237114,2353.68,Revenue,Hales Group Ltd,Third Party Payments - Contract
Peterborough City Council,Adults,Block Contracts,Third Party Payments,05/08/2019,30237115,6668.76,Revenue,Hales Group Ltd,Third Party Payments - Contract
Peterborough City Council,Adults,Independent Sector Placements,Services,05/08/2019,30237123,1701.72,Revenue,Goldcare Homes t/a The Tudors Care Home,Residential Care
Peterborough City Council,Communities,Housing,Services,05/08/2019,30237127,9598.20,Revenue,Eastfield Guesthouse,Temporary Accommodation Costs
Peterborough City Council,Communities,Housing,Services,05/08/2019,30237128,13624.14,Revenue,Eastfield Guesthouse,Temporary Accommodation Costs
Peterborough City Council,Adults,Independent Sector Placements,Services,05/08/2019,30237183,910.94,Revenue,Park Vista Care Home,Residential Care
Peterborough City Council,Commissioning and Commercial Operations,Access to Resources & Specialist Commissioning,Services,05/08/2019,30237299,3986.60,Revenue,Next Step Fostering Services Limited,Boarding Out Fees
Peterborough City Council,Adults,Independent Sector Placements,Services,05/08/2019,30237541,910.94,Revenue,Park Vista Care Home,Residential Care
Peterborough City Council,Commissioning and Commercial Operations,Clare Lodge,Agency Staff,05/08/2019,30237871,9368.00,Revenue,Wrixon Care Services,External Temporary Staff
Peterborough City Council,Commissioning and Commercial Operations,Clare Lodge,Services,05/08/2019,30237872,1860.00,Revenue,B & H Projects Ltd,Telephones
Peterborough City Council,Corporate Property,Commercial Propety,Services,05/08/2019,30237893,750.00,Revenue,Eddisons Commercial Ltd t/a Barker Storey Matthews,Professional Services
Peterborough City Council,Adults,Block Contracts,Third Party Payments,05/08/2019,30238063,2353.68,Revenue,Hales Group Ltd,Third Party Payments - Contract
Peterborough City Council,Adults,Block Contracts,Third Party Payments,05/08/2019,30238074,6668.76,Revenue,Hales Group Ltd,Third Party Payments - Contract
Peterborough City Council,Education,Early Years & Quality Improvement,Services,05/08/2019,30238507,1062.95,Revenue,Early Education,Training
Peterborough City Council,Adults,Independent Sector Placements,Services,05/08/2019,30238640,1537.20,Revenue,Caring Crew Ltd,Home Care
Peterborough City Council,Commissioning and Commercial Operations,Access to Resources & Specialist Commissioning,Services,05/08/2019,30238884,1980.00,Revenue,Florinee Homes Ltd,Boarding Out Fees
Peterborough City Council,Commissioning and Commercial Operations,Access to Resources & Specialist Commissioning,Services,05/08/2019,30238885,1980.00,Revenue,Florinee Homes Ltd,Boarding Out Fees
Peterborough City Council,"Waste, Cleansing and Open Spaces",Waste Management,Direct Transport Costs,05/08/2019,30238983,820.96,Revenue,Allstar Business Solutions Ltd.,Petrol
Peterborough City Council,Education,HTS & CSC Transport,Contract Hire and Operating Leases,05/08/2019,30239050,591.00,Revenue,The Taxi Firm Limited,Hired Transport
Peterborough City Council,"Waste, Cleansing and Open Spaces",Waste Management,Services,05/08/2019,30239103,4407.50,Revenue,Browne Jacobson,Legal Costs
Peterborough City Council,Corporate,Corporate,Non Revenue,05/08/2019,30239108,3372.15,Capital,Garfield Builders Ltd,Grant Payment
Peterborough City Council,Corporate,Corporate,Non Revenue,05/08/2019,30239111,16260.00,Capital,M J Greaves,Grant Payment
Peterborough City Council,Corporate Property,Commercial Propety,Rents,05/08/2019,30239189,616.58,Revenue,Redacted Personal Data,Rent
Peterborough City Council,Corporate Property,Commercial Propety,Rents,05/08/2019,30239190,853.60,Revenue,Redacted Personal Data,Rent
Peterborough City Council,Adults,Independent Sector Placements,Services,05/08/2019,30239335,9219.00,Revenue,Caring Crew Ltd,Home Care
Peterborough City Council,Commissioning and Commercial Operations,Access to Resources & Specialist Commissioning,Services,05/08/2019,30239378,2435.71,Revenue,Sixteen Plus Limited,Boarding Out Fees
Peterborough City Council,Corporate,Corporate,Non Revenue,05/08/2019,30239390,10304.00,Capital,Casbon Building Services,Grant Payment
Peterborough City Council,Corporate,Corporate,Non Revenue,05/08/2019,30239391,7901.00,Capital,Garfield Builders Ltd,Grant Payment
Peterborough City Council,Corporate,Corporate,Non Revenue,05/08/2019,30239407,6433.35,Capital,A.F.Construction Services Ltd,Grant Payment
Peterborough City Council,Corporate,Corporate,Non Revenue,05/08/2019,30239413,3760.00,Capital,MORLEY BUILDING SERVICES LTD,Grant Payment
Peterborough City Council,Corporate,Corporate,Non Revenue,05/08/2019,30239416,4388.74,Capital,Gaswise Services Ltd,Grant Payment
Peterborough City Council,Adults,Therapy/Reablement/Community Equipment,"Tools, Equipment, Furniture & Materials",05/08/2019,30239434,651.00,Revenue,P F S Builders & Contractors,Occupational Therapy Equipment
Peterborough City Council,Corporate,Corporate,Non Revenue,05/08/2019,30239448,541557.34,Balance Sheet,Teachers Pensions,Pensions
Peterborough City Council,Corporate,Corporate,Non Revenue,05/08/2019,30239476,5509.28,Balance Sheet,The Prudential Assurance Company Ltd,Pensions
Peterborough City Council,Corporate,Corporate,Non Revenue,05/08/2019,30239477,1233.64,Balance Sheet,The Prudential Assurance Company Ltd,Pensions
Peterborough City Council,Adults,Independent Sector Placements,Services,05/08/2019,8000147411,638.47,Revenue,Caring Crew Ltd,Home Care
Peterborough City Council,Adults,Independent Sector Placements,Services,05/08/2019,8000147412,1601.25,Revenue,Caring Crew Ltd,Home Care
Peterborough City Council,Adults,Independent Sector Placements,Services,05/08/2019,8000147413,1281.00,Revenue,Caring Crew Ltd,Home Care
Peterborough City Council,Adults,Independent Sector Placements,Services,05/08/2019,8000147414,1189.50,Revenue,Caring Crew Ltd,Home Care
Peterborough City Council,Adults,Independent Sector Placements,Services,05/08/2019,8000147416,854.00,Revenue,Caring Crew Ltd,Home Care
Peterborough City Council,Adults,Independent Sector Placements,Services,05/08/2019,8000147417,747.25,Revenue,Caring Crew Ltd,Home Care
Peterborough City Council,Adults,Independent Sector Placements,Services,05/08/2019,8000147418,2379.00,Revenue,Caring Crew Ltd,Home Care
Peterborough City Council,Adults,Independent Sector Placements,Services,05/08/2019,8000147420,1927.09,Revenue,Caring Crew Ltd,Home Care
Peterborough City Council,Adults,Independent Sector Placements,Services,05/08/2019,8000147421,1128.50,Revenue,Caring Crew Ltd,Home Care
Peterborough City Council,Adults,Independent Sector Placements,Services,05/08/2019,8000147423,860.35,Revenue,Caring Crew Ltd,Home Care
Peterborough City Council,Adults,Independent Sector Placements,Services,05/08/2019,8000147424,4270.00,Revenue,Caring Crew Ltd,Home Care
Peterborough City Council,Adults,Independent Sector Placements,Services,05/08/2019,8000147426,976.00,Revenue,Caring Crew Ltd,Home Care
Peterborough City Council,Adults,Independent Sector Placements,Services,05/08/2019,8000147428,1906.25,Revenue,Caring Crew Ltd,Home Care
Peterborough City Council,Adults,Independent Sector Placements,Services,05/08/2019,8000147431,640.50,Revenue,Caring Crew Ltd,Home Care
Peterborough City Council,Adults,Independent Sector Placements,Services,05/08/2019,8000147432,686.25,Revenue,Caring Crew Ltd,Home Care
Peterborough City Council,Adults,Independent Sector Placements,Services,05/08/2019,8000147433,770.63,Revenue,Caring Crew Ltd,Home Care
Peterborough City Council,Adults,Independent Sector Placements,Services,05/08/2019,8000147434,960.75,Revenue,Caring Crew Ltd,Home Care
Peterborough City Council,Adults,Independent Sector Placements,Services,05/08/2019,8000147436,777.75,Revenue,Caring Crew Ltd,Home Care
Peterborough City Council,Adults,Independent Sector Placements,Services,05/08/2019,8000147437,2135.00,Revenue,Caring Crew Ltd,Home Care
Peterborough City Council,Adults,Independent Sector Placements,Services,05/08/2019,8000147438,960.75,Revenue,Caring Crew Ltd,Home Care
Peterborough City Council,Adults,Independent Sector Placements,Services,05/08/2019,8000147439,1254.31,Revenue,Caring Crew Ltd,Home Care
Peterborough City Council,Adults,Independent Sector Placements,Services,05/08/2019,8000147440,834.94,Revenue,Caring Crew Ltd,Home Care
Peterborough City Council,Adults,Independent Sector Placements,Services,05/08/2019,8000147441,2989.00,Revenue,Caring Crew Ltd,Home Care
Peterborough City Council,Adults,Independent Sector Placements,Services,05/08/2019,8000147442,640.50,Revenue,Caring Crew Ltd,Home Care
Peterborough City Council,Adults,Independent Sector Placements,Services,05/08/2019,8000147444,732.00,Revenue,Caring Crew Ltd,Home Care
Peterborough City Council,Adults,Independent Sector Placements,Services,05/08/2019,8000147447,610.00,Revenue,Caring Crew Ltd,Home Care
Peterborough City Council,Adults,Independent Sector Placements,Services,05/08/2019,8000147449,962.28,Revenue,Caring Crew Ltd,Home Care
Peterborough City Council,Adults,Independent Sector Placements,Services,05/08/2019,8000147451,987.44,Revenue,Caring Crew Ltd,Home Care
Peterborough City Council,Adults,Independent Sector Placements,Services,05/08/2019,8000147456,1927.35,Revenue,Caring Crew Ltd,Home Care
Peterborough City Council,Adults,Independent Sector Placements,Services,05/08/2019,8000147458,1980.00,Revenue,Hales Group Ltd,Home Care
Peterborough City Council,Adults,Independent Sector Placements,Services,05/08/2019,8000147461,888.47,Revenue,Hales Group Ltd,Home Care
Peterborough City Council,Adults,Independent Sector Placements,Services,05/08/2019,8000147464,500.05,Revenue,Merit Home Care Ltd,Home Care
Peterborough City Council,Adults,Independent Sector Placements,Services,05/08/2019,8000147466,1335.90,Revenue,Merit Home Care Ltd,Home Care
Peterborough City Council,Adults,Independent Sector Placements,Services,05/08/2019,8000147468,1430.80,Revenue,Merit Home Care Ltd,Home Care
Peterborough City Council,Adults,Independent Sector Placements,Services,05/08/2019,8000147473,598.60,Revenue,Merit Home Care Ltd,Home Care
Peterborough City Council,Adults,Independent Sector Placements,Services,05/08/2019,8000147474,1014.70,Revenue,Merit Home Care Ltd,Home Care
Peterborough City Council,Adults,Independent Sector Placements,Services,05/08/2019,8000147475,930.75,Revenue,Merit Home Care Ltd,Home Care
Peterborough City Council,Adults,Independent Sector Placements,Services,05/08/2019,8000147476,919.80,Revenue,Merit Home Care Ltd,Home Care
Peterborough City Council,Adults,Independent Sector Placements,Services,05/08/2019,8000147480,613.20,Revenue,Merit Home Care Ltd,Home Care
Peterborough City Council,Adults,Independent Sector Placements,Services,05/08/2019,8000147481,1022.00,Revenue,Merit Home Care Ltd,Home Care
Peterborough City Council,Adults,Independent Sector Placements,Services,05/08/2019,8000147486,1499.80,Revenue,Merit Home Care Ltd,Home Care
Peterborough City Council,Adults,Independent Sector Placements,Services,05/08/2019,8000147487,856.80,Revenue,Merit Home Care Ltd,Home Care
Peterborough City Council,Adults,Independent Sector Placements,Services,05/08/2019,8000147488,772.75,Revenue,Merit Home Care Ltd,Home Care
Peterborough City Council,Adults,Independent Sector Placements,Services,05/08/2019,8000147489,535.64,Revenue,Merit Home Care Ltd,Home Care
Peterborough City Council,Adults,Independent Sector Placements,Services,05/08/2019,8000147492,554.66,Revenue,Merit Home Care Ltd,Home Care
Peterborough City Council,Adults,Independent Sector Placements,Services,05/08/2019,8000147494,2264.96,Revenue,Merit Home Care Ltd,Home Care
Peterborough City Council,Adults,Independent Sector Placements,Services,05/08/2019,8000147498,627.31,Revenue,Merit Home Care Ltd,Home Care
Peterborough City Council,Adults,Independent Sector Placements,Services,05/08/2019,8000147499,520.20,Revenue,Merit Home Care Ltd,Home Care
Peterborough City Council,Adults,Independent Sector Placements,Services,05/08/2019,8000147504,3427.76,Revenue,Merit Home Care Ltd,Home Care
Peterborough City Council,Adults,Independent Sector Placements,Services,05/08/2019,8000147505,1453.76,Revenue,Merit Home Care Ltd,Home Care
Peterborough City Council,Adults,Independent Sector Placements,Services,05/08/2019,8000147507,883.82,Revenue,Merit Home Care Ltd,Home Care
Peterborough City Council,Adults,Independent Sector Placements,Services,05/08/2019,8000147509,1621.92,Revenue,Merit Home Care Ltd,Home Care
Peterborough City Council,Adults,Independent Sector Placements,Services,05/08/2019,8000147511,642.60,Revenue,Merit Home Care Ltd,Home Care
Peterborough City Council,Adults,Independent Sector Placements,Services,05/08/2019,8000147518,964.08,Revenue,Merit Home Care Ltd,Home Care
Peterborough City Council,Adults,Independent Sector Placements,Services,05/08/2019,8000147523,1010.08,Revenue,Merit Home Care Ltd,Home Care
Peterborough City Council,Adults,Independent Sector Placements,Services,05/08/2019,8000147524,1920.42,Revenue,Merit Home Care Ltd,Home Care
Peterborough City Council,Adults,Independent Sector Placements,Services,05/08/2019,8000147647,3570.00,Revenue,Hales Group Ltd,Home Care
Peterborough City Council,Adults,Independent Sector Placements,Services,05/08/2019,8000147649,1887.60,Revenue,Hales Group Ltd,Home Care
Peterborough City Council,Adults,Independent Sector Placements,Services,05/08/2019,8000147651,785.62,Revenue,Hales Group Ltd,Home Care
Peterborough City Council,Adults,Independent Sector Placements,Services,05/08/2019,8000147658,658.45,Revenue,Hales Group Ltd,Home Care
Peterborough City Council,Adults,Independent Sector Placements,Services,05/08/2019,8000147660,609.30,Revenue,Hales Group Ltd,Home Care
Peterborough City Council,Adults,Independent Sector Placements,Services,05/08/2019,8000147661,585.00,Revenue,Hales Group Ltd,Home Care
Peterborough City Council,Adults,Independent Sector Placements,Services,05/08/2019,8000147662,825.00,Revenue,Hales Group Ltd,Home Care
Peterborough City Council,Adults,Independent Sector Placements,Services,05/08/2019,8000147663,1651.74,Revenue,Hales Group Ltd,Home Care
Peterborough City Council,Adults,Independent Sector Placements,Services,05/08/2019,8000147665,3150.00,Revenue,Hales Group Ltd,Home Care
Peterborough City Council,Adults,Independent Sector Placements,Services,05/08/2019,8000147666,630.00,Revenue,Hales Group Ltd,Home Care
Peterborough City Council,Adults,Independent Sector Placements,Services,05/08/2019,8000147667,720.00,Revenue,Hales Group Ltd,Home Care
Peterborough City Council,Adults,Independent Sector Placements,Services,05/08/2019,8000147668,1279.60,Revenue,Hales Group Ltd,Home Care
Peterborough City Council,Adults,Independent Sector Placements,Services,05/08/2019,8000147669,705.00,Revenue,Hales Group Ltd,Home Care
Peterborough City Council,Adults,Independent Sector Placements,Services,05/08/2019,8000147670,950.49,Revenue,Hales Group Ltd,Home Care
Peterborough City Council,Adults,Independent Sector Placements,Services,05/08/2019,8000147671,572.21,Revenue,Hales Group Ltd,Home Care
Peterborough City Council,Adults,Independent Sector Placements,Services,05/08/2019,8000147672,542.12,Revenue,Hales Group Ltd,Home Care
Peterborough City Council,Adults,Independent Sector Placements,Services,05/08/2019,8000147673,819.62,Revenue,Hales Group Ltd,Home Care
Peterborough City Council,Adults,Independent Sector Placements,Services,05/08/2019,8000147676,1153.80,Revenue,Hales Group Ltd,Home Care
Peterborough City Council,Adults,Independent Sector Placements,Services,05/08/2019,8000147677,1050.00,Revenue,Hales Group Ltd,Home Care
Peterborough City Council,Adults,Independent Sector Placements,Services,05/08/2019,8000147679,554.63,Revenue,Hales Group Ltd,Home Care
Peterborough City Council,Adults,Independent Sector Placements,Services,05/08/2019,8000147680,1649.82,Revenue,Hales Group Ltd,Home Care
Peterborough City Council,Adults,Independent Sector Placements,Services,05/08/2019,8000147681,565.70,Revenue,Hales Group Ltd,Home Care
Peterborough City Council,Adults,Independent Sector Placements,Services,05/08/2019,8000147682,511.93,Revenue,Hales Group Ltd,Home Care
Peterborough City Council,Adults,Independent Sector Placements,Services,05/08/2019,8000147683,645.00,Revenue,Hales Group Ltd,Home Care
Peterborough City Council,Adults,Independent Sector Placements,Services,05/08/2019,8000147689,1323.92,Revenue,Hales Group Ltd,Home Care
Peterborough City Council,Adults,Independent Sector Placements,Services,05/08/2019,8000147690,588.28,Revenue,Hales Group Ltd,Home Care
Peterborough City Council,Adults,Independent Sector Placements,Services,05/08/2019,8000147693,686.56,Revenue,Hales Group Ltd,Home Care
Peterborough City Council,Adults,Independent Sector Placements,Services,05/08/2019,8000147694,672.35,Revenue,Hales Group Ltd,Home Care
Peterborough City Council,Adults,Independent Sector Placements,Services,05/08/2019,8000147695,581.58,Revenue,Hales Group Ltd,Home Care
Peterborough City Council,Adults,Independent Sector Placements,Services,05/08/2019,8000147696,882.84,Revenue,Hales Group Ltd,Home Care
Peterborough City Council,Adults,Independent Sector Placements,Services,05/08/2019,8000147697,966.28,Revenue,Hales Group Ltd,Home Care
Peterborough City Council,Adults,Independent Sector Placements,Services,05/08/2019,8000147698,672.54,Revenue,Hales Group Ltd,Home Care
Peterborough City Council,Adults,Independent Sector Placements,Services,05/08/2019,8000147700,872.31,Revenue,Hales Group Ltd,Home Care
Peterborough City Council,Adults,Independent Sector Placements,Services,05/08/2019,8000147702,1057.88,Revenue,Hales Group Ltd,Home Care
Peterborough City Council,Adults,Independent Sector Placements,Services,05/08/2019,8000147703,945.79,Revenue,Hales Group Ltd,Home Care
Peterborough City Council,Adults,Independent Sector Placements,Services,05/08/2019,8000147705,1173.05,Revenue,Hales Group Ltd,Home Care
Peterborough City Council,Adults,Independent Sector Placements,Services,05/08/2019,8000147706,970.14,Revenue,Hales Group Ltd,Home Care
Peterborough City Council,Adults,Independent Sector Placements,Services,05/08/2019,8000147707,672.36,Revenue,Hales Group Ltd,Home Care
Peterborough City Council,Adults,Independent Sector Placements,Services,05/08/2019,8000147708,588.56,Revenue,Hales Group Ltd,Home Care
Peterborough City Council,Adults,Independent Sector Placements,Services,05/08/2019,8000147709,588.28,Revenue,Hales Group Ltd,Home Care
Peterborough City Council,Adults,Independent Sector Placements,Services,05/08/2019,8000147711,588.28,Revenue,Hales Group Ltd,Home Care
Peterborough City Council,Adults,Independent Sector Placements,Services,05/08/2019,8000147712,784.28,Revenue,Hales Group Ltd,Home Care
Peterborough City Council,Adults,Independent Sector Placements,Services,05/08/2019,8000147713,2149.94,Revenue,Hales Group Ltd,Home Care
Peterborough City Council,Adults,Independent Sector Placements,Services,05/08/2019,8000147714,2546.18,Revenue,Hales Group Ltd,Home Care
Peterborough City Council,Adults,Independent Sector Placements,Services,05/08/2019,8000147719,2906.68,Revenue,Hales Group Ltd,Home Care
Peterborough City Council,Adults,Independent Sector Placements,Services,05/08/2019,8000147720,574.82,Revenue,Hales Group Ltd,Home Care
Peterborough City Council,Adults,Independent Sector Placements,Services,05/08/2019,8000147722,679.57,Revenue,Hales Group Ltd,Home Care
Peterborough City Council,Adults,Independent Sector Placements,Services,05/08/2019,8000147723,571.04,Revenue,Hales Group Ltd,Home Care
Peterborough City Council,Adults,Independent Sector Placements,Services,05/08/2019,8000147725,854.96,Revenue,Hales Group Ltd,Home Care
Peterborough City Council,Adults,Independent Sector Placements,Services,05/08/2019,8000147726,1274.84,Revenue,Hales Group Ltd,Home Care
Peterborough City Council,Adults,Independent Sector Placements,Services,05/08/2019,8000147728,532.38,Revenue,Hales Group Ltd,Home Care
Peterborough City Council,Adults,Independent Sector Placements,Services,05/08/2019,8000147732,700.36,Revenue,Hales Group Ltd,Home Care
Peterborough City Council,Adults,Independent Sector Placements,Services,05/08/2019,8000147733,1275.12,Revenue,Hales Group Ltd,Home Care
Peterborough City Council,Adults,Independent Sector Placements,Services,05/08/2019,8000147734,676.06,Revenue,Hales Group Ltd,Home Care
Peterborough City Council,Adults,Independent Sector Placements,Services,05/08/2019,8000147809,2196.00,Revenue,Caring Crew Ltd,Home Care
Peterborough City Council,Adults,Independent Sector Placements,Services,05/08/2019,8000147813,1746.38,Revenue,Caring Crew Ltd,Home Care
Peterborough City Council,Adults,Independent Sector Placements,Services,05/08/2019,8000147817,854.00,Revenue,Caring Crew Ltd,Home Care
Peterborough City Council,Adults,Independent Sector Placements,Services,05/08/2019,8000147818,510.88,Revenue,Caring Crew Ltd,Home Care
Peterborough City Council,Adults,Independent Sector Placements,Services,05/08/2019,8000147907,1199.52,Revenue,Longhurst Group Limited,Home Care
Peterborough City Council,Adults,Independent Sector Placements,Services,05/08/2019,8000147908,856.80,Revenue,Longhurst Group Limited,Home Care
Peterborough City Council,Adults,Independent Sector Placements,Services,05/08/2019,8000147910,514.08,Revenue,Longhurst Group Limited,Home Care
Peterborough City Council,Adults,Independent Sector Placements,Services,05/08/2019,8000147911,771.12,Revenue,Longhurst Group Limited,Home Care
Peterborough City Council,Adults,Independent Sector Placements,Services,05/08/2019,8000147912,1542.24,Revenue,Longhurst Group Limited,Home Care
Peterborough City Council,Adults,Independent Sector Placements,Services,05/08/2019,8000147918,685.44,Revenue,Longhurst Group Limited,Home Care
Peterborough City Council,Adults,Independent Sector Placements,Services,05/08/2019,8000147920,599.76,Revenue,Longhurst Group Limited,Home Care
Peterborough City Council,Adults,Independent Sector Placements,Services,05/08/2019,8000147924,581.40,Revenue,Longhurst Group Limited,Home Care
Peterborough City Council,Adults,Independent Sector Placements,Services,05/08/2019,8000147925,2056.32,Revenue,Longhurst Group Limited,Home Care
Peterborough City Council,Adults,Independent Sector Placements,Services,05/08/2019,8000147926,1811.52,Revenue,Longhurst Group Limited,Home Care
Peterborough City Council,Adults,Independent Sector Placements,Services,05/08/2019,8000147927,856.80,Revenue,Longhurst Group Limited,Home Care
Peterborough City Council,Adults,Independent Sector Placements,Services,05/08/2019,8000147928,514.08,Revenue,Longhurst Group Limited,Home Care
Peterborough City Council,Adults,Independent Sector Placements,Services,05/08/2019,8000147930,584.46,Revenue,Longhurst Group Limited,Home Care
Peterborough City Council,Adults,Independent Sector Placements,Services,05/08/2019,8000147931,599.76,Revenue,Longhurst Group Limited,Home Care
Peterborough City Council,Adults,Independent Sector Placements,Services,05/08/2019,8000148037,720.00,Revenue,Hales Group Ltd,Home Care
Peterborough City Council,Adults,Independent Sector Placements,Services,05/08/2019,8000148040,538.28,Revenue,Hales Group Ltd,Home Care
Peterborough City Council,Adults,Independent Sector Placements,Services,05/08/2019,8000148041,760.24,Revenue,Hales Group Ltd,Home Care
Peterborough City Council,Adults,Independent Sector Placements,Services,05/08/2019,8000148042,1352.71,Revenue,Hales Group Ltd,Home Care
Peterborough City Council,Adults,Independent Sector Placements,Services,05/08/2019,8000148045,732.07,Revenue,Hales Group Ltd,Home Care
Peterborough City Council,Adults,Independent Sector Placements,Services,05/08/2019,8000148048,553.45,Revenue,Hales Group Ltd,Home Care
Peterborough City Council,Adults,Independent Sector Placements,Services,05/08/2019,8000148750,2452.45,Revenue,Caring Crew Ltd,Home Care
Peterborough City Council,Adults,Independent Sector Placements,Services,05/08/2019,8000148796,660.77,Revenue,Atlas Care Services Ltd,Home Care
Peterborough City Council,Adults,Independent Sector Placements,Services,05/08/2019,8000148799,533.21,Revenue,Atlas Care Services Ltd,Home Care
Peterborough City Council,Adults,Independent Sector Placements,Services,05/08/2019,8000148801,1519.64,Revenue,Hales Group Ltd,Home Care
Peterborough City Council,Adults,Independent Sector Placements,Services,05/08/2019,8000148805,540.20,Revenue,Merit Home Care Ltd,Home Care
Peterborough City Council,Adults,Independent Sector Placements,Services,05/08/2019,8000148809,684.93,Revenue,Merit Home Care Ltd,Home Care
Peterborough City Council,Adults,Independent Sector Placements,Services,05/08/2019,8000148823,1877.46,Revenue,Atlas Care Services Ltd,Home Care
Peterborough City Council,Adults,Independent Sector Placements,Services,05/08/2019,8000148824,2717.98,Revenue,Atlas Care Services Ltd,Home Care
Peterborough City Council,Adults,Independent Sector Placements,Services,05/08/2019,8000148826,1851.49,Revenue,Atlas Care Services Ltd,Home Care
Peterborough City Council,Adults,Independent Sector Placements,Services,05/08/2019,8000148827,658.16,Revenue,Atlas Care Services Ltd,Home Care
Peterborough City Council,Education,HTS & CSC Transport,Contract Hire and Operating Leases,07/08/2019,30234641,-6617.82,Revenue,Cambridgeshire County Council,Hired Transport
Peterborough City Council,Commissioning and Commercial Operations,Access to Resources & Specialist Commissioning,Services,07/08/2019,30235654,15948.88,Revenue,Cambian Childcare Ltd,Boarding Out Fees
Peterborough City Council,Commissioning and Commercial Operations,Access to Resources & Specialist Commissioning,Services,07/08/2019,30235655,16164.33,Revenue,Cambian Childcare Ltd,Boarding Out Fees
Peterborough City Council,Commissioning and Commercial Operations,Access to Resources & Specialist Commissioning,Services,07/08/2019,30235656,3542.99,Revenue,Cambian Childcare Ltd,Boarding Out Fees
Peterborough City Council,Commissioning and Commercial Operations,Access to Resources & Specialist Commissioning,Services,07/08/2019,30235657,2208.13,Revenue,Cambian Childcare Ltd,Boarding Out Fees
Peterborough City Council,Commissioning and Commercial Operations,Access to Resources & Specialist Commissioning,Services,07/08/2019,30235658,3542.99,Revenue,Cambian Childcare Ltd,Boarding Out Fees
Peterborough City Council,Commissioning and Commercial Operations,Access to Resources & Specialist Commissioning,Services,07/08/2019,30235659,19614.01,Revenue,Cambian Childcare Ltd,Boarding Out Fees
Peterborough City Council,"Waste, Cleansing and Open Spaces",Waste Management,Services,07/08/2019,30236452,8805.77,Revenue,FCC Recycling (UK) Limited,Recycling
Peterborough City Council,"Waste, Cleansing and Open Spaces",Waste Management,Services,07/08/2019,30236453,2500.65,Revenue,FCC Recycling (UK) Limited,Recycling
Peterborough City Council,"Waste, Cleansing and Open Spaces",Waste Management,Services,07/08/2019,30236458,10840.32,Revenue,FCC Recycling (UK) Limited,Recycling
Peterborough City Council,Peterborough Highway Services,Highway Services - HoS,Services,07/08/2019,30236591,20730.13,Revenue,Cambridgeshire County Council,Hired Services
Peterborough City Council,Peterborough Highway Services,Highway Services - HoS,Services,07/08/2019,30236592,18160.83,Revenue,Cambridgeshire County Council,Hired Services
Peterborough City Council,Commissioning and Commercial Operations,Access to Resources & Specialist Commissioning,Services,07/08/2019,30236601,12400.00,Revenue,Horizon Care & Education Group,Boarding Out Fees
Peterborough City Council,Communities,Targeted Youth Service,Services,07/08/2019,30236755,630.00,Revenue,British Youth Council,Youth Programmes
Peterborough City Council,Commissioning and Commercial Operations,Commissioning,Services,07/08/2019,30236926,590.71,Revenue,121 Social Care Limited,Hired Services
Peterborough City Council,Communities,Community Safety,Catering,07/08/2019,30237018,859.00,Revenue,Family Voice Peterborough,Hospitality
Peterborough City Council,Corporate,Corporate,Non Revenue,07/08/2019,30237019,3995.00,Capital,Ace 4 Digital,Furniture And Equipment Purchase
Peterborough City Council,Legal Services,Legal Services,Agency Staff,07/08/2019,30237030,2062.50,Revenue,Venn Group Ltd,External Temporary Staff
Peterborough City Council,Legal Services,Legal Services,Agency Staff,07/08/2019,30237031,1026.89,Revenue,Venn Group Ltd,External Temporary Staff
Peterborough City Council,Legal Services,Legal Services,Agency Staff,07/08/2019,30237033,665.84,Revenue,Venn Group Ltd,External Temporary Staff
Peterborough City Council,Legal Services,Legal Services,Agency Staff,07/08/2019,30237034,1091.89,Revenue,Venn Group Ltd,External Temporary Staff
Peterborough City Council,Adults,Independent Sector Placements,Services,07/08/2019,30237111,6320.44,Revenue,NORTH EAST AUTISM SOCIETY,Residential Care
Peterborough City Council,Adults,Independent Sector Placements,Services,07/08/2019,30237204,7509.60,Revenue,SOCIAL CARE SOLUTIONS LTD,Home Care
Peterborough City Council,Adults,Independent Sector Placements,Services,07/08/2019,30237205,3000.00,Revenue,SOCIAL CARE SOLUTIONS LTD,Home Care
Peterborough City Council,Adults,Independent Sector Placements,Services,07/08/2019,30237207,2472.64,Revenue,SOCIAL CARE SOLUTIONS LTD,Home Care
Peterborough City Council,Adults,Independent Sector Placements,Services,07/08/2019,30237208,7699.80,Revenue,SOCIAL CARE SOLUTIONS LTD,Home Care
Peterborough City Council,Adults,Independent Sector Placements,Services,07/08/2019,30237209,2462.44,Revenue,SOCIAL CARE SOLUTIONS LTD,Home Care
Peterborough City Council,Legal Services,Legal Services,Agency Staff,07/08/2019,30237280,661.15,Revenue,Venn Group Ltd,External Temporary Staff
Peterborough City Council,Director of Governance,Gov HOS,Agency Staff,07/08/2019,30237281,2142.51,Revenue,Venn Group Ltd,External Temporary Staff
Peterborough City Council,Education,Special Educational Needs / Inclusion,Services,07/08/2019,30237359,1040.00,Revenue,Top Class Tutors,Education Expenses
Peterborough City Council,Communities,Housing,Services,07/08/2019,30237364,8443.83,Revenue,DA Rosalia Hotel,Temporary Accommodation Costs
Peterborough City Council,Adults,Independent Sector Placements,Services,07/08/2019,30237401,4800.00,Revenue,FIELD HOUSE (EYE) LTD,Residential Care
Peterborough City Council,Adults,Independent Sector Placements,Services,07/08/2019,30237403,1800.00,Revenue,FIELD HOUSE (EYE) LTD,Residential Care
Peterborough City Council,Adults,Independent Sector Placements,Services,07/08/2019,30237406,3600.00,Revenue,FIELD HOUSE (EYE) LTD,Residential Care
Peterborough City Council,Adults,Independent Sector Placements,Services,07/08/2019,30237428,4971.43,Revenue,FIELD HOUSE (EYE) LTD,Residential Care
Peterborough City Council,Adults,Independent Sector Placements,Services,07/08/2019,30237432,1457.14,Revenue,FIELD HOUSE (EYE) LTD,Residential Care
Peterborough City Council,Legal Services,Legal Services,Services,07/08/2019,30237447,850.00,Revenue,"Elliott, Ms Margot",Legal Costs
Peterborough City Council,Adults,Independent Sector Placements,Services,07/08/2019,30237463,8049.72,Revenue,Community Care Solutions Ltd,Residential Care
Peterborough City Council,Adults,Independent Sector Placements,Services,07/08/2019,30237464,5600.00,Revenue,Community Care Solutions Ltd,Residential Care
Peterborough City Council,Education,Special Educational Needs / Inclusion,Services,07/08/2019,30237476,1600.00,Revenue,Top Class Tutors,Education Expenses
Peterborough City Council,Education,Special Educational Needs / Inclusion,Services,07/08/2019,30237477,560.00,Revenue,Top Class Tutors,Education Expenses
Peterborough City Council,Education,Special Educational Needs / Inclusion,Services,07/08/2019,30237478,1600.00,Revenue,Top Class Tutors,Education Expenses
Peterborough City Council,Commissioning and Commercial Operations,Access to Resources & Specialist Commissioning,Services,07/08/2019,30237486,8400.00,Revenue,A & T Home Limited,Boarding Out Fees
Peterborough City Council,Director,Director,Services,07/08/2019,30237542,1860.00,Revenue,Association of Directors of Adult Social Services (ADASS),Subscriptions
Peterborough City Council,Adults,Independent Sector Placements,Services,07/08/2019,30237543,1835.85,Revenue,South West Care Homes LTD (The Firs),Residential Care
Peterborough City Council,Adults,Independent Sector Placements,Services,07/08/2019,30237544,5079.36,Revenue,LEONARD CHESHIRE DISABILITY,Residential Care
Peterborough City Council,Adults,Independent Sector Placements,Services,07/08/2019,30237547,2690.04,Revenue,LEONARD CHESHIRE DISABILITY,Residential Care
Peterborough City Council,Commissioning and Commercial Operations,Clare Lodge,Catering,07/08/2019,30237552,571.80,Revenue,King Bros Lady Lodge Ltd,Catering Provisions
Peterborough City Council,Peterborough Highway Services,Network and Traffic Management,Services,07/08/2019,30237556,1092.01,Revenue,JPIMedia Publishing Ltd,Advertising
Peterborough City Council,Commissioning and Commercial Operations,Access to Resources & Specialist Commissioning,Services,07/08/2019,30237558,3432.63,Revenue,St Christopher�s Fellowship,Boarding Out Fees
Peterborough City Council,Commissioning and Commercial Operations,Access to Resources & Specialist Commissioning,Services,07/08/2019,30237559,3432.63,Revenue,St Christopher�s Fellowship,Boarding Out Fees
Peterborough City Council,Constitutional Services,Elections,Services,07/08/2019,30237644,8443.20,Revenue,Electoral Reform Services,Postage
Peterborough City Council,Corporate,Corporate,Non Revenue,07/08/2019,30237647,2910.00,Capital,Imperial Civil Enforcement Solutions Limited,Computer Software
Peterborough City Council,"Waste, Cleansing and Open Spaces",Waste Management,"Tools, Equipment, Furniture & Materials",07/08/2019,30237664,1274.84,Revenue,Serco Ltd,Computer Hardware
Peterborough City Council,Commissioning and Commercial Operations,Access to Resources & Specialist Commissioning,Services,07/08/2019,30237689,12936.00,Revenue,Positive Steps (Care Services) Ltd,Boarding Out Fees
Peterborough City Council,Children�s & Safeguarding,Children�s Social Care,Relocation,07/08/2019,30237691,4197.44,Revenue,Tripod Partners Ltd,Relocation Expenses
Peterborough City Council,Development and Construction,Planning Compliance,Agency Staff,07/08/2019,30237692,1802.70,Revenue,Park Avenue Recruitment Limited,External Temporary Staff
Peterborough City Council,Corporate,Corporate,Non Revenue,07/08/2019,30237708,14085.00,Capital,M J Greaves,Grant Payment
Peterborough City Council,Children�s & Safeguarding,External Education Placements,Services,07/08/2019,30237710,3955.12,Revenue,Leicester City Council,Out Of Area Education Costs
Peterborough City Council,Westcombe Engineering,Westcombe Engineering,"Tools, Equipment, Furniture & Materials",07/08/2019,30237712,675.75,Revenue,Peterborough Plating Ltd,Materials
Peterborough City Council,Peterborough Highway Services,Highway & Drainage Control,Agency Staff,07/08/2019,30237714,735.00,Revenue,Matchtech,External Temporary Staff
Peterborough City Council,Children�s & Safeguarding,Early Help ASC/CSC,Services,07/08/2019,30237716,15225.00,Revenue,Mind Of My Own Ltd,Computer Software
Peterborough City Council,Peterborough Highway Services,Asset & Contract Performance,Services,07/08/2019,30237729,1273.00,Revenue,APSE,Subscriptions
Peterborough City Council,Communities,Targeted Youth Service,Services,07/08/2019,30237883,9300.00,Revenue,Boundless Outdoors Ltd,Youth Programmes
Peterborough City Council,Communities,Targeted Youth Service,Services,07/08/2019,30237887,7950.00,Revenue,Boundless Outdoors Ltd,Youth Programmes
Peterborough City Council,Education,School Standards & Effectiveness,Rents,07/08/2019,30237897,1920.00,Revenue,Kingsgate Trading Ltd,Hire Of Premises
Peterborough City Council,Westcombe Engineering,Westcombe Engineering,"Tools, Equipment, Furniture & Materials",07/08/2019,30237944,1202.30,Revenue,AALCO,Materials
Peterborough City Council,Westcombe Engineering,Westcombe Engineering,"Tools, Equipment, Furniture & Materials",07/08/2019,30237945,1157.70,Revenue,AALCO,Materials
Peterborough City Council,Commissioning and Commercial Operations,Clare Lodge,Agency Staff,07/08/2019,30237955,712.06,Revenue,Randstad Care Ltd,External Temporary Staff
Peterborough City Council,Peterborough Highway Services,Highway & Drainage Control,Services,07/08/2019,30237971,860.00,Revenue,Street Arts Hire Ltd,Hired Services
Peterborough City Council,Children�s & Safeguarding,Early Help ASC/CSC,Services,07/08/2019,30237972,2574.00,Revenue,BDP Social Care Ltd,Hired Services
Peterborough City Council,Legal Services,Legal Services,Services,07/08/2019,30237973,850.00,Revenue,"Walji, Miss Shabnam",Legal Costs
Peterborough City Council,Legal Services,Legal Services,Services,07/08/2019,30237974,1950.00,Revenue,"Bramwell, Mr Christopher",Legal Costs
Peterborough City Council,Commissioning and Commercial Operations,Commissioning,Services,07/08/2019,30237975,1188.00,Revenue,BDP Social Care Ltd,Hired Services
Peterborough City Council,ICT,ICT,Services,07/08/2019,30238082,1049.75,Revenue,MLL Telecom Limited,Internet
Peterborough City Council,Westcombe Engineering,Westcombe Engineering,"Tools, Equipment, Furniture & Materials",07/08/2019,30238093,796.70,Revenue,Carillon Industrial Services Ltd,Tools
Peterborough City Council,Constitutional Services,Elections,Services,07/08/2019,30238104,3750.00,Revenue,"Straker, Mr Timothy QC",Legal Costs
Peterborough City Council,Adults,Independent Sector Placements,Services,07/08/2019,30238457,1138.62,Revenue,Park Vista Care Home,Residential Care
Peterborough City Council,HR,HR WFD & Training,Services,07/08/2019,30238468,2232.50,Revenue,Daisy Bogg Consutlancy Ltd,Training
Peterborough City Council,Corporate,Corporate,Non Revenue,07/08/2019,30238480,2700.00,Capital,Eastern Shires Purchasing Organisation,Furniture And Equipment Purchase
Peterborough City Council,Corporate,Corporate,Non Revenue,07/08/2019,30238541,8418.46,Capital,Rawheat Heating & Plumbing Eng.,Building And Site Works
Peterborough City Council,Corporate,Corporate,Non Revenue,07/08/2019,30238542,5112.46,Capital,Rawheat Heating & Plumbing Eng.,Building And Site Works
Peterborough City Council,Westcombe Engineering,Westcombe Engineering,"Tools, Equipment, Furniture & Materials",07/08/2019,30238583,1711.50,Revenue,Barron Clark Castings Ltd,Materials
Peterborough City Council,Legal Services,Legal Services,Services,07/08/2019,30238650,1620.00,Revenue,"Bennett, Mr Jonathan",Legal Costs
Peterborough City Council,Development and Construction,Development Management,Agency Staff,07/08/2019,30238837,1467.87,Revenue,Reed Specialist Recruitment Limited,External Temporary Staff
Peterborough City Council,Public Health,PH Commissioning,Third Party Payments,07/08/2019,30238859,1044.65,Revenue,Brighton and Sussex University Hospitals,Third Party Payments - Contract
Peterborough City Council,Adults,Independent Sector Placements,Services,07/08/2019,30238870,500.00,Revenue,RegionalCare,Home Care
Peterborough City Council,Adults,Independent Sector Placements,Services,07/08/2019,30238871,1827.00,Revenue,RegionalCare,Home Care
Peterborough City Council,Adults,Independent Sector Placements,Services,07/08/2019,30238872,609.00,Revenue,RegionalCare,Home Care
Peterborough City Council,Adults,Independent Sector Placements,Services,07/08/2019,30238874,1015.00,Revenue,RegionalCare,Home Care
Peterborough City Council,Adults,Independent Sector Placements,Services,07/08/2019,30238876,2001.00,Revenue,RegionalCare,Home Care
Peterborough City Council,Adults,Independent Sector Placements,Services,07/08/2019,30238878,1696.50,Revenue,RegionalCare,Home Care
Peterborough City Council,Adults,Independent Sector Placements,Services,07/08/2019,30238881,2030.00,Revenue,RegionalCare,Home Care
Peterborough City Council,Legal Services,Legal Services,Agency Staff,07/08/2019,30238883,1032.46,Revenue,Reed Specialist Recruitment Limited,External Temporary Staff
Peterborough City Council,Public Health,PH Commissioning,Third Party Payments,07/08/2019,30238891,923.00,Revenue,Cambridgeshire Community Services,Third Party Payments - Contract
Peterborough City Council,Peterborough Highway Services,Highway Services - HoS,Agency Staff,07/08/2019,30238901,1235.80,Revenue,Reed Specialist Recruitment Limited,External Temporary Staff
Peterborough City Council,Legal Services,Legal Services,Agency Staff,07/08/2019,30238902,1772.75,Revenue,Reed Specialist Recruitment Limited,External Temporary Staff
Peterborough City Council,Commissioning and Commercial Operations,Clare Lodge,Agency Staff,07/08/2019,30239059,988.75,Revenue,Teaching Personnel Ltd,Supply Teachers
Peterborough City Council,"Cemeteries, Cremation & Registrars",Bereavement Service,Services,07/08/2019,30239072,1651.00,Revenue,Anglia Co-operative Funerals,Contract Funerals
Peterborough City Council,Adults,Mental Capacity Act & DoLs,Services,07/08/2019,30239125,593.68,Revenue,Dr Gino Maurice Hervel,Hired Services
Peterborough City Council,Education,Special Educational Needs / Inclusion,Services,07/08/2019,30239204,616.49,Revenue,Children�s Therapy Solutions Ltd,Occupational Health
Peterborough City Council,Education,Special Educational Needs / Inclusion,Services,07/08/2019,30239209,681.91,Revenue,Children�s Therapy Solutions Ltd,Occupational Health
Peterborough City Council,Commissioning and Commercial Operations,Access to Resources & Specialist Commissioning,Services,07/08/2019,30239410,3400.04,Revenue,Maze Independent Care Ltd,Boarding Out Fees
Peterborough City Council,Commissioning and Commercial Operations,Access to Resources & Specialist Commissioning,Services,07/08/2019,30239489,21921.34,Revenue,Cambian Childcare Ltd,Boarding Out Fees
Peterborough City Council,Communities,Cohesion,Third Party Payments,07/08/2019,30239492,1153.75,Revenue,Peterborough Vytis Community,Grant-Third Party
Peterborough City Council,Children�s & Safeguarding,External Education Placements,Services,07/08/2019,30239552,1737.50,Revenue,Kirkstone House School,Out Of Area Education Costs
Peterborough City Council,Communities,Cohesion,Third Party Payments,07/08/2019,30239567,3970.89,Revenue,PETERBOROUGH FOOTBALL & SPORTS DEVELOPMENT FOUNDATION,Grant-Third Party
Peterborough City Council,Commissioning and Commercial Operations,Commissioning,Services,07/08/2019,30239594,26584.00,Revenue,NewArk Play Association Ltd,Hired Services
Peterborough City Council,Children�s & Safeguarding,Children�s Social Care,Agency Staff,07/08/2019,30239707,5124.26,Revenue,Liquid Personnel,External Temporary Staff
Peterborough City Council,Education,HTS & CSC Transport,Contract Hire and Operating Leases,07/08/2019,8000147597,1388.08,Revenue,Peterborough Cars,Hired Transport
Peterborough City Council,Education,HTS & CSC Transport,Contract Hire and Operating Leases,07/08/2019,8000147598,846.96,Revenue,Peterborough Cars,Hired Transport
Peterborough City Council,Education,HTS & CSC Transport,Contract Hire and Operating Leases,07/08/2019,8000147600,2188.00,Revenue,Goldstar Cabs Ltd,Hired Transport
Peterborough City Council,Adults,Independent Sector Placements,Services,07/08/2019,8000147937,2837.08,Revenue,Augusta Care Ltd,Home Care
Peterborough City Council,Adults,Independent Sector Placements,Services,07/08/2019,8000147938,4115.08,Revenue,Augusta Care Ltd,Home Care
Peterborough City Council,Adults,Independent Sector Placements,Services,07/08/2019,8000147940,681.60,Revenue,Augusta Care Ltd,Home Care
Peterborough City Council,Adults,Independent Sector Placements,Services,07/08/2019,8000147941,932.76,Revenue,Augusta Care Ltd,Home Care
Peterborough City Council,Adults,Independent Sector Placements,Services,07/08/2019,8000147942,6614.72,Revenue,Augusta Care Ltd,Home Care
Peterborough City Council,Adults,Independent Sector Placements,Services,07/08/2019,8000147943,4100.08,Revenue,Augusta Care Ltd,Home Care
Peterborough City Council,Adults,Independent Sector Placements,Services,07/08/2019,8000147944,2964.08,Revenue,Augusta Care Ltd,Home Care
Peterborough City Council,Adults,Independent Sector Placements,Services,07/08/2019,8000147945,1400.12,Revenue,Augusta Care Ltd,Home Care
Peterborough City Council,Adults,Independent Sector Placements,Services,07/08/2019,8000147946,1513.72,Revenue,Augusta Care Ltd,Home Care
Peterborough City Council,Adults,Independent Sector Placements,Services,07/08/2019,8000147947,2862.72,Revenue,Augusta Care Ltd,Home Care
Peterborough City Council,Adults,Independent Sector Placements,Services,07/08/2019,8000147948,4843.00,Revenue,Augusta Care Ltd,Home Care
Peterborough City Council,Adults,Independent Sector Placements,Services,07/08/2019,8000147949,3669.92,Revenue,Augusta Care Ltd,Home Care
Peterborough City Council,Adults,Independent Sector Placements,Services,07/08/2019,8000147950,4710.68,Revenue,Augusta Care Ltd,Home Care
Peterborough City Council,Adults,Independent Sector Placements,Services,07/08/2019,8000147951,4881.08,Revenue,Augusta Care Ltd,Home Care
Peterborough City Council,Adults,Independent Sector Placements,Services,07/08/2019,8000147952,2234.08,Revenue,Augusta Care Ltd,Home Care
Peterborough City Council,Adults,Independent Sector Placements,Services,07/08/2019,8000147953,6838.44,Revenue,Augusta Care Ltd,Home Care
Peterborough City Council,Adults,Independent Sector Placements,Services,07/08/2019,8000147954,1590.40,Revenue,Augusta Care Ltd,Home Care
Peterborough City Council,Adults,Independent Sector Placements,Services,07/08/2019,8000147955,1590.40,Revenue,Augusta Care Ltd,Home Care
Peterborough City Council,Adults,Independent Sector Placements,Services,07/08/2019,8000147956,4367.64,Revenue,Augusta Care Ltd,Home Care
Peterborough City Council,Adults,Independent Sector Placements,Services,07/08/2019,8000147957,4367.64,Revenue,Augusta Care Ltd,Home Care
Peterborough City Council,Adults,Independent Sector Placements,Services,07/08/2019,8000147959,2406.56,Revenue,Augusta Care Ltd,Home Care
Peterborough City Council,Adults,Independent Sector Placements,Services,07/08/2019,8000147960,5014.88,Revenue,Augusta Care Ltd,Home Care
Peterborough City Council,Adults,Independent Sector Placements,Services,07/08/2019,8000147961,1521.20,Revenue,Augusta Care Ltd,Home Care
Peterborough City Council,Adults,Independent Sector Placements,Services,07/08/2019,8000147962,1178.60,Revenue,Augusta Care Ltd,Home Care
Peterborough City Council,Adults,Independent Sector Placements,Services,07/08/2019,8000147963,7916.16,Revenue,Augusta Care Ltd,Home Care
Peterborough City Council,Adults,Independent Sector Placements,Services,07/08/2019,8000147965,3597.24,Revenue,Augusta Care Ltd,Home Care
Peterborough City Council,Adults,Independent Sector Placements,Services,07/08/2019,8000147966,11132.80,Revenue,Augusta Care Ltd,Home Care
Peterborough City Council,Adults,Independent Sector Placements,Services,07/08/2019,8000147967,1604.60,Revenue,Augusta Care Ltd,Home Care
Peterborough City Council,Adults,Independent Sector Placements,Services,07/08/2019,8000147968,3592.60,Revenue,Augusta Care Ltd,Home Care
Peterborough City Council,Adults,Independent Sector Placements,Services,07/08/2019,8000147969,2825.80,Revenue,Augusta Care Ltd,Home Care
Peterborough City Council,Adults,Independent Sector Placements,Services,07/08/2019,8000147970,17774.40,Revenue,Augusta Care Ltd,Home Care
Peterborough City Council,Adults,Independent Sector Placements,Services,07/08/2019,8000147971,908.80,Revenue,Augusta Care Ltd,Home Care
Peterborough City Council,Adults,Independent Sector Placements,Services,07/08/2019,8000147972,8110.48,Revenue,Augusta Care Ltd,Home Care
Peterborough City Council,Adults,Independent Sector Placements,Services,07/08/2019,8000147973,1192.80,Revenue,Augusta Care Ltd,Home Care
Peterborough City Council,Adults,Independent Sector Placements,Services,07/08/2019,8000147974,2139.44,Revenue,Augusta Care Ltd,Home Care
Peterborough City Council,Adults,Independent Sector Placements,Services,07/08/2019,8000147975,1798.68,Revenue,Augusta Care Ltd,Home Care
Peterborough City Council,Adults,Independent Sector Placements,Services,07/08/2019,8000147976,2688.20,Revenue,Augusta Care Ltd,Home Care
Peterborough City Council,Adults,Independent Sector Placements,Services,07/08/2019,8000147977,2234.12,Revenue,Augusta Care Ltd,Home Care
Peterborough City Council,Adults,Independent Sector Placements,Services,07/08/2019,8000147978,2399.76,Revenue,Augusta Care Ltd,Home Care
Peterborough City Council,Adults,Independent Sector Placements,Services,07/08/2019,8000147979,2343.00,Revenue,Augusta Care Ltd,Home Care
Peterborough City Council,Adults,Independent Sector Placements,Services,07/08/2019,8000147980,2683.80,Revenue,Augusta Care Ltd,Home Care
Peterborough City Council,Adults,Independent Sector Placements,Services,07/08/2019,8000147981,2173.16,Revenue,Augusta Care Ltd,Home Care
Peterborough City Council,Adults,Independent Sector Placements,Services,07/08/2019,8000147982,3280.20,Revenue,Augusta Care Ltd,Home Care
Peterborough City Council,Adults,Independent Sector Placements,Services,07/08/2019,8000147983,2740.60,Revenue,Augusta Care Ltd,Home Care
Peterborough City Council,Adults,Independent Sector Placements,Services,07/08/2019,8000147984,6548.24,Revenue,Augusta Care Ltd,Home Care
Peterborough City Council,Adults,Independent Sector Placements,Services,07/08/2019,8000147985,630.44,Revenue,Augusta Care Ltd,Home Care
Peterborough City Council,Adults,Independent Sector Placements,Services,07/08/2019,8000148051,1628.24,Revenue,Augusta Care Ltd,Home Care
Peterborough City Council,Education,HTS & CSC Transport,Contract Hire and Operating Leases,07/08/2019,8000148850,880.60,Revenue,A2B Euro Cars,Hired Transport
Peterborough City Council,Education,HTS & CSC Transport,Contract Hire and Operating Leases,07/08/2019,8000148853,1391.92,Revenue,A2B Euro Cars,Hired Transport
Peterborough City Council,Education,HTS & CSC Transport,Contract Hire and Operating Leases,07/08/2019,8000148858,819.20,Revenue,A2B Euro Cars,Hired Transport
Peterborough City Council,Education,HTS & CSC Transport,Contract Hire and Operating Leases,07/08/2019,8000148868,1008.08,Revenue,Goldstar Cabs Ltd,Hired Transport
Peterborough City Council,Education,HTS & CSC Transport,Contract Hire and Operating Leases,07/08/2019,8000148869,945.00,Revenue,Goldstar Cabs Ltd,Hired Transport
Peterborough City Council,Education,HTS & CSC Transport,Contract Hire and Operating Leases,07/08/2019,8000148871,3705.00,Revenue,Marks Passenger Services Ltd,Hired Transport
Peterborough City Council,Education,HTS & CSC Transport,Contract Hire and Operating Leases,07/08/2019,8000148872,3128.58,Revenue,Marks Passenger Services Ltd,Hired Transport
Peterborough City Council,Education,Special Educational Needs / Inclusion,Agency Staff,09/08/2019,30230143,2200.00,Revenue,Permanent Futures Ltd,External Temporary Staff
Peterborough City Council,Corporate,Corporate,Non Revenue,09/08/2019,30230662,7550.00,Capital,Permanent Futures Ltd,Consultants Fees
Peterborough City Council,Peterborough Highway Services,Network and Traffic Management,Services,09/08/2019,30230764,7432.29,Revenue,British Telecom PLC,Telephones
Peterborough City Council,Children�s & Safeguarding,Commissioning - CSC,Services,09/08/2019,30234751,1085.55,Revenue,K2 CARE LTD,Purchased Social Care Services
Peterborough City Council,Adults,Independent Sector Placements,Services,09/08/2019,30235440,888.16,Revenue,Avery House (Peterborough) t/a Brighterkind,Residential Care
Peterborough City Council,Children�s & Safeguarding,Children�s Social Care,Transport Expenses,09/08/2019,30235691,5478.10,Revenue,R S P LTD,Public Transport
Peterborough City Council,Commissioning and Commercial Operations,Commissioning,Services,09/08/2019,30236077,3004.40,Revenue,Carter Brown The Expert Service Limited,Hired Services
Peterborough City Council,Commissioning and Commercial Operations,Access to Resources & Specialist Commissioning,Services,09/08/2019,30236711,2982.90,Revenue,Key2 Futures Limited,Boarding Out Fees
Peterborough City Council,Peterborough Highway Services,Transport & Infrastructure Commissioning,Services,09/08/2019,30237121,758.33,Revenue,Cyclescheme Ltd,Cycling
Peterborough City Council,Peterborough Highway Services,Transport & Infrastructure Commissioning,Services,09/08/2019,30237122,833.33,Revenue,Cyclescheme Ltd,Cycling
Peterborough City Council,Adults,Mental Capacity Act & DoLs,Services,09/08/2019,30237488,1504.00,Revenue,Raj Medical Consultancy Limited,Hired Services
Peterborough City Council,Adults,Independent Sector Placements,Services,09/08/2019,30237548,1434.72,Revenue,Avery House (Peterborough) t/a Brighterkind,Residential Care
Peterborough City Council,HR,HR WFD & Training,Services,09/08/2019,30237725,1850.00,Revenue,Kingsley Knight Law Limited,Training
Peterborough City Council,Children�s & Safeguarding,Commissioning - CSC,Services,09/08/2019,30237726,1068.09,Revenue,K2 CARE LTD,Purchased Social Care Services
Peterborough City Council,Communities,Targeted Youth Service,Transport Expenses,09/08/2019,30238047,1950.00,Revenue,Stagecoach in Peterborough,Public Transport
Peterborough City Council,Corporate,Corporate,Non Revenue,09/08/2019,30238127,11000.00,Capital,Permanent Futures Ltd,Consultants Fees
Peterborough City Council,Education,Special Educational Needs / Inclusion,Agency Staff,09/08/2019,30238130,5565.00,Revenue,Permanent Futures Ltd,External Temporary Staff
Peterborough City Council,Education,Special Educational Needs / Inclusion,Agency Staff,09/08/2019,30238131,1100.00,Revenue,Permanent Futures Ltd,External Temporary Staff
Peterborough City Council,Education,Special Educational Needs / Inclusion,Agency Staff,09/08/2019,30238132,1100.00,Revenue,Permanent Futures Ltd,External Temporary Staff
Peterborough City Council,Education,Special Educational Needs / Inclusion,Agency Staff,09/08/2019,30238133,1100.00,Revenue,Permanent Futures Ltd,External Temporary Staff
Peterborough City Council,Education,Special Educational Needs / Inclusion,Agency Staff,09/08/2019,30238134,1100.00,Revenue,Permanent Futures Ltd,External Temporary Staff
Peterborough City Council,Corporate,Corporate,Non Revenue,09/08/2019,30238136,10200.00,Capital,Permanent Futures Ltd,Consultants Fees
Peterborough City Council,Corporate,Corporate,Non Revenue,09/08/2019,30238137,7172.50,Capital,Permanent Futures Ltd,Consultants Fees
Peterborough City Council,Education,Special Educational Needs / Inclusion,Agency Staff,09/08/2019,30238138,1100.00,Revenue,Permanent Futures Ltd,External Temporary Staff
Peterborough City Council,Education,Special Educational Needs / Inclusion,Agency Staff,09/08/2019,30238140,2200.00,Revenue,Permanent Futures Ltd,External Temporary Staff
Peterborough City Council,Corporate,Corporate,Non Revenue,09/08/2019,30238141,10000.00,Capital,Permanent Futures Ltd,Consultants Fees
Peterborough City Council,Education,Special Educational Needs / Inclusion,Agency Staff,09/08/2019,30238142,4240.00,Revenue,Permanent Futures Ltd,External Temporary Staff
Peterborough City Council,Corporate,Corporate,Non Revenue,09/08/2019,30238143,12600.00,Capital,Permanent Futures Ltd,Consultants Fees
Peterborough City Council,Corporate,Corporate,Non Revenue,09/08/2019,30238144,3480.00,Capital,Permanent Futures Ltd,Consultants Fees
Peterborough City Council,Education,Special Educational Needs / Inclusion,Agency Staff,09/08/2019,30238145,2200.00,Revenue,Permanent Futures Ltd,External Temporary Staff
Peterborough City Council,Education,Special Educational Needs / Inclusion,Agency Staff,09/08/2019,30238146,1100.00,Revenue,Permanent Futures Ltd,External Temporary Staff
Peterborough City Council,Adults,Independent Sector Placements,Services,09/08/2019,30238217,1871.26,Revenue,Avery House (Peterborough) t/a Brighterkind,Residential Care
Peterborough City Council,Adults,Independent Sector Placements,Services,09/08/2019,30238220,1606.84,Revenue,Avery House (Peterborough) t/a Brighterkind,Residential Care
Peterborough City Council,Adults,Independent Sector Placements,Services,09/08/2019,30238232,1197.22,Revenue,K2 CARE LTD,Home Care
Peterborough City Council,Adults,Independent Sector Placements,Services,09/08/2019,30238233,1372.00,Revenue,K2 CARE LTD,Home Care
Peterborough City Council,Adults,Independent Sector Placements,Services,09/08/2019,30238235,984.67,Revenue,K2 CARE LTD,Home Care
Peterborough City Council,Adults,Independent Sector Placements,Services,09/08/2019,30238236,1331.62,Revenue,K2 CARE LTD,Home Care
Peterborough City Council,Adults,Independent Sector Placements,Services,09/08/2019,30238237,1607.03,Revenue,K2 CARE LTD,Home Care
Peterborough City Council,Adults,Independent Sector Placements,Services,09/08/2019,30238238,3860.38,Revenue,K2 CARE LTD,Home Care
Peterborough City Council,Adults,Independent Sector Placements,Services,09/08/2019,30238239,995.07,Revenue,K2 CARE LTD,Home Care
Peterborough City Council,Adults,Independent Sector Placements,Services,09/08/2019,30238260,1095.79,Revenue,K2 CARE LTD,Home Care
Peterborough City Council,Adults,Independent Sector Placements,Services,09/08/2019,30238264,1276.46,Revenue,K2 CARE LTD,Home Care
Peterborough City Council,Adults,Independent Sector Placements,Services,09/08/2019,30238322,2001.60,Revenue,EXCELCARE GLENNFIELD HOUSE,Residential Care
Peterborough City Council,Adults,Independent Sector Placements,Services,09/08/2019,30238325,3600.00,Revenue,EXCELCARE GLENNFIELD HOUSE,Residential Care
Peterborough City Council,Adults,Independent Sector Placements,Services,09/08/2019,30238329,3720.00,Revenue,EXCELCARE GLENNFIELD HOUSE,Residential Care
Peterborough City Council,Adults,Independent Sector Placements,Services,09/08/2019,30238332,3200.00,Revenue,EXCELCARE GLENNFIELD HOUSE,Residential Care
Peterborough City Council,Corporate,Corporate,Non Revenue,09/08/2019,30238340,11600.00,Capital,Permanent Futures Ltd,Consultants Fees
Peterborough City Council,Adults,Finance,Services,09/08/2019,30238349,1307.50,Revenue,Weightmans LLP,Legal Costs
Peterborough City Council,Adults,Independent Sector Placements,Services,09/08/2019,30238404,1568.00,Revenue,K2 CARE LTD,Home Care
Peterborough City Council,Corporate,Corporate,Non Revenue,09/08/2019,30238479,1350.00,Capital,Eastern Shires Purchasing Organisation,Furniture And Equipment Purchase
Peterborough City Council,Corporate,Corporate,Non Revenue,09/08/2019,30238495,12180.00,Capital,Permanent Futures Ltd,Consultants Fees
Peterborough City Council,Corporate,Corporate,Non Revenue,09/08/2019,30238505,635.00,Capital,Smooth Removals,Building And Site Works
Peterborough City Council,Peterborough Highway Services,Transport & Infrastructure Commissioning,Services,09/08/2019,30238579,562.50,Revenue,Cyclescheme Ltd,Cycling
Peterborough City Council,Adults,Independent Sector Placements,Services,09/08/2019,30238641,729.64,Revenue,K2 CARE LTD,Home Care
Peterborough City Council,Adults,Independent Sector Placements,Services,09/08/2019,30238642,606.01,Revenue,K2 CARE LTD,Home Care
Peterborough City Council,Adults,Independent Sector Placements,Services,09/08/2019,30238643,579.76,Revenue,K2 CARE LTD,Home Care
Peterborough City Council,Adults,Independent Sector Placements,Services,09/08/2019,30238645,722.34,Revenue,K2 CARE LTD,Home Care
Peterborough City Council,Adults,Independent Sector Placements,Services,09/08/2019,30238647,954.80,Revenue,K2 CARE LTD,Home Care
Peterborough City Council,Children�s & Safeguarding,Early Help ASC/CSC,Agency Staff,09/08/2019,30238841,569.83,Revenue,Reed Specialist Recruitment Limited,External Temporary Staff
Peterborough City Council,Corporate,Corporate,Non Revenue,09/08/2019,30239128,12705.00,Capital,Permanent Futures Ltd,Consultants Fees
Peterborough City Council,Corporate,Corporate,Non Revenue,09/08/2019,30239129,12100.00,Capital,Permanent Futures Ltd,Consultants Fees
Peterborough City Council,Adults,Independent Sector Placements,Services,09/08/2019,30239235,3652.27,Revenue,K2 CARE LTD,Home Care
Peterborough City Council,Adults,Independent Sector Placements,Services,09/08/2019,30239300,1567.32,Revenue,K2 CARE LTD,Home Care
Peterborough City Council,Marketing & Communications,Marketing & Communications,Services,09/08/2019,30239402,6000.00,Revenue,Access Intelligence Media & Communications,Communications Equipment
Peterborough City Council,Communities,Housing,Services,09/08/2019,30239417,1601.18,Revenue,Cross Keys Homes,Financial Assistance
Peterborough City Council,Communities,Housing,Services,09/08/2019,30239442,1184.00,Revenue,William H Brown,Financial Assistance
Peterborough City Council,Peterborough Highway Services,Network and Traffic Management,Services,09/08/2019,30239708,626.82,Revenue,British Telecom PLC,Telephones
Peterborough City Council,ICT,ICT,Agency Staff,09/08/2019,30239759,2268.60,Revenue,Reed Specialist Recruitment Limited,External Temporary Staff
Peterborough City Council,Communities,Housing,Services,09/08/2019,30239766,2275.00,Revenue,Singh and Sons Property Management Ltd,Temporary Accommodation Costs
Peterborough City Council,Communities,Housing,Services,09/08/2019,30239767,3150.00,Revenue,Singh and Sons Property Management Ltd,Temporary Accommodation Costs
Peterborough City Council,Communities,Housing,Services,09/08/2019,30239768,3080.00,Revenue,Singh and Sons Property Management Ltd,Temporary Accommodation Costs
Peterborough City Council,Communities,Housing,Services,09/08/2019,30239769,2975.00,Revenue,Singh and Sons Property Management Ltd,Temporary Accommodation Costs
Peterborough City Council,Communities,Housing,Services,09/08/2019,30239794,600.00,Revenue,Cozy Lettings Ltd,Financial Assistance
Peterborough City Council,Commissioning and Commercial Operations,Access to Resources & Specialist Commissioning,Services,09/08/2019,30239817,1218.24,Revenue,Fostering People Ltd,Boarding Out Fees
Peterborough City Council,Legal Services,Legal Services,Agency Staff,09/08/2019,30239819,1383.95,Revenue,Reed Specialist Recruitment Limited,External Temporary Staff
Peterborough City Council,Adults,Independent Sector Placements,Services,09/08/2019,8000148763,529.20,Revenue,Longhurst Group Limited,Home Care
Peterborough City Council,Adults,Independent Sector Placements,Services,09/08/2019,8000148768,588.00,Revenue,Longhurst Group Limited,Home Care
Peterborough City Council,Adults,Independent Sector Placements,Services,09/08/2019,8000148779,588.00,Revenue,Longhurst Group Limited,Home Care
Peterborough City Council,Adults,Independent Sector Placements,Services,09/08/2019,8000148782,737.94,Revenue,Longhurst Group Limited,Home Care
Peterborough City Council,Adults,Independent Sector Placements,Services,09/08/2019,8000148792,1684.48,Revenue,Longhurst Group Limited,Home Care
Peterborough City Council,Education,HTS & CSC Transport,Contract Hire and Operating Leases,09/08/2019,8000148921,1227.36,Revenue,Redacted Personal Data,Hired Transport
Peterborough City Council,Education,HTS & CSC Transport,Contract Hire and Operating Leases,09/08/2019,8000148924,1240.46,Revenue,Redacted Personal Data,Hired Transport
Peterborough City Council,Education,HTS & CSC Transport,Contract Hire and Operating Leases,09/08/2019,8000148925,937.50,Revenue,Redacted Personal Data,Hired Transport
Peterborough City Council,Education,HTS & CSC Transport,Contract Hire and Operating Leases,09/08/2019,8000148926,1851.25,Revenue,Redacted Personal Data,Hired Transport
Peterborough City Council,Education,HTS & CSC Transport,Contract Hire and Operating Leases,09/08/2019,8000148929,1259.25,Revenue,Redacted Personal Data,Hired Transport
Peterborough City Council,Education,HTS & CSC Transport,Contract Hire and Operating Leases,09/08/2019,8000148948,1500.00,Revenue,City Cabs Pboro Ltd,Hired Transport
Peterborough City Council,Adults,Independent Sector Placements,Social Services,09/08/2019,8000148973,556.05,Revenue,Redacted Personal Data,Direct Payments
Peterborough City Council,Adults,Independent Sector Placements,Social Services,09/08/2019,8000148980,830.22,Revenue,Redacted Personal Data,Direct Payments
Peterborough City Council,Adults,Independent Sector Placements,Social Services,09/08/2019,8000148982,815.58,Revenue,Redacted Personal Data,Direct Payments
Peterborough City Council,Adults,Independent Sector Placements,Social Services,09/08/2019,8000148983,3023.04,Revenue,Redacted Personal Data,Direct Payments
Peterborough City Council,Adults,Independent Sector Placements,Social Services,09/08/2019,8000148986,3337.00,Revenue,Redacted Personal Data,Direct Payments
Peterborough City Council,Adults,Independent Sector Placements,Services,09/08/2019,8000148996,729.00,Revenue,Sagecare Ltd,Home Care
Peterborough City Council,Adults,Independent Sector Placements,Services,09/08/2019,8000148999,821.00,Revenue,Sagecare Ltd,Home Care
Peterborough City Council,Adults,Independent Sector Placements,Services,09/08/2019,8000149006,604.25,Revenue,Sagecare Ltd,Home Care
Peterborough City Council,Adults,Independent Sector Placements,Services,09/08/2019,8000149013,509.36,Revenue,Sagecare Ltd,Home Care
Peterborough City Council,Adults,Independent Sector Placements,Services,09/08/2019,8000149016,828.50,Revenue,Sagecare Ltd,Home Care
Peterborough City Council,Adults,Independent Sector Placements,Services,09/08/2019,8000149018,1899.98,Revenue,Sagecare Ltd,Home Care
Peterborough City Council,Adults,Independent Sector Placements,Services,09/08/2019,8000149019,615.50,Revenue,Sagecare Ltd,Home Care
Peterborough City Council,Adults,Independent Sector Placements,Services,09/08/2019,8000149034,630.00,Revenue,Sagecare Ltd,Home Care
Peterborough City Council,Adults,Independent Sector Placements,Services,09/08/2019,8000149035,586.50,Revenue,Sagecare Ltd,Home Care
Peterborough City Council,Adults,Independent Sector Placements,Services,09/08/2019,8000149039,1168.17,Revenue,Sagecare Ltd,Home Care
Peterborough City Council,Adults,Independent Sector Placements,Services,09/08/2019,8000149042,1448.37,Revenue,Sagecare Ltd,Home Care
Peterborough City Council,Adults,Independent Sector Placements,Services,09/08/2019,8000149043,551.25,Revenue,Sagecare Ltd,Home Care
Peterborough City Council,Adults,Independent Sector Placements,Services,09/08/2019,8000149044,1173.48,Revenue,Sagecare Ltd,Home Care
Peterborough City Council,Adults,Independent Sector Placements,Services,09/08/2019,8000149045,671.50,Revenue,Sagecare Ltd,Home Care
Peterborough City Council,Adults,Independent Sector Placements,Services,09/08/2019,8000149047,1068.75,Revenue,Sagecare Ltd,Home Care
Peterborough City Council,Adults,Independent Sector Placements,Services,09/08/2019,8000149049,641.03,Revenue,Sagecare Ltd,Home Care
Peterborough City Council,Adults,Independent Sector Placements,Services,09/08/2019,8000149051,1443.98,Revenue,Sagecare Ltd,Home Care
Peterborough City Council,Adults,Independent Sector Placements,Services,09/08/2019,8000149054,735.97,Revenue,Sagecare Ltd,Home Care
Peterborough City Council,Adults,Independent Sector Placements,Services,09/08/2019,8000149055,685.25,Revenue,Sagecare Ltd,Home Care
Peterborough City Council,Adults,Independent Sector Placements,Services,09/08/2019,8000149066,1867.50,Revenue,Sagecare Ltd,Home Care
Peterborough City Council,Adults,Independent Sector Placements,Services,09/08/2019,8000149069,856.80,Revenue,Longhurst Group Limited,Home Care
Peterborough City Council,Adults,Independent Sector Placements,Services,09/08/2019,8000149070,514.08,Revenue,Longhurst Group Limited,Home Care
Peterborough City Council,Adults,Independent Sector Placements,Services,09/08/2019,8000149072,705.60,Revenue,Longhurst Group Limited,Home Care
Peterborough City Council,Corporate,Corporate,Non Revenue,09/08/2019,8000150549,350000.00,Capital,Medesham Homes LLP,Grant Payment
Peterborough City Council,Corporate,Corporate,Non Revenue,09/08/2019,8000150549,300000.00,Capital,Medesham Homes LLP,Grant Payment
Peterborough City Council,Peterborough Highway Services,Transport & Infrastructure Commissioning,Energy Costs,12/08/2019,30236303,-69266.57,Revenue,EDF Energy Networks Ltd,Electricity
Peterborough City Council,Peterborough Highway Services,Transport & Infrastructure Commissioning,Energy Costs,12/08/2019,30236304,59325.86,Revenue,EDF Energy Networks Ltd,Electricity
Peterborough City Council,Peterborough Highway Services,Transport & Infrastructure Commissioning,Energy Costs,12/08/2019,30236307,-59365.78,Revenue,EDF Energy Networks Ltd,Electricity
Peterborough City Council,Adults,Independent Sector Placements,Services,12/08/2019,30236822,823.00,Revenue,Richmond Fellowship (The),Residential Care
Peterborough City Council,Adults,Independent Sector Placements,Services,12/08/2019,30236840,920.00,Revenue,Richmond Fellowship (The),Residential Care
Peterborough City Council,Adults,Independent Sector Placements,Services,12/08/2019,30236843,823.00,Revenue,Richmond Fellowship (The),Residential Care
Peterborough City Council,Adults,Independent Sector Placements,Services,12/08/2019,30236853,811.00,Revenue,Richmond Fellowship (The),Residential Care
Peterborough City Council,Commissioning and Commercial Operations,Access to Resources & Specialist Commissioning,Services,12/08/2019,30237125,3444.41,Revenue,Fostering Solutions Limited,Boarding Out Fees
Peterborough City Council,Commissioning and Commercial Operations,Access to Resources & Specialist Commissioning,Services,12/08/2019,30237132,2860.77,Revenue,Fostering Solutions Limited,Boarding Out Fees
Peterborough City Council,Commissioning and Commercial Operations,Access to Resources & Specialist Commissioning,Services,12/08/2019,30237134,3548.26,Revenue,Fostering Solutions Limited,Boarding Out Fees
Peterborough City Council,Commissioning and Commercial Operations,Access to Resources & Specialist Commissioning,Services,12/08/2019,30237135,3541.44,Revenue,Fostering Solutions Limited,Boarding Out Fees
Peterborough City Council,Commissioning and Commercial Operations,Access to Resources & Specialist Commissioning,Services,12/08/2019,30237136,3620.80,Revenue,Fostering Solutions Limited,Boarding Out Fees
Peterborough City Council,Commissioning and Commercial Operations,Access to Resources & Specialist Commissioning,Services,12/08/2019,30237137,4011.97,Revenue,Fostering Solutions Limited,Boarding Out Fees
Peterborough City Council,Commissioning and Commercial Operations,Access to Resources & Specialist Commissioning,Services,12/08/2019,30237138,6009.66,Revenue,Fostering Solutions Limited,Boarding Out Fees
Peterborough City Council,Commissioning and Commercial Operations,Access to Resources & Specialist Commissioning,Services,12/08/2019,30237140,3620.80,Revenue,Fostering Solutions Limited,Boarding Out Fees
Peterborough City Council,Commissioning and Commercial Operations,Access to Resources & Specialist Commissioning,Services,12/08/2019,30237141,3548.26,Revenue,Fostering Solutions Limited,Boarding Out Fees
Peterborough City Council,Commissioning and Commercial Operations,Access to Resources & Specialist Commissioning,Services,12/08/2019,30237210,3609.33,Revenue,Fostering Solutions Limited,Boarding Out Fees
Peterborough City Council,Commissioning and Commercial Operations,Access to Resources & Specialist Commissioning,Services,12/08/2019,30237211,3541.44,Revenue,Fostering Solutions Limited,Boarding Out Fees
Peterborough City Council,Commissioning and Commercial Operations,Access to Resources & Specialist Commissioning,Services,12/08/2019,30237214,3541.44,Revenue,Fostering Solutions Limited,Boarding Out Fees
Peterborough City Council,Commissioning and Commercial Operations,Access to Resources & Specialist Commissioning,Services,12/08/2019,30237215,3620.80,Revenue,Fostering Solutions Limited,Boarding Out Fees
Peterborough City Council,Education,School Standards & Effectiveness,Services,12/08/2019,30237255,899.00,Revenue,Abbey College,Grant Payment
Peterborough City Council,Education,School Standards & Effectiveness,Services,12/08/2019,30237267,710.00,Revenue,Stilton C of E Primary School,Grant Payment
Peterborough City Council,Adults,Independent Sector Placements,Services,12/08/2019,30237455,3864.68,Revenue,Consensus Support Services Ltd,Residential Care
Peterborough City Council,Adults,Independent Sector Placements,Services,12/08/2019,30237459,8748.06,Revenue,Home From Home Care Limited,Residential Care
Peterborough City Council,Adults,Independent Sector Placements,Services,12/08/2019,30237460,10856.48,Revenue,Home From Home Care Limited,Residential Care
Peterborough City Council,Commissioning and Commercial Operations,Access to Resources & Specialist Commissioning,Services,12/08/2019,30237470,3494.14,Revenue,Fostering Innovations Ltd,Boarding Out Fees
Peterborough City Council,Commissioning and Commercial Operations,Access to Resources & Specialist Commissioning,Services,12/08/2019,30237471,4054.29,Revenue,Fostering Innovations Ltd,Boarding Out Fees
Peterborough City Council,Commissioning and Commercial Operations,Access to Resources & Specialist Commissioning,Services,12/08/2019,30237473,4054.29,Revenue,Fostering Innovations Ltd,Boarding Out Fees
Peterborough City Council,Communities,Cohesion,Third Party Payments,12/08/2019,30237511,2740.83,Revenue,Solutions 4 Health Ltd,Grant-Third Party
Peterborough City Council,Adults,Finance,Services,12/08/2019,30237518,3625.00,Revenue,Solutions 4 Health Ltd,Counselling
Peterborough City Council,Adults,Independent Sector Placements,Services,12/08/2019,30237540,3687.04,Revenue,Mencap,Home Care
Peterborough City Council,Adults,Independent Sector Placements,Services,12/08/2019,30237549,1567.37,Revenue,Avery House (Peterborough) t/a Brighterkind,Residential Care
Peterborough City Council,Adults,Independent Sector Placements,Services,12/08/2019,30237594,1476.80,Revenue,Mencap,Home Care
Peterborough City Council,Adults,Independent Sector Placements,Services,12/08/2019,30237595,1107.60,Revenue,Mencap,Home Care
Peterborough City Council,Adults,Independent Sector Placements,Services,12/08/2019,30237596,2215.20,Revenue,Mencap,Home Care
Peterborough City Council,Adults,Independent Sector Placements,Services,12/08/2019,30237599,852.00,Revenue,Mencap,Home Care
Peterborough City Council,Adults,Independent Sector Placements,Services,12/08/2019,30237602,568.00,Revenue,Mencap,Home Care
Peterborough City Council,Adults,Independent Sector Placements,Services,12/08/2019,30237603,7439.20,Revenue,Mencap,Home Care
Peterborough City Council,Adults,Independent Sector Placements,Services,12/08/2019,30237604,562.40,Revenue,Mencap,Home Care
Peterborough City Council,Adults,Independent Sector Placements,Services,12/08/2019,30237605,3687.04,Revenue,Mencap,Home Care
Peterborough City Council,Adults,Independent Sector Placements,Services,12/08/2019,30237607,8251.60,Revenue,Mencap,Home Care
Peterborough City Council,Adults,Independent Sector Placements,Services,12/08/2019,30237615,681.60,Revenue,Mencap,Home Care
Peterborough City Council,Adults,Independent Sector Placements,Services,12/08/2019,30237616,852.00,Revenue,Mencap,Home Care
Peterborough City Council,Adults,Independent Sector Placements,Services,12/08/2019,30237617,2465.64,Revenue,Mencap,Home Care
Peterborough City Council,Adults,Independent Sector Placements,Services,12/08/2019,30237619,8106.00,Revenue,Mencap,Home Care
Peterborough City Council,Adults,Independent Sector Placements,Services,12/08/2019,30237620,852.00,Revenue,Mencap,Home Care
Peterborough City Council,Adults,Independent Sector Placements,Services,12/08/2019,30237623,7277.40,Revenue,Mencap,Home Care
Peterborough City Council,Adults,Independent Sector Placements,Services,12/08/2019,30237624,1940.68,Revenue,Mencap,Home Care
Peterborough City Council,Adults,Independent Sector Placements,Services,12/08/2019,30237625,2204.80,Revenue,Mencap,Home Care
Peterborough City Council,Adults,Independent Sector Placements,Services,12/08/2019,30237627,2223.00,Revenue,Mencap,Home Care
Peterborough City Council,Adults,Independent Sector Placements,Services,12/08/2019,30237628,568.00,Revenue,Mencap,Home Care
Peterborough City Council,Adults,Independent Sector Placements,Services,12/08/2019,30237675,7841.18,Revenue,Home From Home Care Limited,Residential Care
Peterborough City Council,Adults,Independent Sector Placements,Services,12/08/2019,30237684,6543.32,Revenue,Mencap,Home Care
Peterborough City Council,Adults,Independent Sector Placements,Services,12/08/2019,30237686,2437.00,Revenue,Benell Care Services Ltd,Residential Care
Peterborough City Council,Adults,Independent Sector Placements,Services,12/08/2019,30237687,6966.72,Revenue,Autism Care (UK) Ltd,Residential Care
Peterborough City Council,Commissioning and Commercial Operations,Clare Lodge,Agency Staff,12/08/2019,30237727,1225.00,Revenue,Mana Resourcing Ltd,Supply Teachers
Peterborough City Council,Peterborough Highway Services,Transport & Infrastructure Commissioning,Energy Costs,12/08/2019,30237731,50955.66,Revenue,EDF Energy Networks Ltd,Electricity
Peterborough City Council,Adults,Independent Sector Placements,Services,12/08/2019,30237823,4566.32,Revenue,Thera East Anglia,Home Care
Peterborough City Council,Adults,Independent Sector Placements,Services,12/08/2019,30237825,2440.00,Revenue,Thera East Anglia,Day Care
Peterborough City Council,Adults,Independent Sector Placements,Services,12/08/2019,30237827,688.00,Revenue,Thera East Anglia,Day Care
Peterborough City Council,Adults,Independent Sector Placements,Services,12/08/2019,30237828,2440.00,Revenue,Thera East Anglia,Day Care
Peterborough City Council,Adults,Independent Sector Placements,Services,12/08/2019,30237829,4197.12,Revenue,Thera East Anglia,Home Care
Peterborough City Council,Adults,Independent Sector Placements,Services,12/08/2019,30237830,3218.84,Revenue,Thera East Anglia,Home Care
Peterborough City Council,Adults,Independent Sector Placements,Services,12/08/2019,30237832,1464.00,Revenue,Thera East Anglia,Day Care
Peterborough City Council,Adults,Independent Sector Placements,Services,12/08/2019,30237834,756.00,Revenue,Thera East Anglia,Day Care
Peterborough City Council,Adults,Independent Sector Placements,Services,12/08/2019,30237835,1952.00,Revenue,Thera East Anglia,Day Care
Peterborough City Council,Adults,Independent Sector Placements,Services,12/08/2019,30237837,860.00,Revenue,Thera East Anglia,Day Care
Peterborough City Council,Adults,Independent Sector Placements,Services,12/08/2019,30237839,1008.00,Revenue,Thera East Anglia,Day Care
Peterborough City Council,Adults,Independent Sector Placements,Services,12/08/2019,30237840,1260.00,Revenue,Thera East Anglia,Day Care
Peterborough City Council,Adults,Independent Sector Placements,Services,12/08/2019,30237841,1260.00,Revenue,Thera East Anglia,Day Care
Peterborough City Council,Adults,Independent Sector Placements,Services,12/08/2019,30237842,1260.00,Revenue,Thera East Anglia,Day Care
Peterborough City Council,Adults,Independent Sector Placements,Services,12/08/2019,30237843,3515.00,Revenue,Thera East Anglia,Day Care
Peterborough City Council,Adults,Independent Sector Placements,Services,12/08/2019,30237845,2440.00,Revenue,Thera East Anglia,Day Care
Peterborough City Council,Adults,Independent Sector Placements,Services,12/08/2019,30237847,2440.00,Revenue,Thera East Anglia,Day Care
Peterborough City Council,Adults,Independent Sector Placements,Services,12/08/2019,30237848,2440.00,Revenue,Thera East Anglia,Day Care
Peterborough City Council,Adults,Independent Sector Placements,Services,12/08/2019,30237849,2440.00,Revenue,Thera East Anglia,Day Care
Peterborough City Council,Adults,Independent Sector Placements,Services,12/08/2019,30237850,2440.00,Revenue,Thera East Anglia,Day Care
Peterborough City Council,Adults,Independent Sector Placements,Services,12/08/2019,30237852,504.00,Revenue,Thera East Anglia,Day Care
Peterborough City Council,Adults,Independent Sector Placements,Services,12/08/2019,30237853,860.00,Revenue,Thera East Anglia,Day Care
Peterborough City Council,Adults,Independent Sector Placements,Services,12/08/2019,30237854,756.00,Revenue,Thera East Anglia,Day Care
Peterborough City Council,Adults,Independent Sector Placements,Services,12/08/2019,30237855,756.00,Revenue,Thera East Anglia,Day Care
Peterborough City Council,Adults,Independent Sector Placements,Services,12/08/2019,30237856,1008.00,Revenue,Thera East Anglia,Day Care
Peterborough City Council,Adults,Independent Sector Placements,Services,12/08/2019,30237870,8255.68,Revenue,NEW BOUNDARIES COMMUNITY SERVICES LTD,Residential Care
Peterborough City Council,Adults,Independent Sector Placements,Services,12/08/2019,30237919,6729.60,Revenue,SOCIAL CARE SOLUTIONS LTD,Home Care
Peterborough City Council,Adults,Independent Sector Placements,Services,12/08/2019,30237920,3740.12,Revenue,SOCIAL CARE SOLUTIONS LTD,Home Care
Peterborough City Council,Adults,Independent Sector Placements,Services,12/08/2019,30237921,7005.60,Revenue,SOCIAL CARE SOLUTIONS LTD,Home Care
Peterborough City Council,Adults,Independent Sector Placements,Services,12/08/2019,30237922,3290.12,Revenue,SOCIAL CARE SOLUTIONS LTD,Home Care
Peterborough City Council,Adults,Independent Sector Placements,Services,12/08/2019,30237923,1932.00,Revenue,SOCIAL CARE SOLUTIONS LTD,Home Care
Peterborough City Council,Adults,Independent Sector Placements,Services,12/08/2019,30237924,4240.08,Revenue,SOCIAL CARE SOLUTIONS LTD,Home Care
Peterborough City Council,Adults,Independent Sector Placements,Services,12/08/2019,30237925,4780.08,Revenue,SOCIAL CARE SOLUTIONS LTD,Home Care
Peterborough City Council,Adults,Independent Sector Placements,Services,12/08/2019,30237926,900.00,Revenue,SOCIAL CARE SOLUTIONS LTD,Home Care
Peterborough City Council,Adults,Independent Sector Placements,Services,12/08/2019,30237930,3210.64,Revenue,SOCIAL CARE SOLUTIONS LTD,Home Care
Peterborough City Council,Adults,Independent Sector Placements,Services,12/08/2019,30237936,1394.16,Revenue,The Regard Partnership Limited,Residential Care
Peterborough City Council,Adults,Independent Sector Placements,Services,12/08/2019,30237938,1454.32,Revenue,PRIME LIFE LTD (Caenarvon House),Residential Care
Peterborough City Council,Adults,Independent Sector Placements,Services,12/08/2019,30237940,3418.32,Revenue,Sanctuary Home Care Ltd (Southwood House),Residential Care
Peterborough City Council,Adults,Independent Sector Placements,Services,12/08/2019,30237941,14588.00,Revenue,Decoy Farm,Residential Care
Peterborough City Council,Commissioning and Commercial Operations,Clare Lodge,Services,12/08/2019,30237954,1750.00,Revenue,Rotamaster Ltd,Telephones
Peterborough City Council,Commissioning and Commercial Operations,Access to Resources & Specialist Commissioning,Services,12/08/2019,30237956,521.45,Revenue,Swiis Foster Care Ltd,Boarding Out Fees
Peterborough City Council,Westcombe Engineering,Westcombe Engineering,"Tools, Equipment, Furniture & Materials",12/08/2019,30237959,688.18,Revenue,M O 8 Specialities Ltd,Materials
Peterborough City Council,Legal Services,Legal Services,Services,12/08/2019,30237978,650.00,Revenue,"Martignetti, Mr Ian",Legal Costs
Peterborough City Council,Legal Services,Legal Services,Services,12/08/2019,30237979,650.00,Revenue,"Bramwell, Mr Christopher",Legal Costs
Peterborough City Council,Children�s & Safeguarding,Child Health,Services,12/08/2019,30238042,3148.44,Revenue,Circles Network,Purchased Social Care Services
Peterborough City Council,HR,HR WFD & Training,Services,12/08/2019,30238045,525.00,Revenue,Epilepsy Awareness Ltd,Course Instructors Fees
Peterborough City Council,Communities,Regulatory Services,Services,12/08/2019,30238073,1000.00,Revenue,Intqual-pro Limited,Training
Peterborough City Council,Communities,Parking,Services,12/08/2019,30238088,2613.60,Revenue,Patrol,Hired Services
Peterborough City Council,Communities,Housing,Services,12/08/2019,30238091,13816.92,Revenue,Eastfield Guesthouse,Temporary Accommodation Costs
Peterborough City Council,Communities,Housing,Services,12/08/2019,30238092,9552.50,Revenue,Eastfield Guesthouse,Temporary Accommodation Costs
Peterborough City Council,Commissioning and Commercial Operations,Access to Resources & Specialist Commissioning,Services,12/08/2019,30238094,4011.97,Revenue,Fostering Solutions Limited,Boarding Out Fees
Peterborough City Council,Commissioning and Commercial Operations,Access to Resources & Specialist Commissioning,Services,12/08/2019,30238162,3202.30,Revenue,Foster Care Associates Ltd FCA,Boarding Out Fees
Peterborough City Council,Commissioning and Commercial Operations,Access to Resources & Specialist Commissioning,Services,12/08/2019,30238163,3626.69,Revenue,Foster Care Associates Ltd FCA,Boarding Out Fees
Peterborough City Council,Commissioning and Commercial Operations,Access to Resources & Specialist Commissioning,Services,12/08/2019,30238164,3301.50,Revenue,Foster Care Associates Ltd FCA,Boarding Out Fees
Peterborough City Council,Commissioning and Commercial Operations,Access to Resources & Specialist Commissioning,Services,12/08/2019,30238165,3556.01,Revenue,Foster Care Associates Ltd FCA,Boarding Out Fees
Peterborough City Council,Commissioning and Commercial Operations,Access to Resources & Specialist Commissioning,Services,12/08/2019,30238166,1032.30,Revenue,Foster Care Associates Ltd FCA,Boarding Out Fees
Peterborough City Council,Commissioning and Commercial Operations,Access to Resources & Specialist Commissioning,Services,12/08/2019,30238167,4248.89,Revenue,Foster Care Associates Ltd FCA,Boarding Out Fees
Peterborough City Council,Commissioning and Commercial Operations,Access to Resources & Specialist Commissioning,Services,12/08/2019,30238168,4292.69,Revenue,Foster Care Associates Ltd FCA,Boarding Out Fees
Peterborough City Council,Commissioning and Commercial Operations,Access to Resources & Specialist Commissioning,Services,12/08/2019,30238169,3113.33,Revenue,Foster Care Associates Ltd FCA,Boarding Out Fees
Peterborough City Council,Commissioning and Commercial Operations,Access to Resources & Specialist Commissioning,Services,12/08/2019,30238171,3556.01,Revenue,Foster Care Associates Ltd FCA,Boarding Out Fees
Peterborough City Council,Commissioning and Commercial Operations,Access to Resources & Specialist Commissioning,Services,12/08/2019,30238172,984.21,Revenue,Foster Care Associates Ltd FCA,Boarding Out Fees
Peterborough City Council,Commissioning and Commercial Operations,Access to Resources & Specialist Commissioning,Services,12/08/2019,30238173,984.21,Revenue,Foster Care Associates Ltd FCA,Boarding Out Fees
Peterborough City Council,Commissioning and Commercial Operations,Access to Resources & Specialist Commissioning,Services,12/08/2019,30238174,4380.30,Revenue,Foster Care Associates Ltd FCA,Boarding Out Fees
Peterborough City Council,Adults,Independent Sector Placements,Services,12/08/2019,30238206,1363.56,Revenue,Avery House (Peterborough) t/a Brighterkind,Residential Care
Peterborough City Council,Adults,Independent Sector Placements,Services,12/08/2019,30238207,1055.92,Revenue,Avery House (Peterborough) t/a Brighterkind,Residential Care
Peterborough City Council,Adults,Independent Sector Placements,Services,12/08/2019,30238208,1397.68,Revenue,Avery House (Peterborough) t/a Brighterkind,Residential Care
Peterborough City Council,Adults,Independent Sector Placements,Services,12/08/2019,30238209,2179.24,Revenue,Avery House (Peterborough) t/a Brighterkind,Residential Care
Peterborough City Council,Adults,Independent Sector Placements,Services,12/08/2019,30238210,1852.48,Revenue,Avery House (Peterborough) t/a Brighterkind,Residential Care
Peterborough City Council,Adults,Independent Sector Placements,Services,12/08/2019,30238211,1449.00,Revenue,Avery House (Peterborough) t/a Brighterkind,Residential Care
Peterborough City Council,Adults,Independent Sector Placements,Services,12/08/2019,30238212,910.28,Revenue,Avery House (Peterborough) t/a Brighterkind,Residential Care
Peterborough City Council,Adults,Independent Sector Placements,Services,12/08/2019,30238213,2210.60,Revenue,Avery House (Peterborough) t/a Brighterkind,Residential Care
Peterborough City Council,Adults,Independent Sector Placements,Services,12/08/2019,30238214,1443.04,Revenue,Avery House (Peterborough) t/a Brighterkind,Residential Care
Peterborough City Council,Adults,Independent Sector Placements,Services,12/08/2019,30238215,1187.56,Revenue,Avery House (Peterborough) t/a Brighterkind,Residential Care
Peterborough City Council,Adults,Independent Sector Placements,Services,12/08/2019,30238216,1268.96,Revenue,Avery House (Peterborough) t/a Brighterkind,Residential Care
Peterborough City Council,Adults,Independent Sector Placements,Services,12/08/2019,30238218,1749.92,Revenue,Avery House (Peterborough) t/a Brighterkind,Residential Care
Peterborough City Council,Adults,Independent Sector Placements,Services,12/08/2019,30238219,1494.76,Revenue,Avery House (Peterborough) t/a Brighterkind,Residential Care
Peterborough City Council,Corporate,Corporate,Non Revenue,12/08/2019,30238223,4320.00,Capital,M J Greaves,Grant Payment
Peterborough City Council,Adults,Independent Sector Placements,Services,12/08/2019,30238265,3486.36,Revenue,Cross Keys Homes,Home Care
Peterborough City Council,Adults,Independent Sector Placements,Services,12/08/2019,30238266,658.00,Revenue,Cross Keys Homes,Home Care
Peterborough City Council,Adults,Independent Sector Placements,Services,12/08/2019,30238267,1274.50,Revenue,Cross Keys Homes,Home Care
Peterborough City Council,Adults,Independent Sector Placements,Services,12/08/2019,30238272,1127.45,Revenue,Cross Keys Homes,Home Care
Peterborough City Council,Adults,Independent Sector Placements,Services,12/08/2019,30238317,3400.00,Revenue,EXCELCARE GLENNFIELD HOUSE,Residential Care
Peterborough City Council,Adults,Independent Sector Placements,Services,12/08/2019,30238320,2540.00,Revenue,EXCELCARE GLENNFIELD HOUSE,Residential Care
Peterborough City Council,Adults,Independent Sector Placements,Services,12/08/2019,30238360,2420.00,Revenue,Excelcare Aliwal Manor,Residential Care
Peterborough City Council,Adults,Independent Sector Placements,Services,12/08/2019,30238380,559.44,Revenue,Carers Trust Cambridgeshire,Home Care
Peterborough City Council,Adults,Independent Sector Placements,Services,12/08/2019,30238381,3724.00,Revenue,Carers Trust Cambridgeshire,Home Care
Peterborough City Council,Adults,Independent Sector Placements,Services,12/08/2019,30238383,725.76,Revenue,Carers Trust Cambridgeshire,Home Care
Peterborough City Council,Adults,Independent Sector Placements,Services,12/08/2019,30238408,544.32,Revenue,Carers Trust Cambridgeshire,Home Care
Peterborough City Council,Adults,Independent Sector Placements,Services,12/08/2019,30238411,544.32,Revenue,Carers Trust Cambridgeshire,Home Care
Peterborough City Council,Adults,Independent Sector Placements,Services,12/08/2019,30238428,555.66,Revenue,Carers Trust Cambridgeshire,Home Care
Peterborough City Council,Adults,Independent Sector Placements,Services,12/08/2019,30238434,544.32,Revenue,Carers Trust Cambridgeshire,Home Care
Peterborough City Council,Adults,Independent Sector Placements,Services,12/08/2019,30238435,665.28,Revenue,Carers Trust Cambridgeshire,Home Care
Peterborough City Council,Adults,Independent Sector Placements,Services,12/08/2019,30238437,635.04,Revenue,Carers Trust Cambridgeshire,Home Care
Peterborough City Council,Communities,Regulatory Services,Services,12/08/2019,30238459,534.72,Revenue,Public Analyst Scientific Services Ltd,Scientific Testing
Peterborough City Council,Public Health,PH Commissioning,Third Party Payments,12/08/2019,30238467,5952.00,Revenue,Bionical Solutions Limited,Third Party Payments - Contract
Peterborough City Council,Adults,Block Contracts,Services,12/08/2019,30238472,1158.70,Revenue,Funding Affordable Homes Housing Assoc. Ltd,Home Care
Peterborough City Council,Legal Services,Legal Services,Agency Staff,12/08/2019,30238499,1100.00,Revenue,Spinks Notary,External Temporary Staff
Peterborough City Council,Adults,Independent Sector Placements,Services,12/08/2019,30238510,1382.52,Revenue,Barchester Wood Grange,Residential Care
Peterborough City Council,Corporate Property,Office Accomodation,Energy Costs,12/08/2019,30238513,682.47,Revenue,EDF Energy Networks Ltd,Electricity
Peterborough City Council,"Waste, Cleansing and Open Spaces",Waste & Operational Svs Mgmt,Third Party Payments,12/08/2019,30238552,107699.46,Revenue,Peterborough Limited,Third Party Payments - Contract
Peterborough City Council,Financial Services,Finance,Agency Staff,12/08/2019,30238563,2380.92,Revenue,Allen Lane,External Temporary Staff
Peterborough City Council,Performance & Information,Performance Managment,Services,12/08/2019,30238600,4500.00,Revenue,Act Now Training Ltd,Training
Peterborough City Council,Corporate,Corporate,Non Revenue,12/08/2019,30238608,2048.29,Capital,R G Carter Cambridge Ltd,Building And Site Works
Peterborough City Council,Adults,Independent Sector Placements,Services,12/08/2019,30238615,2074.61,Revenue,The Cedars Bourne Care Home,Residential Care
Peterborough City Council,Peterborough Highway Services,Network and Traffic Management,Services,12/08/2019,30238626,4214.06,Revenue,Dynniq UK Ltd,Infrastructure Maintenance
Peterborough City Council,Peterborough Highway Services,Network and Traffic Management,Services,12/08/2019,30238630,3953.24,Revenue,Dynniq UK Ltd,Infrastructure Maintenance
Peterborough City Council,Corporate Property,Office Accomodation,Services,12/08/2019,30238951,1080.00,Revenue,Jones Lang LaSalle Limited,Legal Costs
Peterborough City Council,Commissioning and Commercial Operations,Access to Resources & Specialist Commissioning,Services,12/08/2019,30239018,6020.00,Revenue,MJ Childrens Services,Boarding Out Fees
Peterborough City Council,Corporate Property,Commercial Propety,Repair & Maintenance of Buildings,12/08/2019,30239019,1067.90,Revenue,Residential Management Group Ltd,Service Charges - Premises
Peterborough City Council,Adults,Independent Sector Placements,Services,12/08/2019,30239051,541.61,Revenue,Cross Keys Homes,Home Care
Peterborough City Council,Adults,Independent Sector Placements,Services,12/08/2019,30239097,777.24,Revenue,Longhurst Group Limited,Home Care
Peterborough City Council,Communities,Regulatory Services,"Tools, Equipment, Furniture & Materials",12/08/2019,30239384,3622.00,Revenue,Campbell Associates Ltd,Furniture And Equipment Purchase
Peterborough City Council,ICT,ICT,Services,12/08/2019,30239401,27454.00,Revenue,Civica UK Limited,Computer Software
Peterborough City Council,Public Health,PH Commissioning,Third Party Payments,12/08/2019,30239429,62817.04,Revenue,Solutions 4 Health Ltd,Third Party Payments - Contract
Peterborough City Council,Adults,Independent Sector Placements,Services,12/08/2019,30239495,1134.60,Revenue,THE CLAIR FRANCIS RETIREMENT HOME,Residential Care
Peterborough City Council,Adults,Independent Sector Placements,Services,12/08/2019,30239496,1821.88,Revenue,THE CLAIR FRANCIS RETIREMENT HOME,Residential Care
Peterborough City Council,Adults,Independent Sector Placements,Services,12/08/2019,30239497,874.84,Revenue,THE CLAIR FRANCIS RETIREMENT HOME,Residential Care
Peterborough City Council,Adults,Independent Sector Placements,Services,12/08/2019,30239498,1821.88,Revenue,THE CLAIR FRANCIS RETIREMENT HOME,Residential Care
Peterborough City Council,Adults,Independent Sector Placements,Services,12/08/2019,30239499,1252.48,Revenue,THE CLAIR FRANCIS RETIREMENT HOME,Residential Care
Peterborough City Council,Adults,Independent Sector Placements,Services,12/08/2019,30239500,1514.80,Revenue,THE CLAIR FRANCIS RETIREMENT HOME,Residential Care
Peterborough City Council,Adults,Independent Sector Placements,Services,12/08/2019,30239501,1355.60,Revenue,THE CLAIR FRANCIS RETIREMENT HOME,Residential Care
Peterborough City Council,Adults,Independent Sector Placements,Services,12/08/2019,30239502,1399.92,Revenue,THE CLAIR FRANCIS RETIREMENT HOME,Residential Care
Peterborough City Council,Adults,Independent Sector Placements,Services,12/08/2019,30239503,1272.48,Revenue,THE CLAIR FRANCIS RETIREMENT HOME,Residential Care
Peterborough City Council,Adults,Independent Sector Placements,Services,12/08/2019,30239504,1258.60,Revenue,THE CLAIR FRANCIS RETIREMENT HOME,Residential Care
Peterborough City Council,Adults,Independent Sector Placements,Services,12/08/2019,30239505,626.36,Revenue,THE CLAIR FRANCIS RETIREMENT HOME,Residential Care
Peterborough City Council,Adults,Independent Sector Placements,Services,12/08/2019,30239506,1821.88,Revenue,THE CLAIR FRANCIS RETIREMENT HOME,Residential Care
Peterborough City Council,Communities,Housing,Services,12/08/2019,30239507,39247.50,Revenue,Stef & Philips Ltd,Temporary Accommodation Costs
Peterborough City Council,Adults,Independent Sector Placements,Services,12/08/2019,30239510,4391.48,Revenue,"ATCHISON, MR ALAN",Residential Care
Peterborough City Council,Adults,Independent Sector Placements,Services,12/08/2019,30239511,3200.00,Revenue,"ATCHISON, MR ALAN",Residential Care
Peterborough City Council,Adults,Independent Sector Placements,Services,12/08/2019,30239512,5234.63,Revenue,"ATCHISON, MR ALAN",Residential Care
Peterborough City Council,Adults,Independent Sector Placements,Services,12/08/2019,30239513,1954.32,Revenue,"ATCHISON, MR ALAN",Residential Care
Peterborough City Council,Adults,Independent Sector Placements,Services,12/08/2019,30239514,756.00,Revenue,"ATCHISON, MR ALAN",Residential Care
Peterborough City Council,Adults,Independent Sector Placements,Services,12/08/2019,30239515,2337.52,Revenue,"ATCHISON, MR ALAN",Residential Care
Peterborough City Council,Adults,Independent Sector Placements,Services,12/08/2019,30239516,2345.20,Revenue,"ATCHISON, MR ALAN",Residential Care
Peterborough City Council,Adults,Independent Sector Placements,Services,12/08/2019,30239517,1954.32,Revenue,"ATCHISON, MR ALAN",Residential Care
Peterborough City Council,Adults,Independent Sector Placements,Services,12/08/2019,30239518,2162.28,Revenue,"ATCHISON, MR ALAN",Residential Care
Peterborough City Council,Adults,Independent Sector Placements,Services,12/08/2019,30239519,4904.00,Revenue,"ATCHISON, MR ALAN",Residential Care
Peterborough City Council,Adults,Independent Sector Placements,Services,12/08/2019,30239520,2162.24,Revenue,"ATCHISON, MR ALAN",Residential Care
Peterborough City Council,Adults,Independent Sector Placements,Services,12/08/2019,30239521,660.00,Revenue,"ATCHISON, MR ALAN",Residential Care
Peterborough City Council,Adults,Independent Sector Placements,Services,12/08/2019,30239525,3065.60,Revenue,"ATCHISON, MR ALAN",Residential Care
Peterborough City Council,Adults,Independent Sector Placements,Services,12/08/2019,30239526,3103.92,Revenue,"ATCHISON, MR ALAN",Residential Care
Peterborough City Council,Adults,Independent Sector Placements,Services,12/08/2019,30239527,685.28,Revenue,"ATCHISON, MR ALAN",Residential Care
Peterborough City Council,Adults,Independent Sector Placements,Services,12/08/2019,30239528,3625.08,Revenue,"ATCHISON, MR ALAN",Residential Care
Peterborough City Council,Adults,Independent Sector Placements,Services,12/08/2019,30239529,4288.00,Revenue,"ATCHISON, MR ALAN",Residential Care
Peterborough City Council,Adults,Independent Sector Placements,Services,12/08/2019,30239530,3812.84,Revenue,"ATCHISON, MR ALAN",Residential Care
Peterborough City Council,Adults,Independent Sector Placements,Services,12/08/2019,30239531,2794.32,Revenue,"ATCHISON, MR ALAN",Residential Care
Peterborough City Council,Adults,Independent Sector Placements,Services,12/08/2019,30239537,587.13,Revenue,Caring Crew Ltd,Home Care
Peterborough City Council,Adults,Independent Sector Placements,Services,12/08/2019,30239538,1232.14,Revenue,Goldcare Homes t/a The Tudors Care Home,Residential Care
Peterborough City Council,Adults,Independent Sector Placements,Services,12/08/2019,30239540,1051.90,Revenue,Sahara Community Care Services Limited,Home Care
Peterborough City Council,Adults,Independent Sector Placements,Services,12/08/2019,30239541,757.86,Revenue,Sahara Community Care Services Limited,Home Care
Peterborough City Council,Adults,Independent Sector Placements,Services,12/08/2019,30239543,1792.60,Revenue,THE LODGE TRUST,Residential Care
Peterborough City Council,Adults,Independent Sector Placements,Services,12/08/2019,30239544,1792.60,Revenue,THE LODGE TRUST,Residential Care
Peterborough City Council,Adults,Independent Sector Placements,Services,12/08/2019,30239545,4397.00,Revenue,OAKFIELD (EASTON MAUDIT) LTD,Residential Care
Peterborough City Council,Adults,Independent Sector Placements,Services,12/08/2019,30239546,4397.00,Revenue,OAKFIELD (EASTON MAUDIT) LTD,Residential Care
Peterborough City Council,Adults,Independent Sector Placements,Services,12/08/2019,30239570,2648.00,Revenue,PHILIA LODGE REST HOME,Residential Care
Peterborough City Council,Adults,Independent Sector Placements,Services,12/08/2019,30239575,2648.00,Revenue,PHILIA LODGE REST HOME,Residential Care
Peterborough City Council,Adults,Independent Sector Placements,Services,12/08/2019,30239576,2648.00,Revenue,PHILIA LODGE REST HOME,Residential Care
Peterborough City Council,Adults,Independent Sector Placements,Services,12/08/2019,30239577,2186.60,Revenue,STAR RESIDENTIAL HOME LTD,Residential Care
Peterborough City Council,Adults,Independent Sector Placements,Services,12/08/2019,30239578,2223.56,Revenue,STAR RESIDENTIAL HOME LTD,Residential Care
Peterborough City Council,Adults,Independent Sector Placements,Services,12/08/2019,30239579,1543.64,Revenue,STAR RESIDENTIAL HOME LTD,Residential Care
Peterborough City Council,Adults,Independent Sector Placements,Services,12/08/2019,30239580,2035.40,Revenue,STAR RESIDENTIAL HOME LTD,Residential Care
Peterborough City Council,Adults,Independent Sector Placements,Services,12/08/2019,30239581,1490.24,Revenue,STAR RESIDENTIAL HOME LTD,Residential Care
Peterborough City Council,Adults,Independent Sector Placements,Services,12/08/2019,30239582,2030.60,Revenue,STAR RESIDENTIAL HOME LTD,Residential Care
Peterborough City Council,Adults,Independent Sector Placements,Services,12/08/2019,30239584,3233.44,Revenue,STAR RESIDENTIAL HOME LTD,Residential Care
Peterborough City Council,Adults,Independent Sector Placements,Services,12/08/2019,30239585,3785.36,Revenue,STAR RESIDENTIAL HOME LTD,Residential Care
Peterborough City Council,Adults,Independent Sector Placements,Services,12/08/2019,30239586,1930.40,Revenue,STAR RESIDENTIAL HOME LTD,Residential Care
Peterborough City Council,Adults,Independent Sector Placements,Services,12/08/2019,30239587,-1892.68,Revenue,STAR RESIDENTIAL HOME LTD,Residential Care
Peterborough City Council,Adults,Independent Sector Placements,Services,12/08/2019,30239588,2186.96,Revenue,STAR RESIDENTIAL HOME LTD,Residential Care
Peterborough City Council,Adults,Independent Sector Placements,Services,12/08/2019,30239589,1723.76,Revenue,STAR RESIDENTIAL HOME LTD,Residential Care
Peterborough City Council,Adults,Independent Sector Placements,Services,12/08/2019,30239590,2034.40,Revenue,STAR RESIDENTIAL HOME LTD,Residential Care
Peterborough City Council,Adults,Independent Sector Placements,Services,12/08/2019,30239591,2030.60,Revenue,STAR RESIDENTIAL HOME LTD,Residential Care
Peterborough City Council,Adults,Independent Sector Placements,Services,12/08/2019,30239592,2600.80,Revenue,STAR RESIDENTIAL HOME LTD,Residential Care
Peterborough City Council,Adults,Independent Sector Placements,Services,12/08/2019,30239593,1985.56,Revenue,STAR RESIDENTIAL HOME LTD,Residential Care
Peterborough City Council,Adults,Independent Sector Placements,Services,12/08/2019,30239642,1197.00,Revenue,THE HELPING HANDS GROUP,Day Care
Peterborough City Council,Adults,Independent Sector Placements,Services,12/08/2019,30239643,1593.00,Revenue,THE HELPING HANDS GROUP,Day Care
Peterborough City Council,Adults,Independent Sector Placements,Services,12/08/2019,30239644,2318.00,Revenue,THE HELPING HANDS GROUP,Day Care
Peterborough City Council,Adults,Independent Sector Placements,Services,12/08/2019,30239645,2522.25,Revenue,THE HELPING HANDS GROUP,Day Care
Peterborough City Council,Adults,Independent Sector Placements,Services,12/08/2019,30239647,929.25,Revenue,THE HELPING HANDS GROUP,Day Care
Peterborough City Council,Adults,Independent Sector Placements,Services,12/08/2019,30239648,1197.00,Revenue,THE HELPING HANDS GROUP,Day Care
Peterborough City Council,Adults,Independent Sector Placements,Services,12/08/2019,30239649,3645.63,Revenue,THE HELPING HANDS GROUP,Day Care
Peterborough City Council,Adults,Independent Sector Placements,Services,12/08/2019,30239650,1342.00,Revenue,THE HELPING HANDS GROUP,Day Care
Peterborough City Council,Adults,Independent Sector Placements,Services,12/08/2019,30239652,1062.00,Revenue,THE HELPING HANDS GROUP,Day Care
Peterborough City Council,Adults,Independent Sector Placements,Services,12/08/2019,30239653,1991.25,Revenue,THE HELPING HANDS GROUP,Day Care
Peterborough City Council,Adults,Independent Sector Placements,Services,12/08/2019,30239654,2318.00,Revenue,THE HELPING HANDS GROUP,Day Care
Peterborough City Council,Adults,Independent Sector Placements,Services,12/08/2019,30239655,1197.00,Revenue,THE HELPING HANDS GROUP,Day Care
Peterborough City Council,Adults,Independent Sector Placements,Services,12/08/2019,30239656,976.00,Revenue,THE HELPING HANDS GROUP,Day Care
Peterborough City Council,Adults,Independent Sector Placements,Services,12/08/2019,30239658,1326.00,Revenue,THE HELPING HANDS GROUP,Day Care
Peterborough City Council,Adults,Independent Sector Placements,Services,12/08/2019,30239659,945.00,Revenue,THE HELPING HANDS GROUP,Day Care
Peterborough City Council,Adults,Independent Sector Placements,Services,12/08/2019,30239660,2318.00,Revenue,THE HELPING HANDS GROUP,Day Care
Peterborough City Council,Adults,Independent Sector Placements,Services,12/08/2019,30239662,504.00,Revenue,THE HELPING HANDS GROUP,Day Care
Peterborough City Council,Adults,Independent Sector Placements,Services,12/08/2019,30239663,2318.00,Revenue,THE HELPING HANDS GROUP,Day Care
Peterborough City Council,Adults,Independent Sector Placements,Services,12/08/2019,30239664,956.75,Revenue,THE HELPING HANDS GROUP,Day Care
Peterborough City Council,Adults,Independent Sector Placements,Services,12/08/2019,30239665,756.00,Revenue,THE HELPING HANDS GROUP,Day Care
Peterborough City Council,Adults,Independent Sector Placements,Services,12/08/2019,30239686,2600.00,Revenue,Pilgrim Havens,Residential Care
Peterborough City Council,Adults,Independent Sector Placements,Services,12/08/2019,30239687,3600.00,Revenue,Pilgrim Havens,Residential Care
Peterborough City Council,Adults,Independent Sector Placements,Services,12/08/2019,30239689,-3166.00,Revenue,Pilgrim Havens,Residential Care
Peterborough City Council,Corporate Property,Commercial Propety,Rents,12/08/2019,30239690,526.00,Revenue,Redacted Personal Data,Rent
Peterborough City Council,Adults,Independent Sector Placements,Services,12/08/2019,30239691,6132.00,Revenue,Craegmoor Conquest Lodge Priory,Residential Care
Peterborough City Council,Adults,Independent Sector Placements,Services,12/08/2019,30239692,6132.00,Revenue,Craegmoor Conquest Lodge Priory,Residential Care
Peterborough City Council,Adults,Independent Sector Placements,Services,12/08/2019,30239693,621.02,Revenue,Bluebird Care Peterborough,Home Care
Peterborough City Council,Legal Services,Legal Services,Services,12/08/2019,30239704,1300.00,Revenue,"Sleight, Mr Nigel",Legal Costs
Peterborough City Council,Adults,Independent Sector Placements,Services,12/08/2019,30239725,12558.00,Revenue,Affinity Trust,Home Care
Peterborough City Council,Adults,Independent Sector Placements,Services,12/08/2019,30239726,15708.00,Revenue,Affinity Trust,Home Care
Peterborough City Council,Adults,Independent Sector Placements,Services,12/08/2019,30239727,17253.60,Revenue,Affinity Trust,Home Care
Peterborough City Council,Adults,Independent Sector Placements,Services,12/08/2019,30239733,1722.76,Revenue,BROADLEIGH NURSING HOME,Residential Care
Peterborough City Council,Adults,Independent Sector Placements,Services,12/08/2019,30239734,1722.76,Revenue,BROADLEIGH NURSING HOME,Residential Care
Peterborough City Council,Adults,Independent Sector Placements,Services,12/08/2019,30239736,784.09,Revenue,BROADLEIGH NURSING HOME,Residential Care
Peterborough City Council,Adults,Independent Sector Placements,Services,12/08/2019,30239771,2318.36,Revenue,Athena (Ashlynn Grange),Residential Care
Peterborough City Council,Adults,Independent Sector Placements,Services,12/08/2019,30239774,1685.72,Revenue,Athena (Ashlynn Grange),Residential Care
Peterborough City Council,Adults,Independent Sector Placements,Services,12/08/2019,30239784,1685.72,Revenue,Athena (Ashlynn Grange),Residential Care
Peterborough City Council,Adults,Independent Sector Placements,Services,12/08/2019,30239785,2565.42,Revenue,Athena (Ashlynn Grange),Residential Care
Peterborough City Council,Adults,Independent Sector Placements,Services,12/08/2019,30239793,-684.30,Revenue,Craegmoor Conquest Lodge Priory,Residential Care
Peterborough City Council,Adults,Independent Sector Placements,Services,12/08/2019,30239795,-538.75,Revenue,Craegmoor Conquest Lodge Priory,Residential Care
Peterborough City Council,"Director, OP & JV",Growth HoS,Third Party Payments,12/08/2019,30239824,1702902.31,Revenue & Capital,Skanska Construction UK Ltd,Third Party Payments - Contract
Peterborough City Council,Adults,Independent Sector Placements,Services,12/08/2019,30239826,13154.50,Revenue,Barchester Healthcare (Werrington Lodge),Residential Care
Peterborough City Council,Adults,Independent Sector Placements,Services,12/08/2019,30239827,1107.82,Revenue,Barchester Healthcare (Werrington Lodge),Residential Care
Peterborough City Council,Adults,Independent Sector Placements,Services,12/08/2019,30239828,1142.64,Revenue,Barchester Healthcare (Werrington Lodge),Residential Care
Peterborough City Council,Adults,Independent Sector Placements,Services,12/08/2019,30239829,2340.00,Revenue,Barchester Healthcare (Werrington Lodge),Residential Care
Peterborough City Council,Adults,Independent Sector Placements,Services,12/08/2019,30239830,-1696.76,Revenue,Barchester Healthcare (Werrington Lodge),Residential Care
Peterborough City Council,Adults,Independent Sector Placements,Services,12/08/2019,30239831,1854.72,Revenue,Barchester Healthcare (Werrington Lodge),Residential Care
Peterborough City Council,Adults,Independent Sector Placements,Services,12/08/2019,30239832,1126.64,Revenue,Barchester Healthcare (Werrington Lodge),Residential Care
Peterborough City Council,Adults,Independent Sector Placements,Services,12/08/2019,30239833,1126.64,Revenue,Barchester Healthcare (Werrington Lodge),Residential Care
Peterborough City Council,Adults,Independent Sector Placements,Services,12/08/2019,30239834,1964.05,Revenue,Barchester Healthcare (Werrington Lodge),Residential Care
Peterborough City Council,Adults,Independent Sector Placements,Services,12/08/2019,30239835,9259.11,Revenue,Barchester Healthcare (Werrington Lodge),Residential Care
Peterborough City Council,Adults,Independent Sector Placements,Services,12/08/2019,30239836,7205.25,Revenue,Barchester Healthcare (Werrington Lodge),Residential Care
Peterborough City Council,Adults,Independent Sector Placements,Services,12/08/2019,30239837,18385.71,Revenue,Barchester Healthcare (Werrington Lodge),Residential Care
Peterborough City Council,Adults,Independent Sector Placements,Services,12/08/2019,30239840,4547.40,Revenue,Barchester Healthcare (Werrington Lodge),Residential Care
Peterborough City Council,Communities,Parking Services,Energy Costs,12/08/2019,30239843,4196.71,Revenue,EDF Energy Networks Ltd,Electricity
Peterborough City Council,Corporate Property,Office Accomodation,Energy Costs,12/08/2019,30239843,17344.21,Revenue,EDF Energy Networks Ltd,Electricity
Peterborough City Council,City Centre Management,"Markets, Tourism & Events",Energy Costs,12/08/2019,30239843,1049.18,Revenue,EDF Energy Networks Ltd,Electricity
Peterborough City Council,Communities,Cultural Services,Energy Costs,12/08/2019,30239843,4822.95,Revenue,EDF Energy Networks Ltd,Electricity
Peterborough City Council,Communities,Cultural Services,Energy Costs,12/08/2019,30239843,5094.60,Revenue,EDF Energy Networks Ltd,Electricity
Peterborough City Council,Communities,Cultural Services,Energy Costs,12/08/2019,30239843,508.93,Revenue,EDF Energy Networks Ltd,Electricity
Peterborough City Council,"Cemeteries, Cremation & Registrars",Bereavement Service,Energy Costs,12/08/2019,30239843,2090.54,Revenue,EDF Energy Networks Ltd,Electricity
Peterborough City Council,Communities,Cultural Services,Energy Costs,12/08/2019,30239844,4502.77,Revenue,EDF Energy Networks Ltd,Electricity
Peterborough City Council,City Centre Management,"Markets, Tourism & Events",Energy Costs,12/08/2019,30239844,818.16,Revenue,EDF Energy Networks Ltd,Electricity
Peterborough City Council,Corporate Property,Office Accomodation,Energy Costs,12/08/2019,30239844,4408.54,Revenue,EDF Energy Networks Ltd,Electricity
Peterborough City Council,"Waste, Cleansing and Open Spaces",Waste & Operational Svs Mgmt,Energy Costs,12/08/2019,30239844,1241.26,Revenue,EDF Energy Networks Ltd,Electricity
Peterborough City Council,Communities,Community Capacity,Energy Costs,12/08/2019,30239844,3636.94,Revenue,EDF Energy Networks Ltd,Electricity
Peterborough City Council,"Cemeteries, Cremation & Registrars",Bereavement Service,Services,12/08/2019,30239846,627.32,Revenue,Yaboo Company Ltd T/a Wesley Music,Hired Services
Peterborough City Council,Adults,Independent Sector Placements,Services,12/08/2019,30239847,1239.80,Revenue,Park Vista Care Home,Residential Care
Peterborough City Council,Adults,Independent Sector Placements,Services,12/08/2019,30239848,-1852.73,Revenue,Barchester Healthcare (Werrington Lodge),Residential Care
Peterborough City Council,Adults,Independent Sector Placements,Services,12/08/2019,30239849,-2033.49,Revenue,Barchester Healthcare (Werrington Lodge),Residential Care
Peterborough City Council,Adults,Independent Sector Placements,Services,12/08/2019,30239864,-3328.73,Revenue,Barchester Healthcare (Werrington Lodge),Residential Care
Peterborough City Council,Adults,Independent Sector Placements,Services,12/08/2019,30239865,-658.28,Revenue,Barchester Healthcare (Werrington Lodge),Residential Care
Peterborough City Council,Adults,Independent Sector Placements,Services,12/08/2019,30239868,-11893.20,Revenue,Barchester Healthcare (Werrington Lodge),Residential Care
Peterborough City Council,Adults,Independent Sector Placements,Services,12/08/2019,30239869,-759.99,Revenue,Barchester Healthcare (Werrington Lodge),Residential Care
Peterborough City Council,Adults,Independent Sector Placements,Services,12/08/2019,30239871,-566.05,Revenue,Barchester Healthcare (Werrington Lodge),Residential Care
Peterborough City Council,Adults,Independent Sector Placements,Services,12/08/2019,30239873,1102.36,Revenue,Barchester Healthcare (Werrington Lodge),Residential Care
Peterborough City Council,Adults,Independent Sector Placements,Services,12/08/2019,30239874,1884.96,Revenue,Barchester Healthcare (Werrington Lodge),Residential Care
Peterborough City Council,Adults,Independent Sector Placements,Services,12/08/2019,30239875,2448.60,Revenue,Barchester Healthcare (Werrington Lodge),Residential Care
Peterborough City Council,Adults,Independent Sector Placements,Services,12/08/2019,30239877,1829.56,Revenue,Barchester Healthcare (Werrington Lodge),Residential Care
Peterborough City Council,Adults,Independent Sector Placements,Services,12/08/2019,30239878,2408.08,Revenue,Barchester Healthcare (Werrington Lodge),Residential Care
Peterborough City Council,Adults,Independent Sector Placements,Services,12/08/2019,30239880,-1273.60,Revenue,Barchester Healthcare (Werrington Lodge),Residential Care
Peterborough City Council,Children�s & Safeguarding,Children�s Social Care,Services,12/08/2019,30239888,1087.50,Revenue,H.O.P.E Superjobs Limited,Purchased Social Care Services
Peterborough City Council,"Waste, Cleansing and Open Spaces",Waste Management,Services,12/08/2019,30239890,2911.26,Revenue,Bourne Skip Hire and Recycling Limited,Waste Disposal
Peterborough City Council,Adults,Independent Sector Placements,Services,12/08/2019,30239892,759.99,Revenue,Barchester Healthcare (Werrington Lodge),Residential Care
Peterborough City Council,Adults,Independent Sector Placements,Services,12/08/2019,30239895,2417.76,Revenue,Barchester Healthcare (Werrington Lodge),Residential Care
Peterborough City Council,Adults,Independent Sector Placements,Services,12/08/2019,30239896,2448.60,Revenue,Barchester Healthcare (Werrington Lodge),Residential Care
Peterborough City Council,Adults,Independent Sector Placements,Services,12/08/2019,30239897,2517.04,Revenue,Barchester Healthcare (Werrington Lodge),Residential Care
Peterborough City Council,Adults,Independent Sector Placements,Services,12/08/2019,30239898,2483.04,Revenue,Barchester Healthcare (Werrington Lodge),Residential Care
Peterborough City Council,Adults,Independent Sector Placements,Services,12/08/2019,30239899,3120.00,Revenue,Barchester Healthcare (Werrington Lodge),Residential Care
Peterborough City Council,Adults,Independent Sector Placements,Services,12/08/2019,30239900,5964.93,Revenue,Barchester Healthcare (Werrington Lodge),Residential Care
Peterborough City Council,Adults,Independent Sector Placements,Services,12/08/2019,30239901,1820.88,Revenue,Barchester Healthcare (Werrington Lodge),Residential Care
Peterborough City Council,Adults,Independent Sector Placements,Services,12/08/2019,30239902,1097.04,Revenue,Barchester Healthcare (Werrington Lodge),Residential Care
Peterborough City Council,Adults,Independent Sector Placements,Services,12/08/2019,30239903,2533.34,Revenue,Barchester Healthcare (Werrington Lodge),Residential Care
Peterborough City Council,Adults,Independent Sector Placements,Services,12/08/2019,30239904,3149.60,Revenue,Barchester Healthcare (Werrington Lodge),Residential Care
Peterborough City Council,Adults,Independent Sector Placements,Services,12/08/2019,30239905,-7102.34,Revenue,Barchester Healthcare (Werrington Lodge),Residential Care
Peterborough City Council,Adults,Independent Sector Placements,Services,12/08/2019,30239906,2564.44,Revenue,Barchester Healthcare (Werrington Lodge),Residential Care
Peterborough City Council,Adults,Independent Sector Placements,Services,12/08/2019,30239907,1117.74,Revenue,Barchester Healthcare (Werrington Lodge),Residential Care
Peterborough City Council,Adults,Independent Sector Placements,Services,12/08/2019,30239908,1849.98,Revenue,Barchester Healthcare (Werrington Lodge),Residential Care
Peterborough City Council,Adults,Independent Sector Placements,Services,12/08/2019,30239909,3698.12,Revenue,Barchester Healthcare (Werrington Lodge),Residential Care
Peterborough City Council,Adults,Independent Sector Placements,Services,12/08/2019,30239910,2512.64,Revenue,Barchester Healthcare (Werrington Lodge),Residential Care
Peterborough City Council,Adults,Independent Sector Placements,Services,12/08/2019,30239911,3149.60,Revenue,Barchester Healthcare (Werrington Lodge),Residential Care
Peterborough City Council,Adults,Independent Sector Placements,Services,12/08/2019,30239912,1172.44,Revenue,Barchester Healthcare (Werrington Lodge),Residential Care
Peterborough City Council,Adults,Independent Sector Placements,Services,12/08/2019,30239913,2347.96,Revenue,Barchester Healthcare (Werrington Lodge),Residential Care
Peterborough City Council,Adults,Independent Sector Placements,Services,12/08/2019,30239914,2523.56,Revenue,Barchester Healthcare (Werrington Lodge),Residential Care
Peterborough City Council,Adults,Independent Sector Placements,Services,12/08/2019,30239915,1090.12,Revenue,Barchester Healthcare (Werrington Lodge),Residential Care
Peterborough City Council,Corporate Property,Commercial Propety,Rents,12/08/2019,30239916,951.69,Revenue,Redacted Personal Data,Rent
Peterborough City Council,Corporate,Corporate,Non Revenue,12/08/2019,30239917,1083.34,Balance Sheet,Classic Cleaners,Refunds
Peterborough City Council,Corporate,Corporate,Non Revenue,12/08/2019,30239919,17730.00,Balance Sheet,LGSS Cambridgeshire Pension Fund,Pensions
Peterborough City Council,Corporate,Corporate,Non Revenue,12/08/2019,30239921,71937.02,Balance Sheet,LGSS Cambridgeshire Pension Fund,Pensions
Peterborough City Council,Corporate,Corporate,Non Revenue,12/08/2019,30239922,7130.68,Balance Sheet,NHS Pensions,Pensions
Peterborough City Council,Corporate,Corporate,Non Revenue,12/08/2019,30239925,3916.33,Balance Sheet,NHS Pensions,Pensions
Peterborough City Council,Adults,Independent Sector Placements,Services,12/08/2019,8000147819,615.57,Revenue,Cross Keys Homes,Home Care
Peterborough City Council,Adults,Independent Sector Placements,Services,12/08/2019,8000147822,566.00,Revenue,Cross Keys Homes,Home Care
Peterborough City Council,Adults,Independent Sector Placements,Services,12/08/2019,8000147823,2645.00,Revenue,Cross Keys Homes,Home Care
Peterborough City Council,Adults,Independent Sector Placements,Services,12/08/2019,8000147824,569.42,Revenue,Cross Keys Homes,Home Care
Peterborough City Council,Adults,Independent Sector Placements,Services,12/08/2019,8000147826,558.00,Revenue,Cross Keys Homes,Home Care
Peterborough City Council,Adults,Independent Sector Placements,Services,12/08/2019,8000147827,643.37,Revenue,Cross Keys Homes,Home Care
Peterborough City Council,Adults,Independent Sector Placements,Services,12/08/2019,8000147829,2874.50,Revenue,Cross Keys Homes,Home Care
Peterborough City Council,Adults,Independent Sector Placements,Services,12/08/2019,8000147830,540.00,Revenue,Cross Keys Homes,Home Care
Peterborough City Council,Adults,Independent Sector Placements,Services,12/08/2019,8000147831,705.33,Revenue,Cross Keys Homes,Home Care
Peterborough City Council,Adults,Independent Sector Placements,Services,12/08/2019,8000147832,856.03,Revenue,Cross Keys Homes,Home Care
Peterborough City Council,Adults,Independent Sector Placements,Services,12/08/2019,8000147835,930.00,Revenue,Cross Keys Homes,Home Care
Peterborough City Council,Adults,Independent Sector Placements,Services,12/08/2019,8000147838,846.86,Revenue,Cross Keys Homes,Home Care
Peterborough City Council,Adults,Independent Sector Placements,Services,12/08/2019,8000147842,842.90,Revenue,Cross Keys Homes,Home Care
Peterborough City Council,Adults,Independent Sector Placements,Services,12/08/2019,8000147843,1021.15,Revenue,Cross Keys Homes,Home Care
Peterborough City Council,Adults,Independent Sector Placements,Services,12/08/2019,8000147845,1319.84,Revenue,Cross Keys Homes,Home Care
Peterborough City Council,Adults,Independent Sector Placements,Services,12/08/2019,8000147847,750.21,Revenue,Cross Keys Homes,Home Care
Peterborough City Council,Adults,Independent Sector Placements,Services,12/08/2019,8000147849,1053.92,Revenue,Cross Keys Homes,Home Care
Peterborough City Council,Adults,Independent Sector Placements,Services,12/08/2019,8000147850,646.00,Revenue,Cross Keys Homes,Home Care
Peterborough City Council,Adults,Independent Sector Placements,Services,12/08/2019,8000147851,612.76,Revenue,Cross Keys Homes,Home Care
Peterborough City Council,Adults,Independent Sector Placements,Services,12/08/2019,8000147856,559.98,Revenue,Longhurst Group Limited,Home Care
Peterborough City Council,Adults,Independent Sector Placements,Services,12/08/2019,8000147868,991.44,Revenue,Longhurst Group Limited,Home Care
Peterborough City Council,Adults,Independent Sector Placements,Services,12/08/2019,8000147869,599.76,Revenue,Longhurst Group Limited,Home Care
Peterborough City Council,Adults,Independent Sector Placements,Services,12/08/2019,8000147870,514.08,Revenue,Longhurst Group Limited,Home Care
Peterborough City Council,Adults,Independent Sector Placements,Services,12/08/2019,8000147874,504.90,Revenue,Longhurst Group Limited,Home Care
Peterborough City Council,Adults,Independent Sector Placements,Services,12/08/2019,8000147878,599.76,Revenue,Longhurst Group Limited,Home Care
Peterborough City Council,Adults,Independent Sector Placements,Services,12/08/2019,8000147883,1542.24,Revenue,Longhurst Group Limited,Home Care
Peterborough City Council,Adults,Independent Sector Placements,Services,12/08/2019,8000147884,514.08,Revenue,Longhurst Group Limited,Home Care
Peterborough City Council,Adults,Independent Sector Placements,Services,12/08/2019,8000147885,660.96,Revenue,Longhurst Group Limited,Home Care
Peterborough City Council,Adults,Independent Sector Placements,Services,12/08/2019,8000147886,514.08,Revenue,Longhurst Group Limited,Home Care
Peterborough City Council,Adults,Independent Sector Placements,Services,12/08/2019,8000147887,685.44,Revenue,Longhurst Group Limited,Home Care
Peterborough City Council,Adults,Independent Sector Placements,Services,12/08/2019,8000147890,2399.04,Revenue,Longhurst Group Limited,Home Care
Peterborough City Council,Adults,Independent Sector Placements,Services,12/08/2019,8000147892,526.32,Revenue,Longhurst Group Limited,Home Care
Peterborough City Council,Adults,Independent Sector Placements,Services,12/08/2019,8000147893,599.76,Revenue,Longhurst Group Limited,Home Care
Peterborough City Council,Adults,Independent Sector Placements,Services,12/08/2019,8000147894,979.20,Revenue,Longhurst Group Limited,Home Care
Peterborough City Council,Adults,Independent Sector Placements,Services,12/08/2019,8000147896,918.00,Revenue,Longhurst Group Limited,Home Care
Peterborough City Council,Adults,Independent Sector Placements,Services,12/08/2019,8000147897,599.76,Revenue,Longhurst Group Limited,Home Care
Peterborough City Council,Adults,Independent Sector Placements,Services,12/08/2019,8000147901,685.44,Revenue,Longhurst Group Limited,Home Care
Peterborough City Council,Adults,Independent Sector Placements,Services,12/08/2019,8000147902,685.44,Revenue,Longhurst Group Limited,Home Care
Peterborough City Council,Adults,Independent Sector Placements,Services,12/08/2019,8000147905,514.08,Revenue,Longhurst Group Limited,Home Care
Peterborough City Council,Adults,Independent Sector Placements,Services,12/08/2019,8000147906,514.08,Revenue,Longhurst Group Limited,Home Care
Peterborough City Council,Adults,Independent Sector Placements,Services,12/08/2019,8000147916,1744.20,Revenue,Longhurst Group Limited,Home Care
Peterborough City Council,Adults,Independent Sector Placements,Services,12/08/2019,8000148024,788.12,Revenue,Allied Health Services Ltd T/A Allied Healthcare,Home Care
Peterborough City Council,Adults,Independent Sector Placements,Services,12/08/2019,8000148026,1756.08,Revenue,Allied Health Services Ltd T/A Allied Healthcare,Home Care
Peterborough City Council,Adults,Independent Sector Placements,Services,12/08/2019,8000148027,674.06,Revenue,Allied Health Services Ltd T/A Allied Healthcare,Home Care
Peterborough City Council,Adults,Independent Sector Placements,Services,12/08/2019,8000148032,565.92,Revenue,Allied Health Services Ltd T/A Allied Healthcare,Home Care
Peterborough City Council,Adults,Independent Sector Placements,Services,12/08/2019,8000148034,510.77,Revenue,Allied Health Services Ltd T/A Allied Healthcare,Home Care
Peterborough City Council,Adults,Independent Sector Placements,Services,12/08/2019,8000148036,2759.04,Revenue,Allied Health Services Ltd T/A Allied Healthcare,Home Care
Peterborough City Council,Adults,Independent Sector Placements,Services,12/08/2019,8000148049,622.50,Revenue,Cross Keys Homes,Home Care
Peterborough City Council,Adults,Independent Sector Placements,Services,12/08/2019,8000148050,555.00,Revenue,Cross Keys Homes,Home Care
Peterborough City Council,Adults,Independent Sector Placements,Services,12/08/2019,8000148756,635.75,Revenue,Cross Keys Homes,Home Care
Peterborough City Council,Education,HTS & CSC Transport,Contract Hire and Operating Leases,12/08/2019,8000149093,838.50,Revenue,Redacted Personal Data,Hired Transport
Peterborough City Council,Education,HTS & CSC Transport,Contract Hire and Operating Leases,12/08/2019,8000149094,1292.62,Revenue,Redacted Personal Data,Hired Transport
Peterborough City Council,Legal & Democratic,Democratic Services,Contract Hire and Operating Leases,12/08/2019,8000149954,534.32,Revenue,Lex Autolease Ltd,Leasing Charges
Peterborough City Council,Adults,Independent Sector Placements,Services,14/08/2019,30231547,1969.24,Revenue,Healthcare Homes Group Ltd,Residential Care
Peterborough City Council,Adults,Independent Sector Placements,Services,14/08/2019,30234406,6543.32,Revenue,Mencap,Home Care
Peterborough City Council,Corporate,Corporate,Non Revenue,14/08/2019,30236547,3975.00,Capital,LDA Design Consulting Ltd,Consultants Fees
Peterborough City Council,"Cemeteries, Cremation & Registrars",Bereavement Service,"Tools, Equipment, Furniture & Materials",14/08/2019,30237901,533.32,Revenue,Serco Ltd,Computer Hardware
Peterborough City Council,Corporate,Corporate,Non Revenue,14/08/2019,30237912,1317.00,Capital,Serco Ltd,Consultants Fees
Peterborough City Council,Development and Construction,Planning Compliance,Agency Staff,14/08/2019,30237957,1888.50,Revenue,Park Avenue Recruitment Limited,External Temporary Staff
Peterborough City Council,Children�s & Safeguarding,Commissioning - CSC,Services,14/08/2019,30237966,845.88,Revenue,Sahara Community Care Services Limited,Purchased Social Care Services
Peterborough City Council,Legal Services,Legal Services,Services,14/08/2019,30237980,650.00,Revenue,"Walji, Miss Shabnam",Legal Costs
Peterborough City Council,Adults,Independent Sector Placements,Services,14/08/2019,30237983,2735.48,Revenue,Kemps Place Ltd,Residential Care
Peterborough City Council,Adults,Independent Sector Placements,Services,14/08/2019,30237984,1094.56,Revenue,Kemps Place Ltd,Residential Care
Peterborough City Council,Adults,Independent Sector Placements,Services,14/08/2019,30237985,2731.84,Revenue,Kemps Place Ltd,Residential Care
Peterborough City Council,City Centre Management,"Markets, Tourism & Events",Repair & Maintenance of Buildings,14/08/2019,30238051,2620.00,Revenue,ATG Access,Premises Maintenance
Peterborough City Council,Director of Governance,Gov HOS,Agency Staff,14/08/2019,30238076,2103.75,Revenue,Venn Group Ltd,External Temporary Staff
Peterborough City Council,Legal Services,Legal Services,Agency Staff,14/08/2019,30238077,2184.16,Revenue,Venn Group Ltd,External Temporary Staff
Peterborough City Council,Legal Services,Legal Services,Agency Staff,14/08/2019,30238078,2062.50,Revenue,Venn Group Ltd,External Temporary Staff
Peterborough City Council,Development and Construction,Development Management,Services,14/08/2019,30238090,718.42,Revenue,JPIMedia Publishing Ltd,Advertising
Peterborough City Council,Legal Services,Legal Services,Agency Staff,14/08/2019,30238115,787.75,Revenue,Venn Group Ltd,External Temporary Staff
Peterborough City Council,Legal Services,Legal Services,Agency Staff,14/08/2019,30238116,1606.50,Revenue,Venn Group Ltd,External Temporary Staff
Peterborough City Council,Peterborough Highway Services,Transport & Infrastructure Commissioning,Transport Expenses,14/08/2019,30238176,1937.89,Revenue,Stagecoach in Peterborough,Public Transport
Peterborough City Council,Peterborough Highway Services,Transport & Infrastructure Commissioning,Transport Expenses,14/08/2019,30238177,527.73,Revenue,Stagecoach in Peterborough,Public Transport
Peterborough City Council,Adults,Independent Sector Placements,Services,14/08/2019,30238182,2034.88,Revenue,Healthcare Homes Group Ltd,Residential Care
Peterborough City Council,Adults,Independent Sector Placements,Services,14/08/2019,30238184,794.45,Revenue,Healthcare Homes Group Ltd,Residential Care
Peterborough City Council,Adults,Independent Sector Placements,Services,14/08/2019,30238185,1057.40,Revenue,Healthcare Homes Group Ltd,Residential Care
Peterborough City Council,Adults,Independent Sector Placements,Services,14/08/2019,30238186,1057.40,Revenue,Healthcare Homes Group Ltd,Residential Care
Peterborough City Council,Communities,Targeted Youth Service,Services,14/08/2019,30238193,1400.00,Revenue,The Princes Trust,Youth Programmes
Peterborough City Council,Adults,Independent Sector Placements,Services,14/08/2019,30238334,2589.53,Revenue,Maxey House Res Home,Residential Care
Peterborough City Council,Adults,Independent Sector Placements,Services,14/08/2019,30238336,975.20,Revenue,Maxey House Res Home,Residential Care
Peterborough City Council,Adults,Independent Sector Placements,Services,14/08/2019,30238338,1821.88,Revenue,Maxey House Res Home,Residential Care
Peterborough City Council,Adults,Independent Sector Placements,Services,14/08/2019,30238339,1120.00,Revenue,Maxey House Res Home,Residential Care
Peterborough City Council,Adults,Independent Sector Placements,Services,14/08/2019,30238365,9168.60,Revenue,Autism Care (UK) Ltd,Residential Care
Peterborough City Council,Adults,Independent Sector Placements,Services,14/08/2019,30238386,1284.48,Revenue,Maxey House Res Home,Residential Care
Peterborough City Council,Adults,Independent Sector Placements,Services,14/08/2019,30238387,1679.96,Revenue,Maxey House Res Home,Residential Care
Peterborough City Council,Adults,Independent Sector Placements,Services,14/08/2019,30238388,2025.00,Revenue,Maxey House Res Home,Residential Care
Peterborough City Council,Adults,Independent Sector Placements,Services,14/08/2019,30238393,1821.88,Revenue,Maxey House Res Home,Residential Care
Peterborough City Council,Adults,Independent Sector Placements,Services,14/08/2019,30238394,1576.24,Revenue,Maxey House Res Home,Residential Care
Peterborough City Council,Adults,Independent Sector Placements,Services,14/08/2019,30238395,1410.24,Revenue,Maxey House Res Home,Residential Care
Peterborough City Council,Adults,Independent Sector Placements,Services,14/08/2019,30238396,900.00,Revenue,Maxey House Res Home,Residential Care
Peterborough City Council,Adults,Independent Sector Placements,Services,14/08/2019,30238397,1213.32,Revenue,Maxey House Res Home,Residential Care
Peterborough City Council,Adults,Independent Sector Placements,Services,14/08/2019,30238398,888.08,Revenue,Maxey House Res Home,Residential Care
Peterborough City Council,Peterborough Highway Services,Transport & Infrastructure Commissioning,Transport Expenses,14/08/2019,30238460,1937.89,Revenue,Stagecoach in Peterborough,Public Transport
Peterborough City Council,Peterborough Highway Services,Transport & Infrastructure Commissioning,Transport Expenses,14/08/2019,30238461,1937.89,Revenue,Stagecoach in Peterborough,Public Transport
Peterborough City Council,HR,HR WFD & Training,Services,14/08/2019,30238469,1900.00,Revenue,Daisy Bogg Consutlancy Ltd,Training
Peterborough City Council,ICT,ICT,Services,14/08/2019,30238473,32100.00,Revenue,i3MEDIA Limited,Computer Software
Peterborough City Council,Commissioning and Commercial Operations,Clare Lodge,Services,14/08/2019,30238482,2300.00,Revenue,"Asplin, Ms Holly",Hired Services
Peterborough City Council,Peterborough Highway Services,Transport & Infrastructure Commissioning,Transport Expenses,14/08/2019,30238487,1937.89,Revenue,Stagecoach in Peterborough,Public Transport
Peterborough City Council,Children�s & Safeguarding,Children�s Social Care,Transport Expenses,14/08/2019,30238501,5068.20,Revenue,R S P LTD,Public Transport
Peterborough City Council,Adults,Independent Sector Placements,Services,14/08/2019,30238536,2347.96,Revenue,Athena (Ashlynn Grange),Residential Care
Peterborough City Council,Adults,Independent Sector Placements,Services,14/08/2019,30238557,3000.00,Revenue,The Bancroft Residential Home Limited,Residential Care
Peterborough City Council,Communities,Housing,Services,14/08/2019,30238569,8110.48,Revenue,DA Rosalia Hotel,Temporary Accommodation Costs
Peterborough City Council,Westcombe Engineering,Westcombe Engineering,"Tools, Equipment, Furniture & Materials",14/08/2019,30238575,2535.00,Revenue,AALCO,Materials
Peterborough City Council,Corporate,Corporate,Non Revenue,14/08/2019,30238607,28797.40,Capital,Bowie Lockwood Structures Ltd,Building And Site Works
Peterborough City Council,Commissioning and Commercial Operations,Clare Lodge,Cleaning & Domestic Supplies,14/08/2019,30238620,886.81,Revenue,Bunzl UK Ltd t/a Industrial Supplies,Cleaning Materials
Peterborough City Council,Commissioning and Commercial Operations,Clare Lodge,Services,14/08/2019,30238621,1000.00,Revenue,Cambridgeshire County Council,Training
Peterborough City Council,Commissioning and Commercial Operations,Clare Lodge,Services,14/08/2019,30238625,4157.24,Revenue,Zip Heaters (uk) Limited,Hired Services
Peterborough City Council,Communities,Regulatory Services,"Tools, Equipment, Furniture & Materials",14/08/2019,30238772,2054.23,Revenue,VIP-System Ltd,Equipment
Peterborough City Council,"Cemeteries, Cremation & Registrars",Bereavement Service,Repair & Maintenance of Buildings,14/08/2019,30238773,1912.82,Revenue,Facultatieve Technologies Ltd,Cremators
Peterborough City Council,Adults,Therapy/Reablement/Community Equipment,"Tools, Equipment, Furniture & Materials",14/08/2019,30238988,741.59,Revenue,Action on Hearing Loss (Equipment),Occupational Therapy Equipment
Peterborough City Council,Education,Schools Finance,Services,14/08/2019,30239008,750.00,Revenue,CLEAPSS,Licences
Peterborough City Council,Education,Schools Finance,Services,14/08/2019,30239009,5479.12,Revenue,CLEAPSS,Licences
Peterborough City Council,Energy,Environment Capital,Services,14/08/2019,30239054,11300.00,Revenue,Deloitte LLP,Professional Services
Peterborough City Council,Westcombe Engineering,Westcombe Engineering,"Tools, Equipment, Furniture & Materials",14/08/2019,30239056,509.85,Revenue,Peterborough Plating Ltd,Materials
Peterborough City Council,Children�s & Safeguarding,Children�s Social Care,Transport Expenses,14/08/2019,30239368,1950.00,Revenue,Stagecoach in Peterborough,Public Transport
Peterborough City Council,Peterborough Highway Services,Transport & Infrastructure Commissioning,Transport Expenses,14/08/2019,30239369,1633.61,Revenue,Stagecoach in Peterborough,Public Transport
Peterborough City Council,Adults,Independent Sector Placements,Services,14/08/2019,30239696,2438.60,Revenue,Sanctuary Care Limited,Residential Care
Peterborough City Council,Legal Services,Legal Services,Services,14/08/2019,30239702,650.00,Revenue,"Walji, Miss Shabnam",Legal Costs
Peterborough City Council,Legal Services,Legal Services,Services,14/08/2019,30239703,1968.30,Revenue,Kevin Gordon,Legal Costs
Peterborough City Council,Legal Services,Legal Services,Services,14/08/2019,30239705,775.00,Revenue,Lisa Hannant,Legal Costs
Peterborough City Council,Communities,Housing,Services,14/08/2019,30239792,1000.00,Revenue,Redacted Personal Data,Financial Assistance
Peterborough City Council,Corporate,Corporate,Non Revenue,14/08/2019,30239918,498662.08,Balance Sheet,LGSS Cambridgeshire Pension Fund,Pensions
Peterborough City Council,Corporate,Corporate,Non Revenue,14/08/2019,30239920,199415.08,Balance Sheet,LGSS Cambridgeshire Pension Fund,Pensions
Peterborough City Council,Corporate Property,Commercial Propety,Agency Staff,14/08/2019,30239926,2325.87,Revenue,Reed Specialist Recruitment Limited,External Temporary Staff
Peterborough City Council,Corporate Property,Commercial Propety,Agency Staff,14/08/2019,30239927,2014.85,Revenue,Reed Specialist Recruitment Limited,External Temporary Staff
Peterborough City Council,Corporate Property,Commercial Propety,Agency Staff,14/08/2019,30239928,1960.76,Revenue,Reed Specialist Recruitment Limited,External Temporary Staff
Peterborough City Council,Westcombe Engineering,Westcombe Engineering,"Tools, Equipment, Furniture & Materials",14/08/2019,30239948,2180.00,Revenue,Rivercircle Ltd,Equipment Maintenance
Peterborough City Council,Commissioning and Commercial Operations,Clare Lodge,Services,14/08/2019,30239950,2132.35,Revenue,Ray Worsley Education Consultancy,Consultants Fees
Peterborough City Council,Children�s & Safeguarding,Children�s Social Care,Contract Hire and Operating Leases,14/08/2019,30239954,3402.56,Revenue,Northumbria Healthcare NHS Foundation Trust,Leasing Charges
Peterborough City Council,HR,HR,Services,14/08/2019,30239957,10206.54,Revenue,Edenred,Childcare
Peterborough City Council,Communities,Cultural Services,Services,14/08/2019,30239974,1050.00,Revenue,Peterborough Centre for Young Musicians,Hired Services
Peterborough City Council,Communities,Cultural Services,Services,14/08/2019,30239975,1260.00,Revenue,Peterborough Centre for Young Musicians,Hired Services
Peterborough City Council,Communities,Cultural Services,Services,14/08/2019,30239977,542.50,Revenue,Peterborough Centre for Young Musicians,Hired Services
Peterborough City Council,Legal Services,Legal Services,Services,14/08/2019,30239982,500.00,Revenue,Dr Peter Umezinwa,Expert Witnesses
Peterborough City Council,Peterborough Serco Strategic Partnership,PSSP Retained Services,Services,14/08/2019,30239999,4000.98,Revenue,Pitney Bowes Ltd,Postage
Peterborough City Council,Adults,Other Services,Third Party Payments,14/08/2019,30240000,10416.00,Revenue,P�Boro Council For Voluntary Srvs (PCVS),Third Party Payments - Contract
Peterborough City Council,Communities,Cohesion,Third Party Payments,14/08/2019,30240004,9000.00,Revenue,Olive Branch Community Garden CIC,Grant-Third Party
Peterborough City Council,Communities,Cohesion,Third Party Payments,14/08/2019,30240005,2875.00,Revenue,Gladstone Connect Ltd,Grant-Third Party
Peterborough City Council,Adults,Independent Sector Placements,Services,14/08/2019,30240009,6300.00,Revenue,Fins Care Ltd t/a St Margarets Rest Home,Residential Care
Peterborough City Council,Adults,Independent Sector Placements,Services,14/08/2019,30240022,2333.08,Revenue,Thorpe Wood Care Homes Ltd,Residential Care
Peterborough City Council,Adults,Independent Sector Placements,Services,14/08/2019,30240023,2590.00,Revenue,HEREWARD CARE SERVICES LIMITED,Residential Care
Peterborough City Council,Adults,Independent Sector Placements,Services,14/08/2019,30240025,2139.24,Revenue,HC-One Beamish Limited - St Clares Court,Residential Care
Peterborough City Council,Adults,Independent Sector Placements,Services,14/08/2019,30240026,4714.29,Revenue,Askham Village Community Ltd,Residential Care
Peterborough City Council,Adults,Independent Sector Placements,Services,14/08/2019,30240027,4714.29,Revenue,Askham Village Community Ltd,Residential Care
Peterborough City Council,Adults,Independent Sector Placements,Services,14/08/2019,30240029,696.63,Revenue,Healthcare Homes Group Ltd,Residential Care
Peterborough City Council,Adults,Independent Sector Placements,Services,14/08/2019,30240030,1083.64,Revenue,Healthcare Homes Group Ltd,Residential Care
Peterborough City Council,Constitutional Services,Elections,Services,14/08/2019,30240033,2763.00,Revenue,Principle Protection CP Ltd,Security
Peterborough City Council,Commissioning and Commercial Operations,Access to Resources & Specialist Commissioning,Services,14/08/2019,30240034,16311.43,Revenue,Blue Mountain Homes,Boarding Out Fees
Peterborough City Council,Commissioning and Commercial Operations,Access to Resources & Specialist Commissioning,Services,14/08/2019,30240035,16855.14,Revenue,Blue Mountain Homes,Boarding Out Fees
Peterborough City Council,Adults,Independent Sector Placements,Services,14/08/2019,30240044,1223.44,Revenue,LAVENDER HOUSE RESIDENTIAL HOME,Residential Care
Peterborough City Council,Adults,Independent Sector Placements,Services,14/08/2019,30240046,4397.00,Revenue,OAKFIELD (EASTON MAUDIT) LTD,Residential Care
Peterborough City Council,Commissioning and Commercial Operations,Commissioning,Services,14/08/2019,30240048,963.90,Revenue,121 Social Care Limited,Hired Services
Peterborough City Council,Adults,Independent Sector Placements,Services,14/08/2019,30240051,995.00,Revenue,Park Vista Care Home,Residential Care
Peterborough City Council,Commissioning and Commercial Operations,Access to Resources & Specialist Commissioning,Services,14/08/2019,30240053,21397.44,Revenue,Positive Steps (Care Services) Ltd,Boarding Out Fees
Peterborough City Council,Corporate,Corporate,Non Revenue,14/08/2019,30240061,937.50,Capital,Sibcas Ltd,Building And Site Works
Peterborough City Council,Corporate,Corporate,Non Revenue,14/08/2019,30240073,720.00,Capital,Smooth Removals,Building And Site Works
Peterborough City Council,Children�s & Safeguarding,Children�s Social Care,Agency Staff,14/08/2019,30240078,1314.24,Revenue,HCL Social Care Ltd,External Temporary Staff
Peterborough City Council,Adults,Day opportunities - Older People,Catering,14/08/2019,30240087,810.30,Revenue,The Cresset (Peterborough) Ltd,Catering Provisions
Peterborough City Council,HR,HR,Services,14/08/2019,30240088,610.40,Revenue,Heales Health Services Ltd,Consultants Fees
Peterborough City Council,Corporate Property,Commercial Propety,Repair & Maintenance of Buildings,14/08/2019,30240091,2528.25,Revenue,Opportunity Peterborough,Other Occupancy Costs
Peterborough City Council,Corporate Property,Commercial Propety,Services,14/08/2019,30240124,3549.55,Revenue,G V A Grimley Ltd,Valuations
Peterborough City Council,Corporate,Corporate,Non Revenue,14/08/2019,30240165,788.00,Balance Sheet,Her Majesty�s Revenue and Customs,Taxes
Peterborough City Council,Communities,Housing,Services,14/08/2019,30240170,2840.00,Revenue,Singh and Sons Property Management Ltd,Temporary Accommodation Costs
Peterborough City Council,Communities,Housing,Services,14/08/2019,30240171,3150.00,Revenue,Singh and Sons Property Management Ltd,Temporary Accommodation Costs
Peterborough City Council,Communities,Housing,Services,14/08/2019,30240172,2215.00,Revenue,Singh and Sons Property Management Ltd,Temporary Accommodation Costs
Peterborough City Council,Communities,Housing,Services,14/08/2019,30240173,2980.00,Revenue,Singh and Sons Property Management Ltd,Temporary Accommodation Costs
Peterborough City Council,Commissioning and Commercial Operations,Access to Resources & Specialist Commissioning,Services,14/08/2019,30240208,16311.43,Revenue,Blue Mountain Homes,Boarding Out Fees
Peterborough City Council,Children�s & Safeguarding,Children�s Social Care,Services,14/08/2019,30240212,4000.00,Revenue,Tripod Partners Ltd,Recruitment Fees
Peterborough City Council,Legal Services,Legal Services,Services,14/08/2019,30240251,1307.50,Revenue,Browne Jacobson,Legal Costs
Peterborough City Council,Education,HTS & CSC Transport,Contract Hire and Operating Leases,14/08/2019,8000148069,4275.00,Revenue,Neneway Coaches,Hired Transport
Peterborough City Council,Education,HTS & CSC Transport,Contract Hire and Operating Leases,14/08/2019,8000148071,1050.00,Revenue,Ash School Transport,Hired Transport
Peterborough City Council,Education,HTS & CSC Transport,Contract Hire and Operating Leases,14/08/2019,8000148072,825.00,Revenue,Ash School Transport,Hired Transport
Peterborough City Council,Children�s & Safeguarding,Adult & Children Safeguarding Board,Services,16/08/2019,30235823,2875.00,Revenue,RJW Associates Ltd,Consultants Fees
Peterborough City Council,Communities,Regulatory Services,Services,16/08/2019,30237444,875.00,Revenue,Ms Jessica Russell-Mitra,Legal Costs
Peterborough City Council,Commissioning and Commercial Operations,Clare Lodge,Agency Staff,16/08/2019,30238016,661.12,Revenue,Reed Specialist Recruitment Limited,External Temporary Staff
Peterborough City Council,Commissioning and Commercial Operations,Clare Lodge,Agency Staff,16/08/2019,30238022,510.12,Revenue,Reed Specialist Recruitment Limited,External Temporary Staff
Peterborough City Council,Commissioning and Commercial Operations,Commissioning Team,Agency Staff,16/08/2019,30238309,673.08,Revenue,Reed Specialist Recruitment Limited,External Temporary Staff
Peterborough City Council,Adults,Mental Capacity Act & DoLs,Services,16/08/2019,30238506,949.00,Revenue,Raj Medical Consultancy Limited,Hired Services
Peterborough City Council,Commissioning and Commercial Operations,Clare Lodge,Agency Staff,16/08/2019,30238830,533.99,Revenue,Reed Specialist Recruitment Limited,External Temporary Staff
Peterborough City Council,Commissioning and Commercial Operations,Clare Lodge,Agency Staff,16/08/2019,30238833,510.12,Revenue,Reed Specialist Recruitment Limited,External Temporary Staff
Peterborough City Council,Peterborough Serco Strategic Partnership,Peterborough Serco Strategic Partnership,Third Party Payments,16/08/2019,30239098,877829.93,Revenue,Serco Ltd,Third Party Payments - Contract
Peterborough City Council,Peterborough Serco Strategic Partnership,Peterborough Serco Strategic Partnership,Services,16/08/2019,30239105,178728.56,Revenue,Serco Ltd,Contract Services
Peterborough City Council,Peterborough Serco Strategic Partnership,Peterborough Serco Strategic Partnership,Third Party Payments,16/08/2019,30239106,51328.83,Revenue,Serco Ltd,Third Party Payments - Contract
Peterborough City Council,Corporate,Corporate,Non Revenue,16/08/2019,30239443,1041.08,Balance Sheet,Vivacity Culture and Leisure,Insurance Claims
Peterborough City Council,Commissioning and Commercial Operations,Access to Resources & Specialist Commissioning,Services,16/08/2019,30240013,3113.70,Revenue,National Fostering Agency Ltd,Boarding Out Fees
Peterborough City Council,Commissioning and Commercial Operations,Access to Resources & Specialist Commissioning,Services,16/08/2019,30240014,3217.49,Revenue,National Fostering Agency Ltd,Boarding Out Fees
Peterborough City Council,Commissioning and Commercial Operations,Access to Resources & Specialist Commissioning,Services,16/08/2019,30240028,3217.49,Revenue,National Fostering Agency Ltd,Boarding Out Fees
Peterborough City Council,Adults,Independent Sector Placements,Services,16/08/2019,30240032,11326.96,Revenue,Manchester House (Dovehaven Care Homes),Residential Care
Peterborough City Council,Children�s & Safeguarding,Children�s Social Care,Services,16/08/2019,30240040,909.35,Revenue,Redacted Personal Data,Financial Assistance
Peterborough City Council,Adults,Independent Sector Placements,Services,16/08/2019,30240081,5430.40,Revenue,Barchester Healthcare (Werrington Lodge),Residential Care
Peterborough City Council,Commissioning and Commercial Operations,Access to Resources & Specialist Commissioning,Services,16/08/2019,30240082,5687.88,Revenue,Five Rivers,Boarding Out Fees
Peterborough City Council,Commissioning and Commercial Operations,Access to Resources & Specialist Commissioning,Services,16/08/2019,30240083,2875.00,Revenue,National Fostering Agency Ltd,Boarding Out Fees
Peterborough City Council,Commissioning and Commercial Operations,Access to Resources & Specialist Commissioning,Services,16/08/2019,30240084,3113.70,Revenue,National Fostering Agency Ltd,Boarding Out Fees
Peterborough City Council,Adults,Independent Sector Placements,Services,16/08/2019,30240085,2086.44,Revenue,Chigwell Homes Ltd t/a Marcris House,Residential Care
Peterborough City Council,Adults,Independent Sector Placements,Services,16/08/2019,30240086,1083.64,Revenue,Healthcare Homes Group Ltd,Residential Care
Peterborough City Council,Corporate,Corporate,Non Revenue,16/08/2019,30240093,4805.54,Capital,Garfield Builders Ltd,Grant Payment
Peterborough City Council,Adults,Independent Sector Placements,Services,16/08/2019,30240096,657.14,Revenue,Goldcare Homes t/a The Tudors Care Home,Residential Care
Peterborough City Council,Corporate,Corporate,Non Revenue,16/08/2019,30240123,1190686.23,Balance Sheet,HM Revenues & Customs,Taxes
Peterborough City Council,Financial Services,Insurance,Insurances,16/08/2019,30240174,5241.00,Revenue,Zurich Insurance Company,Insurance Premiums
Peterborough City Council,Adults,Independent Sector Placements,Services,16/08/2019,30240202,1630.00,Revenue,ABBEYGATE REST HOME,Residential Care
Peterborough City Council,Adults,Independent Sector Placements,Services,16/08/2019,30240203,4755.60,Revenue,Mencap,Residential Care
Peterborough City Council,Adults,Independent Sector Placements,Services,16/08/2019,30240204,4755.60,Revenue,Mencap,Residential Care
Peterborough City Council,Adults,Independent Sector Placements,Services,16/08/2019,30240205,1469.30,Revenue,Augusta Care Ltd,Home Care
Peterborough City Council,Adults,Independent Sector Placements,Services,16/08/2019,30240206,4755.60,Revenue,Mencap,Residential Care
Peterborough City Council,Commissioning and Commercial Operations,Access to Resources & Specialist Commissioning,Services,16/08/2019,30240209,1980.00,Revenue,Florinee Homes Ltd,Boarding Out Fees
Peterborough City Council,Corporate,Corporate,Non Revenue,16/08/2019,30240210,2720.73,Capital,Sovereign Property Services Ltd,Grant Payment
Peterborough City Council,Corporate,Corporate,Non Revenue,16/08/2019,30240211,3438.37,Capital,Sovereign Property Services Ltd,Grant Payment
Peterborough City Council,Adults,Block Contracts,Third Party Payments,16/08/2019,30240256,7938.54,Revenue,Fins Care Ltd t/a St Margarets Rest Home,Third Party Payments - Contract
Peterborough City Council,Commissioning and Commercial Operations,Clare Lodge,Agency Staff,16/08/2019,30240261,768.73,Revenue,Reed Specialist Recruitment Limited,External Temporary Staff
Peterborough City Council,Adults,Independent Sector Placements,Services,16/08/2019,30240269,1022.40,Revenue,Augusta Care Ltd,Home Care
Peterborough City Council,Peterborough Serco Strategic Partnership,PSSP Retained Services,Services,16/08/2019,30240270,1877.62,Revenue,Whistl UK Ltd,Postage
Peterborough City Council,Adults,Independent Sector Placements,Services,16/08/2019,30240275,827.27,Revenue,K2 CARE LTD,Home Care
Peterborough City Council,HR,HR,Services,16/08/2019,30240279,531.50,Revenue,AXA PPP Healthcare OHS Ltd,Hired Services
Peterborough City Council,Adults,Independent Sector Placements,Services,16/08/2019,30240314,1869.48,Revenue,Avery House (Peterborough) t/a Brighterkind,Residential Care
Peterborough City Council,Adults,Independent Sector Placements,Services,16/08/2019,30240316,1852.48,Revenue,Avery House (Peterborough) t/a Brighterkind,Residential Care
Peterborough City Council,Adults,Independent Sector Placements,Services,16/08/2019,30240317,1852.48,Revenue,Avery House (Peterborough) t/a Brighterkind,Residential Care
Peterborough City Council,Adults,Independent Sector Placements,Services,16/08/2019,30240318,1852.48,Revenue,Avery House (Peterborough) t/a Brighterkind,Residential Care
Peterborough City Council,Adults,Independent Sector Placements,Services,16/08/2019,30240319,1038.63,Revenue,Avery House (Peterborough) t/a Brighterkind,Residential Care
Peterborough City Council,Adults,Independent Sector Placements,Services,16/08/2019,30240321,2326.13,Revenue,Avery House (Peterborough) t/a Brighterkind,Residential Care
Peterborough City Council,Adults,Independent Sector Placements,Services,16/08/2019,30240322,1852.48,Revenue,Avery House (Peterborough) t/a Brighterkind,Residential Care
Peterborough City Council,HR,HR,Contract Hire and Operating Leases,16/08/2019,30240324,4166.57,Revenue,Northumbria Healthcare NHS Foundation Trust,Leasing Charges
Peterborough City Council,Children�s & Safeguarding,Children�s Social Care,Services,16/08/2019,30240347,4000.00,Revenue,Tripod Partners Ltd,Recruitment Fees
Peterborough City Council,Financial Services,Finance,Agency Staff,16/08/2019,30240349,1788.86,Revenue,Reed Specialist Recruitment Limited,External Temporary Staff
Peterborough City Council,Adults,Independent Sector Placements,Services,16/08/2019,30240360,8844.52,Revenue,Dolphin Homes Limited,Residential Care
Peterborough City Council,Corporate,Corporate,Non Revenue,16/08/2019,30240615,897409.90,Capital,Interserve Construction Limited,Building And Site Works
Peterborough City Council,Education,HTS & CSC Transport,Contract Hire and Operating Leases,16/08/2019,8000149216,1267.00,Revenue,A2B Euro Cars,Hired Transport
Peterborough City Council,Education,HTS & CSC Transport,Contract Hire and Operating Leases,16/08/2019,8000149217,1747.00,Revenue,A2B Euro Cars,Hired Transport
Peterborough City Council,Education,HTS & CSC Transport,Contract Hire and Operating Leases,16/08/2019,8000149219,1248.00,Revenue,A2B Euro Cars,Hired Transport
Peterborough City Council,Education,HTS & CSC Transport,Contract Hire and Operating Leases,16/08/2019,8000149220,732.00,Revenue,A2B Euro Cars,Hired Transport
Peterborough City Council,Education,HTS & CSC Transport,Contract Hire and Operating Leases,16/08/2019,8000149221,1336.00,Revenue,A2B Euro Cars,Hired Transport
Peterborough City Council,Education,HTS & CSC Transport,Contract Hire and Operating Leases,16/08/2019,8000149226,1536.80,Revenue,Peterborough Cars,Hired Transport
Peterborough City Council,Education,HTS & CSC Transport,Contract Hire and Operating Leases,16/08/2019,8000149227,1036.00,Revenue,Peterborough Cars,Hired Transport
Peterborough City Council,Education,HTS & CSC Transport,Contract Hire and Operating Leases,16/08/2019,8000149228,1740.00,Revenue,Peterborough Cars,Hired Transport
Peterborough City Council,Education,HTS & CSC Transport,Contract Hire and Operating Leases,16/08/2019,8000149229,2140.00,Revenue,Peterborough Cars,Hired Transport
Peterborough City Council,Education,HTS & CSC Transport,Contract Hire and Operating Leases,16/08/2019,8000149230,1321.40,Revenue,Peterborough Cars,Hired Transport
Peterborough City Council,Education,HTS & CSC Transport,Contract Hire and Operating Leases,16/08/2019,8000149231,1876.00,Revenue,Peterborough Cars,Hired Transport
Peterborough City Council,Education,HTS & CSC Transport,Contract Hire and Operating Leases,16/08/2019,8000149232,1039.20,Revenue,Peterborough Cars,Hired Transport
Peterborough City Council,Education,HTS & CSC Transport,Contract Hire and Operating Leases,16/08/2019,8000149233,1197.60,Revenue,Peterborough Cars,Hired Transport
Peterborough City Council,Education,HTS & CSC Transport,Contract Hire and Operating Leases,16/08/2019,8000149234,1476.40,Revenue,Peterborough Cars,Hired Transport
Peterborough City Council,Education,HTS & CSC Transport,Contract Hire and Operating Leases,16/08/2019,8000149235,1479.20,Revenue,Peterborough Cars,Hired Transport
Peterborough City Council,Education,HTS & CSC Transport,Contract Hire and Operating Leases,16/08/2019,8000149236,1528.96,Revenue,Peterborough Cars,Hired Transport
Peterborough City Council,Education,HTS & CSC Transport,Contract Hire and Operating Leases,16/08/2019,8000149241,6360.00,Revenue,Marks Passenger Services Ltd,Hired Transport
Peterborough City Council,Education,HTS & CSC Transport,Contract Hire and Operating Leases,16/08/2019,8000149242,1100.00,Revenue,The Taxi Firm Limited,Hired Transport
Peterborough City Council,Adults,Independent Sector Placements,Services,19/08/2019,30236820,823.00,Revenue,Richmond Fellowship (The),Residential Care
Peterborough City Council,Adults,Independent Sector Placements,Services,19/08/2019,30236833,920.00,Revenue,Richmond Fellowship (The),Residential Care
Peterborough City Council,Adults,Independent Sector Placements,Services,19/08/2019,30236837,823.00,Revenue,Richmond Fellowship (The),Residential Care
Peterborough City Council,Adults,Independent Sector Placements,Services,19/08/2019,30236854,811.00,Revenue,Richmond Fellowship (The),Residential Care
Peterborough City Council,Communities,Housing,Services,19/08/2019,30238337,7880.78,Revenue,DA Rosalia Hotel,Temporary Accommodation Costs
Peterborough City Council,Commissioning and Commercial Operations,Commissioning,Services,19/08/2019,30238466,4365.00,Revenue,121 Social Care Limited,Hired Services
Peterborough City Council,Adults,Independent Sector Placements,Services,19/08/2019,30238591,967.36,Revenue,Bee�s Care Ltd,Home Care
Peterborough City Council,Peterborough Highway Services,Highway & Drainage Control,Agency Staff,19/08/2019,30238596,1764.00,Revenue,Matchtech,External Temporary Staff
Peterborough City Council,Peterborough Highway Services,Highway & Drainage Control,Agency Staff,19/08/2019,30238597,1638.00,Revenue,Matchtech,External Temporary Staff
Peterborough City Council,Adults,Independent Sector Placements,Services,19/08/2019,30238612,879.82,Revenue,Bee�s Care Ltd,Home Care
Peterborough City Council,Adults,Independent Sector Placements,Services,19/08/2019,30238613,932.77,Revenue,Bee�s Care Ltd,Home Care
Peterborough City Council,Adults,Independent Sector Placements,Services,19/08/2019,30238614,5152.81,Revenue,Bee�s Care Ltd,Home Care
Peterborough City Council,Peterborough Highway Services,Transport & Infrastructure Commissioning,Services,19/08/2019,30238648,18147.00,Revenue,Telensa Limited,Computer Software
Peterborough City Council,Adults,Independent Sector Placements,Services,19/08/2019,30238656,1172.67,Revenue,Bee�s Care Ltd,Home Care
Peterborough City Council,Adults,Independent Sector Placements,Services,19/08/2019,30238661,911.16,Revenue,Bee�s Care Ltd,Home Care
Peterborough City Council,Adults,Independent Sector Placements,Services,19/08/2019,30238662,2011.54,Revenue,Bee�s Care Ltd,Home Care
Peterborough City Council,Adults,Independent Sector Placements,Services,19/08/2019,30238663,821.08,Revenue,Bee�s Care Ltd,Home Care
Peterborough City Council,Peterborough Highway Services,Network and Traffic Management,Services,19/08/2019,30238666,6240.00,Revenue,Siemens Mobility Limited,Computer Software
Peterborough City Council,Children�s & Safeguarding,Child Health,Repair & Maintenance of Buildings,19/08/2019,30238667,640.00,Revenue,Adcock Refrig/air Conditioning Ltd,Premises Maintenance
Peterborough City Council,Education,Special Educational Needs / Inclusion,Agency Staff,19/08/2019,30238668,519.30,Revenue,Ewing Foundation,External Temporary Staff
Peterborough City Council,Public Health,PH Commissioning,Services,19/08/2019,30238669,9919.00,Revenue,"Cambridgeshire, Peterborough & South Lincs (CPSL) Mind Ltd",Contract Services
Peterborough City Council,Legal Services,Legal Services,Services,19/08/2019,30238673,800.00,Revenue,Buckles Solicitors LLP,Legal Costs
Peterborough City Council,Commissioning and Commercial Operations,Access to Resources & Specialist Commissioning,Services,19/08/2019,30238886,1980.00,Revenue,Florinee Homes Ltd,Boarding Out Fees
Peterborough City Council,Commissioning and Commercial Operations,Access to Resources & Specialist Commissioning,Services,19/08/2019,30238887,1980.00,Revenue,Florinee Homes Ltd,Boarding Out Fees
Peterborough City Council,Commissioning and Commercial Operations,Access to Resources & Specialist Commissioning,Services,19/08/2019,30238888,1980.00,Revenue,Florinee Homes Ltd,Boarding Out Fees
Peterborough City Council,Adults,Mental Capacity Act & DoLs,Services,19/08/2019,30238941,1116.80,Revenue,SS Psychiatric Services Ltd,Hired Services
Peterborough City Council,City Centre Management,"Markets, Tourism & Events",Services,19/08/2019,30238942,3433.00,Revenue,CWS Sound & Lighting,Hired Services
Peterborough City Council,Legal Services,Legal Services,Agency Staff,19/08/2019,30238943,1237.50,Revenue,Spinks Notary,External Temporary Staff
Peterborough City Council,Adults,Strategic Commissioning - Management,Agency Staff,19/08/2019,30238946,5850.00,Revenue,Badenoch & Clark Ltd,External Temporary Staff
Peterborough City Council,Westcombe Engineering,Westcombe Engineering,"Tools, Equipment, Furniture & Materials",19/08/2019,30238965,1319.00,Revenue,AALCO,Materials
Peterborough City Council,Legal Services,Legal Services,Services,19/08/2019,30238977,2300.00,Revenue,"Corbino, Mr Davide",Legal Costs
Peterborough City Council,Adults,Therapy/Reablement/Community Equipment,"Tools, Equipment, Furniture & Materials",19/08/2019,30238995,599.80,Revenue,Action on Hearing Loss (Equipment),Occupational Therapy Equipment
Peterborough City Council,Commissioning and Commercial Operations,Commissioning,Services,19/08/2019,30239049,948.25,Revenue,Wrixon Care Services,Hired Services
Peterborough City Council,Adults,Mental Capacity Act & DoLs,Services,19/08/2019,30239126,773.44,Revenue,Dr Gino Maurice Hervel,Hired Services
Peterborough City Council,Westcombe Engineering,Westcombe Engineering,"Tools, Equipment, Furniture & Materials",19/08/2019,30239159,727.79,Revenue,PG Reeves & Sons,Equipment Maintenance
Peterborough City Council,Corporate,Corporate,Non Revenue,19/08/2019,30239414,4080.00,Capital,M J Greaves,Grant Payment
Peterborough City Council,Commissioning and Commercial Operations,Clare Lodge,Agency Staff,19/08/2019,30239679,9392.00,Revenue,Wrixon Care Services,External Temporary Staff
Peterborough City Council,Westcombe Engineering,Westcombe Engineering,Energy Costs,19/08/2019,30239809,831.80,Revenue,British Gas Business,Electricity
Peterborough City Council,Corporate Property,Commercial Propety,Energy Costs,19/08/2019,30239842,923.16,Revenue,EDF Energy Networks Ltd,Electricity
Peterborough City Council,Communities,Cultural Services,Energy Costs,19/08/2019,30239842,7951.37,Revenue,EDF Energy Networks Ltd,Electricity
Peterborough City Council,Communities,Cultural Services,Energy Costs,19/08/2019,30239842,4253.12,Revenue,EDF Energy Networks Ltd,Electricity
Peterborough City Council,Communities,Cultural Services,Energy Costs,19/08/2019,30239872,1658.58,Revenue,EDF Energy Networks Ltd,Electricity
Peterborough City Council,Corporate Property,Commercial Propety,Energy Costs,19/08/2019,30239872,5794.04,Revenue,EDF Energy Networks Ltd,Electricity
Peterborough City Council,Adults,Independent Sector Placements,Services,19/08/2019,30239879,11887.18,Revenue,Barchester Healthcare (Werrington Lodge),Residential Care
Peterborough City Council,Communities,Housing,Services,19/08/2019,30239951,5000.00,Revenue,Cross Keys Homes,Financial Assistance
Peterborough City Council,Education,Early Years & Quality Improvement,Services,19/08/2019,30240006,16552.01,Revenue,The Teddy Bears inn Day Nursery Ltd,Grant Payment
Peterborough City Council,Communities,Housing,Services,19/08/2019,30240007,910.00,Revenue,Cozy Lettings Ltd,Financial Assistance
Peterborough City Council,Communities,Housing,Services,19/08/2019,30240008,1115.00,Revenue,Property Line,Financial Assistance
Peterborough City Council,Communities,Housing,Services,19/08/2019,30240125,847.03,Revenue,Belvoir Property Management,Financial Assistance
Peterborough City Council,Adults,Finance,Agency Staff,19/08/2019,30240257,8999.97,Revenue,Badenoch & Clark Ltd,External Temporary Staff
Peterborough City Council,Communities,Housing,Services,19/08/2019,30240380,699.00,Revenue,Cross Keys Homes,Financial Assistance
Peterborough City Council,Communities,Housing,Services,19/08/2019,30240381,1359.60,Revenue,Cross Keys Homes,Financial Assistance
Peterborough City Council,Communities,Housing,Services,19/08/2019,30240385,1715.04,Revenue,Cross Keys Homes,Financial Assistance
Peterborough City Council,Education,Early Years & Quality Improvement,Services,19/08/2019,30240386,1244.88,Revenue,Redacted Personal Data,Grant Payment
Peterborough City Council,Education,Early Years & Quality Improvement,Services,19/08/2019,30240387,934.50,Revenue,Redacted Personal Data,Grant Payment
Peterborough City Council,Education,Early Years & Quality Improvement,Services,19/08/2019,30240389,518.70,Revenue,Redacted Personal Data,Grant Payment
Peterborough City Council,Education,Early Years & Quality Improvement,Services,19/08/2019,30240391,2049.39,Revenue,Redacted Personal Data,Grant Payment
Peterborough City Council,Education,Early Years & Quality Improvement,Services,19/08/2019,30240392,1685.24,Revenue,Redacted Personal Data,Grant Payment
Peterborough City Council,Education,Early Years & Quality Improvement,Services,19/08/2019,30240394,3254.47,Revenue,Redacted Personal Data,Grant Payment
Peterborough City Council,Education,Early Years & Quality Improvement,Services,19/08/2019,30240395,881.79,Revenue,Redacted Personal Data,Grant Payment
Peterborough City Council,Education,Early Years & Quality Improvement,Services,19/08/2019,30240396,1244.88,Revenue,Redacted Personal Data,Grant Payment
Peterborough City Council,Education,Early Years & Quality Improvement,Services,19/08/2019,30240398,560.70,Revenue,Redacted Personal Data,Grant Payment
Peterborough City Council,Education,Early Years & Quality Improvement,Services,19/08/2019,30240401,1577.10,Revenue,Redacted Personal Data,Grant Payment
Peterborough City Council,Education,Early Years & Quality Improvement,Services,19/08/2019,30240403,1493.86,Revenue,Redacted Personal Data,Grant Payment
Peterborough City Council,Education,Early Years & Quality Improvement,Services,19/08/2019,30240406,2129.64,Revenue,Redacted Personal Data,Grant Payment
Peterborough City Council,Education,Early Years & Quality Improvement,Services,19/08/2019,30240407,1047.90,Revenue,Redacted Personal Data,Grant Payment
Peterborough City Council,Education,Early Years & Quality Improvement,Services,19/08/2019,30240408,788.55,Revenue,Redacted Personal Data,Grant Payment
Peterborough City Council,Education,Early Years & Quality Improvement,Services,19/08/2019,30240409,1121.40,Revenue,Redacted Personal Data,Grant Payment
Peterborough City Council,Education,Early Years & Quality Improvement,Services,19/08/2019,30240411,1755.70,Revenue,Redacted Personal Data,Grant Payment
Peterborough City Council,Education,Early Years & Quality Improvement,Services,19/08/2019,30240412,1662.80,Revenue,Redacted Personal Data,Grant Payment
Peterborough City Council,Education,Early Years & Quality Improvement,Services,19/08/2019,30240413,2484.46,Revenue,Redacted Personal Data,Grant Payment
Peterborough City Council,Education,Early Years & Quality Improvement,Services,19/08/2019,30240414,650.85,Revenue,Kirsty�s Little Sunflowers,Grant Payment
Peterborough City Council,Education,Early Years & Quality Improvement,Services,19/08/2019,30240415,1154.73,Revenue,Redacted Personal Data,Grant Payment
Peterborough City Council,Education,Early Years & Quality Improvement,Services,19/08/2019,30240416,2653.98,Revenue,Redacted Personal Data,Grant Payment
Peterborough City Council,Education,Early Years & Quality Improvement,Services,19/08/2019,30240418,622.44,Revenue,Redacted Personal Data,Grant Payment
Peterborough City Council,Education,Early Years & Quality Improvement,Services,19/08/2019,30240421,590.07,Revenue,Redacted Personal Data,Grant Payment
Peterborough City Council,Education,Early Years & Quality Improvement,Services,19/08/2019,30240422,1108.54,Revenue,Redacted Personal Data,Grant Payment
Peterborough City Council,Education,Early Years & Quality Improvement,Services,19/08/2019,30240423,788.42,Revenue,Redacted Personal Data,Grant Payment
Peterborough City Council,Education,Early Years & Quality Improvement,Services,19/08/2019,30240425,1821.59,Revenue,Redacted Personal Data,Grant Payment
Peterborough City Council,Education,Early Years & Quality Improvement,Services,19/08/2019,30240427,622.44,Revenue,Redacted Personal Data,Grant Payment
Peterborough City Council,Education,Early Years & Quality Improvement,Services,19/08/2019,30240428,669.37,Revenue,Redacted Personal Data,Grant Payment
Peterborough City Council,Education,Early Years & Quality Improvement,Services,19/08/2019,30240429,672.84,Revenue,Redacted Personal Data,Grant Payment
Peterborough City Council,Education,Early Years & Quality Improvement,Services,19/08/2019,30240431,518.70,Revenue,Redacted Personal Data,Grant Payment
Peterborough City Council,Education,Early Years & Quality Improvement,Services,19/08/2019,30240432,3316.72,Revenue,Jaynes House Childminding,Grant Payment
Peterborough City Council,Education,Early Years & Quality Improvement,Services,19/08/2019,30240433,886.12,Revenue,Redacted Personal Data,Grant Payment
Peterborough City Council,Education,Early Years & Quality Improvement,Services,19/08/2019,30240434,1037.40,Revenue,Redacted Personal Data,Grant Payment
Peterborough City Council,Education,Early Years & Quality Improvement,Services,19/08/2019,30240436,560.70,Revenue,Redacted Personal Data,Grant Payment
Peterborough City Council,Education,Early Years & Quality Improvement,Services,19/08/2019,30240438,1302.96,Revenue,Redacted Personal Data,Grant Payment
Peterborough City Council,Education,Early Years & Quality Improvement,Services,19/08/2019,30240439,3063.31,Revenue,Redacted Personal Data,Grant Payment
Peterborough City Council,Education,Early Years & Quality Improvement,Services,19/08/2019,30240440,1025.54,Revenue,Casey�s Childminding ,Grant Payment
Peterborough City Council,Education,Early Years & Quality Improvement,Services,19/08/2019,30240441,1126.32,Revenue,Redacted Personal Data,Grant Payment
Peterborough City Council,Education,Early Years & Quality Improvement,Services,19/08/2019,30240442,1608.84,Revenue,Cassie�s childminding,Grant Payment
Peterborough City Council,Education,Early Years & Quality Improvement,Services,19/08/2019,30240443,754.27,Revenue,Redacted Personal Data,Grant Payment
Peterborough City Council,Education,Early Years & Quality Improvement,Services,19/08/2019,30240444,23152.22,Revenue,Busy Bunnies Nursery,Grant Payment
Peterborough City Council,Education,Early Years & Quality Improvement,Services,19/08/2019,30240445,5943.42,Revenue,Busy Bees Pre-School,Grant Payment
Peterborough City Council,Education,Early Years & Quality Improvement,Services,19/08/2019,30240446,21929.78,Revenue,Busy Bunnies Braybrook,Grant Payment
